{"text_format":"1","workbook":"xlsx","n_sheets":3,"sheets":["ISTRUZIONI_USO","MODULO_ISCRIZIONE","modulo per stampa"],"not_rendered":{"charts":0,"images":1,"macros":1,"external_links":0,"defined_names":5,"comments":1,"pivot_tables":0},"unopened":[],"bounds":{"document_bytes":16777216,"sheet_cells":100000,"rows_first":2000,"rows_last":500,"rows_between":2000,"halvings":0,"cell_chars":16384,"cell_head_chars":4096},"cells_cut":0,"cells_raw":0,"read":"whole","date_system":"1900"}

{"sheet":"ISTRUZIONI_USO","index":0,"n_rows":22,"n_cols":2,"rows_kept":22,"cut":false,"hidden":false,"merged":[]}
[]
[]
[]
["GUIDA ALLA COMPILAZIONE DEL MODULO ISCRIZIONE"]
[]
[]
["1) ","TUTTO DEVE ESSERE SCRITTO CON I CARATTERI MAIUSCOLI"]
[]
["2)","INSERENDO IL NOME DELLA SOCIETA' "]
[null,"RIPORTATO NELLA COLONNA SOTTOSTANTE"]
[]
["3)      CATEGORIA: SELEZIONARE LA CATEGORIA DI APPARTENENZA DALLA TENDINA"]
[]
["4)","SESSO: SELEZIONARE IL SESSO DALLA TENDINA"]
[]
["5)","GARA: SELEZIONARE LA GARA SCELTA DALLA TENDINA"]
[]
["6)","TEMPO ISCRIZIONE: IL TEMPO DEVE ESSERE IMMESSO NEL FORMATO mm.ss.00 COME DA ES. 00.01.50"]
[]
["7)","ISCRIZIONE STAFFETTE: inserire \"STAFFETTA\" nella colonna NOME COGNOME, inserire *CATEGORIA ,inserire GARA"]
[]
[null,"*L'atleta della categoria maggiore definisce la CATEGORIA della staffetta: esempio 3 atleti ALLIEVI+1 atleta SENIORES > staffetta categoria SENIORES "]

{"sheet":"MODULO_ISCRIZIONE","index":1,"n_rows":258,"n_cols":15,"rows_kept":258,"cut":false,"hidden":false,"merged":[[0,1,1,8],[3,1,4,3],[3,4,4,4],[3,5,3,6],[4,5,4,6]]}
[null,"TROFEO PROPAGANDA NUOTO IN SPORT \nSEREGNO 26 NOVEMBRE 2023"]
[]
[]
[null,"SOCIETA'",null,null,null,"NOME REFERENTE",null,"MAIL","CELLULARE"]
[null,null,null,null,null,null,null,null,null,null,null,null,"CATEGORIA","ANNO","GARA"]
[null,null,null,null,null,null,null,null,null,null,null,null,"Esordienti ",2018,"25mt SL"]
[null,"N°","COGNOME NOME","M/F","SOCIETA'","CAT.","ANNO","GARA","TEMPO ISCR.",null,null,null,"Giovanissimi ",2017,"25mt DO"]
[null,"ES:","ROSSI MARIO","M","PALLINO NUOTO ASD","Esordienti ","2017","25mt SL","00:20.2",null,null,null,"Allievi ",2016,"50mt SL"]
[null,"1",null,null,null,null,null,null,null,null,null,null,"Ragazzi ",2015,"50mt DO"]
[null,"2",null,null,null,null,null,null,null,null,null,null,"Juniores ",2014,"50mt RA"]
[null,"3",null,null,null,null,null,null,null,null,null,null,"Seniores ",2013,"4x25MI-SL"]
[null,"4",null,null,null,null,null,null,null,null,null,null,null,2012,"4X50MI-SL"]
[null,"5",null,null,null,null,null,null,null,null,null,null,null,2011]
[null,"6",null,null,null,null,null,null,null,null,null,null,null,2010]
[null,"7",null,null,null,null,null,null,null,null,null,null,null,2009]
[null,"8",null,null,null,null,null,null,null,null,null,null,null,2008]
[null,"9",null,null,null,null,null,null,null,null,null,null,null,2007]
[null,"10",null,null,null,null,null,null,null,null,null,null,null,2006]
[null,"11",null,null,null,null,null,null,null,null,null,null,null,2005]
[null,"12"]
[null,"13"]
[null,"14"]
[null,"15"]
[null,"16"]
[null,"17"]
[null,"18"]
[null,"19"]
[null,"20"]
[null,"21"]
[null,"22"]
[null,"23"]
[null,"24"]
[null,"25"]
[null,"26"]
[null,"27"]
[null,"28"]
[null,"29"]
[null,"30"]
[null,"31"]
[null,"32"]
[null,"33"]
[null,"34"]
[null,"35"]
[null,"36"]
[null,"37"]
[null,"38"]
[null,"39"]
[null,"40"]
[null,"41"]
[null,"42"]
[null,"43"]
[null,"44"]
[null,"45"]
[null,"46"]
[null,"47"]
[null,"48"]
[null,"49"]
[null,"50"]
[null,"51"]
[null,"52"]
[null,"53"]
[null,"54"]
[null,"55"]
[null,"56"]
[null,"57"]
[null,"58"]
[null,"59"]
[null,"60"]
[null,"61"]
[null,"62"]
[null,"63"]
[null,"64"]
[null,"65"]
[null,"66"]
[null,"67"]
[null,"68"]
[null,"69"]
[null,"70"]
[null,"71"]
[null,"72"]
[null,"73"]
[null,"74"]
[null,"75"]
[null,"76"]
[null,"77"]
[null,"78"]
[null,"79"]
[null,"80"]
[null,"81"]
[null,"82"]
[null,"83"]
[null,"84"]
[null,"85"]
[null,"86"]
[null,"87"]
[null,"88"]
[null,"89"]
[null,"90"]
[null,"91"]
[null,"92"]
[null,"93"]
[null,"94"]
[null,"95"]
[null,"96"]
[null,"97"]
[null,"98"]
[null,"99"]
[null,"100"]
[null,"101"]
[null,"102"]
[null,"103"]
[null,"104"]
[null,"105"]
[null,"106"]
[null,"107"]
[null,"108"]
[null,"109"]
[null,"110"]
[null,"111"]
[null,"112"]
[null,"113"]
[null,"114"]
[null,"115"]
[null,"116"]
[null,"117"]
[null,"118"]
[null,"119"]
[null,"120"]
[null,"121"]
[null,"122"]
[null,"123"]
[null,"124"]
[null,"125"]
[null,"126"]
[null,"127"]
[null,"128"]
[null,"129"]
[null,"130"]
[null,"131"]
[null,"132"]
[null,"133"]
[null,"134"]
[null,"135"]
[null,"136"]
[null,"137"]
[null,"138"]
[null,"139"]
[null,"140"]
[null,"141"]
[null,"142"]
[null,"143"]
[null,"144"]
[null,"145"]
[null,"146"]
[null,"147"]
[null,"148"]
[null,"149"]
[null,"150"]
[null,"151"]
[null,"152"]
[null,"153"]
[null,"154"]
[null,"155"]
[null,"156"]
[null,"157"]
[null,"158"]
[null,"159"]
[null,"160"]
[null,"161"]
[null,"162"]
[null,"163"]
[null,"164"]
[null,"165"]
[null,"166"]
[null,"167"]
[null,"168"]
[null,"169"]
[null,"170"]
[null,"171"]
[null,"172"]
[null,"173"]
[null,"174"]
[null,"175"]
[null,"176"]
[null,"177"]
[null,"178"]
[null,"179"]
[null,"180"]
[null,"181"]
[null,"182"]
[null,"183"]
[null,"184"]
[null,"185"]
[null,"186"]
[null,"187"]
[null,"188"]
[null,"189"]
[null,"190"]
[null,"191"]
[null,"192"]
[null,"193"]
[null,"194"]
[null,"195"]
[null,"196"]
[null,"197"]
[null,"198"]
[null,"199"]
[null,"200"]
[null,"201"]
[null,"202"]
[null,"203"]
[null,"204"]
[null,"205"]
[null,"206"]
[null,"207"]
[null,"208"]
[null,"209"]
[null,"210"]
[null,"211"]
[null,"212"]
[null,"213"]
[null,"214"]
[null,"215"]
[null,"216"]
[null,"217"]
[null,"218"]
[null,"219"]
[null,"220"]
[null,"221"]
[null,"222"]
[null,"223"]
[null,"224"]
[null,"225"]
[null,"226"]
[null,"227"]
[null,"228"]
[null,"229"]
[null,"230"]
[null,"231"]
[null,"232"]
[null,"233"]
[null,"234"]
[null,"235"]
[null,"236"]
[null,"237"]
[null,"238"]
[null,"239"]
[null,"240"]
[null,"241"]
[null,"242"]
[null,"243"]
[null,"244"]
[null,"245"]
[null,"246"]
[null,"247"]
[null,"248"]
[null,"249"]
[null,"250"]

{"sheet":"modulo per stampa","index":2,"n_rows":166,"n_cols":28,"rows_kept":166,"cut":false,"hidden":true,"merged":[[0,0,0,7],[1,0,1,7],[3,3,3,7],[4,4,4,7]]}
["Modulo iscrizioni gara circuito promozionale"]
["           \"SCUOLE NUOTO BRIANZA\"",null,null,null,null,null,null,null,null,null,{"$f":"L2+1","v":2007},2006,2005,2004,2003,2002,2001,2000,1999,1998,1997,1996,1995,1994,1993,1992,1991,1990]
[]
["SOCIETA':",null,null,"XXXXXXXX YYYYYYY"]
["MANIFESTAZIONE DEL: ",null,null,null,"gg/mm/2011"]
[]
["CAT.","ANNO","M/F","COGNOME NOME","SOCIETA'","GARA","T/ISCRIZ","T/GARA","N°"]
[{"$f":"IF(MODULO_ISCRIZIONE!#REF!=\"\",\"\",MODULO_ISCRIZIONE!#REF!)","v":{"$error":"#REF!"}},{"$f":"IF(MODULO_ISCRIZIONE!#REF!=\"\",\"\",MODULO_ISCRIZIONE!#REF!)","v":{"$error":"#REF!"}},{"$f":"IF(MODULO_ISCRIZIONE!D8=\"\",\"\",MODULO_ISCRIZIONE!D8)","v":"M"},"=se('modulo iscrizione'!D8=\"\";\"\";maiusc('modulo iscrizione'!D8))",{"$f":"IF(MODULO_ISCRIZIONE!E8=\"\",\"\",MODULO_ISCRIZIONE!E8)","v":"PALLINO NUOTO ASD"},{"$f":"IF(MODULO_ISCRIZIONE!H8=\"\",\"\",MODULO_ISCRIZIONE!H8)","v":"25mt SL"},{"$f":"IF(MODULO_ISCRIZIONE!I8=\"\",\"\",MODULO_ISCRIZIONE!I8)","v":"00:20.2"},{"$f":"IF(MODULO_ISCRIZIONE!#REF!=\"\",\"\",MODULO_ISCRIZIONE!#REF!)","v":{"$error":"#REF!"}},{"$f":"IF(MODULO_ISCRIZIONE!#REF!=\"\",\"\",MODULO_ISCRIZIONE!#REF!)","v":{"$error":"#REF!"}}]
[{"$f":"IF(MODULO_ISCRIZIONE!#REF!=\"\",\"\",MODULO_ISCRIZIONE!#REF!)","v":{"$error":"#REF!"}},{"$f":"IF(MODULO_ISCRIZIONE!#REF!=\"\",\"\",MODULO_ISCRIZIONE!#REF!)","v":{"$error":"#REF!"}},{"$f":"IF(MODULO_ISCRIZIONE!D9=\"\",\"\",MODULO_ISCRIZIONE!D9)","v":""},"=SE('modulo iscrizione'!D8=\"\";\"\";maiusc('modulo iscrizione'!D8))",{"$f":"IF(MODULO_ISCRIZIONE!E9=\"\",\"\",MODULO_ISCRIZIONE!E9)","v":""},{"$f":"IF(MODULO_ISCRIZIONE!H9=\"\",\"\",MODULO_ISCRIZIONE!H9)","v":""},{"$f":"IF(MODULO_ISCRIZIONE!I9=\"\",\"\",MODULO_ISCRIZIONE!I9)","v":""},{"$f":"IF(MODULO_ISCRIZIONE!#REF!=\"\",\"\",MODULO_ISCRIZIONE!#REF!)","v":{"$error":"#REF!"}},{"$f":"IF(MODULO_ISCRIZIONE!#REF!=\"\",\"\",MODULO_ISCRIZIONE!#REF!)","v":{"$error":"#REF!"}}]
[{"$f":"IF(MODULO_ISCRIZIONE!#REF!=\"\",\"\",MODULO_ISCRIZIONE!#REF!)","v":{"$error":"#REF!"}},{"$f":"IF(MODULO_ISCRIZIONE!#REF!=\"\",\"\",MODULO_ISCRIZIONE!#REF!)","v":{"$error":"#REF!"}},{"$f":"IF(MODULO_ISCRIZIONE!D10=\"\",\"\",MODULO_ISCRIZIONE!D10)","v":""},"=SE('modulo iscrizione'!D8=\"\";\"\";maiusc('modulo iscrizione'!D8))",{"$f":"IF(MODULO_ISCRIZIONE!E10=\"\",\"\",MODULO_ISCRIZIONE!E10)","v":""},{"$f":"IF(MODULO_ISCRIZIONE!H10=\"\",\"\",MODULO_ISCRIZIONE!H10)","v":""},{"$f":"IF(MODULO_ISCRIZIONE!I10=\"\",\"\",MODULO_ISCRIZIONE!I10)","v":""},{"$f":"IF(MODULO_ISCRIZIONE!#REF!=\"\",\"\",MODULO_ISCRIZIONE!#REF!)","v":{"$error":"#REF!"}},{"$f":"IF(MODULO_ISCRIZIONE!#REF!=\"\",\"\",MODULO_ISCRIZIONE!#REF!)","v":{"$error":"#REF!"}}]
[{"$f":"IF(MODULO_ISCRIZIONE!#REF!=\"\",\"\",MODULO_ISCRIZIONE!#REF!)","v":{"$error":"#REF!"}},{"$f":"IF(MODULO_ISCRIZIONE!#REF!=\"\",\"\",MODULO_ISCRIZIONE!#REF!)","v":{"$error":"#REF!"}},{"$f":"IF(MODULO_ISCRIZIONE!D11=\"\",\"\",MODULO_ISCRIZIONE!D11)","v":""},"=SE('modulo iscrizione'!D8=\"\";\"\";maiusc('modulo iscrizione'!D8))",{"$f":"IF(MODULO_ISCRIZIONE!E11=\"\",\"\",MODULO_ISCRIZIONE!E11)","v":""},{"$f":"IF(MODULO_ISCRIZIONE!H11=\"\",\"\",MODULO_ISCRIZIONE!H11)","v":""},{"$f":"IF(MODULO_ISCRIZIONE!I11=\"\",\"\",MODULO_ISCRIZIONE!I11)","v":""},{"$f":"IF(MODULO_ISCRIZIONE!#REF!=\"\",\"\",MODULO_ISCRIZIONE!#REF!)","v":{"$error":"#REF!"}},{"$f":"IF(MODULO_ISCRIZIONE!#REF!=\"\",\"\",MODULO_ISCRIZIONE!#REF!)","v":{"$error":"#REF!"}}]
[{"$f":"IF(MODULO_ISCRIZIONE!#REF!=\"\",\"\",MODULO_ISCRIZIONE!#REF!)","v":{"$error":"#REF!"}},{"$f":"IF(MODULO_ISCRIZIONE!#REF!=\"\",\"\",MODULO_ISCRIZIONE!#REF!)","v":{"$error":"#REF!"}},{"$f":"IF(MODULO_ISCRIZIONE!D12=\"\",\"\",MODULO_ISCRIZIONE!D12)","v":""},"=SE('modulo iscrizione'!D8=\"\";\"\";maiusc('modulo iscrizione'!D8))",{"$f":"IF(MODULO_ISCRIZIONE!E12=\"\",\"\",MODULO_ISCRIZIONE!E12)","v":""},{"$f":"IF(MODULO_ISCRIZIONE!H12=\"\",\"\",MODULO_ISCRIZIONE!H12)","v":""},{"$f":"IF(MODULO_ISCRIZIONE!I12=\"\",\"\",MODULO_ISCRIZIONE!I12)","v":""},{"$f":"IF(MODULO_ISCRIZIONE!#REF!=\"\",\"\",MODULO_ISCRIZIONE!#REF!)","v":{"$error":"#REF!"}},{"$f":"IF(MODULO_ISCRIZIONE!#REF!=\"\",\"\",MODULO_ISCRIZIONE!#REF!)","v":{"$error":"#REF!"}}]
[{"$f":"IF(MODULO_ISCRIZIONE!#REF!=\"\",\"\",MODULO_ISCRIZIONE!#REF!)","v":{"$error":"#REF!"}},{"$f":"IF(MODULO_ISCRIZIONE!#REF!=\"\",\"\",MODULO_ISCRIZIONE!#REF!)","v":{"$error":"#REF!"}},{"$f":"IF(MODULO_ISCRIZIONE!D13=\"\",\"\",MODULO_ISCRIZIONE!D13)","v":""},"=SE('modulo iscrizione'!D8=\"\";\"\";maiusc('modulo iscrizione'!D8))",{"$f":"IF(MODULO_ISCRIZIONE!E13=\"\",\"\",MODULO_ISCRIZIONE!E13)","v":""},{"$f":"IF(MODULO_ISCRIZIONE!H13=\"\",\"\",MODULO_ISCRIZIONE!H13)","v":""},{"$f":"IF(MODULO_ISCRIZIONE!I13=\"\",\"\",MODULO_ISCRIZIONE!I13)","v":""},{"$f":"IF(MODULO_ISCRIZIONE!#REF!=\"\",\"\",MODULO_ISCRIZIONE!#REF!)","v":{"$error":"#REF!"}},{"$f":"IF(MODULO_ISCRIZIONE!#REF!=\"\",\"\",MODULO_ISCRIZIONE!#REF!)","v":{"$error":"#REF!"}}]
[{"$f":"IF(MODULO_ISCRIZIONE!#REF!=\"\",\"\",MODULO_ISCRIZIONE!#REF!)","v":{"$error":"#REF!"}},{"$f":"IF(MODULO_ISCRIZIONE!#REF!=\"\",\"\",MODULO_ISCRIZIONE!#REF!)","v":{"$error":"#REF!"}},{"$f":"IF(MODULO_ISCRIZIONE!D14=\"\",\"\",MODULO_ISCRIZIONE!D14)","v":""},"=SE('modulo iscrizione'!D8=\"\";\"\";maiusc('modulo iscrizione'!D8))",{"$f":"IF(MODULO_ISCRIZIONE!E14=\"\",\"\",MODULO_ISCRIZIONE!E14)","v":""},{"$f":"IF(MODULO_ISCRIZIONE!H14=\"\",\"\",MODULO_ISCRIZIONE!H14)","v":""},{"$f":"IF(MODULO_ISCRIZIONE!I14=\"\",\"\",MODULO_ISCRIZIONE!I14)","v":""},{"$f":"IF(MODULO_ISCRIZIONE!#REF!=\"\",\"\",MODULO_ISCRIZIONE!#REF!)","v":{"$error":"#REF!"}},{"$f":"IF(MODULO_ISCRIZIONE!#REF!=\"\",\"\",MODULO_ISCRIZIONE!#REF!)","v":{"$error":"#REF!"}}]
[{"$f":"IF(MODULO_ISCRIZIONE!#REF!=\"\",\"\",MODULO_ISCRIZIONE!#REF!)","v":{"$error":"#REF!"}},{"$f":"IF(MODULO_ISCRIZIONE!#REF!=\"\",\"\",MODULO_ISCRIZIONE!#REF!)","v":{"$error":"#REF!"}},{"$f":"IF(MODULO_ISCRIZIONE!D15=\"\",\"\",MODULO_ISCRIZIONE!D15)","v":""},"=SE('modulo iscrizione'!D8=\"\";\"\";maiusc('modulo iscrizione'!D8))",{"$f":"IF(MODULO_ISCRIZIONE!E15=\"\",\"\",MODULO_ISCRIZIONE!E15)","v":""},{"$f":"IF(MODULO_ISCRIZIONE!H15=\"\",\"\",MODULO_ISCRIZIONE!H15)","v":""},{"$f":"IF(MODULO_ISCRIZIONE!I15=\"\",\"\",MODULO_ISCRIZIONE!I15)","v":""},{"$f":"IF(MODULO_ISCRIZIONE!#REF!=\"\",\"\",MODULO_ISCRIZIONE!#REF!)","v":{"$error":"#REF!"}},{"$f":"IF(MODULO_ISCRIZIONE!#REF!=\"\",\"\",MODULO_ISCRIZIONE!#REF!)","v":{"$error":"#REF!"}}]
[{"$f":"IF(MODULO_ISCRIZIONE!#REF!=\"\",\"\",MODULO_ISCRIZIONE!#REF!)","v":{"$error":"#REF!"}},{"$f":"IF(MODULO_ISCRIZIONE!#REF!=\"\",\"\",MODULO_ISCRIZIONE!#REF!)","v":{"$error":"#REF!"}},{"$f":"IF(MODULO_ISCRIZIONE!#REF!=\"\",\"\",MODULO_ISCRIZIONE!#REF!)","v":{"$error":"#REF!"}},"=SE('modulo iscrizione'!D8=\"\";\"\";maiusc('modulo iscrizione'!D8))",{"$f":"IF(MODULO_ISCRIZIONE!#REF!=\"\",\"\",MODULO_ISCRIZIONE!#REF!)","v":{"$error":"#REF!"}},{"$f":"IF(MODULO_ISCRIZIONE!#REF!=\"\",\"\",MODULO_ISCRIZIONE!#REF!)","v":{"$error":"#REF!"}},{"$f":"IF(MODULO_ISCRIZIONE!#REF!=\"\",\"\",MODULO_ISCRIZIONE!#REF!)","v":{"$error":"#REF!"}},{"$f":"IF(MODULO_ISCRIZIONE!#REF!=\"\",\"\",MODULO_ISCRIZIONE!#REF!)","v":{"$error":"#REF!"}},{"$f":"IF(MODULO_ISCRIZIONE!#REF!=\"\",\"\",MODULO_ISCRIZIONE!#REF!)","v":{"$error":"#REF!"}}]
[{"$f":"IF(MODULO_ISCRIZIONE!#REF!=\"\",\"\",MODULO_ISCRIZIONE!#REF!)","v":{"$error":"#REF!"}},{"$f":"IF(MODULO_ISCRIZIONE!#REF!=\"\",\"\",MODULO_ISCRIZIONE!#REF!)","v":{"$error":"#REF!"}},{"$f":"IF(MODULO_ISCRIZIONE!D16=\"\",\"\",MODULO_ISCRIZIONE!D16)","v":""},"=SE('modulo iscrizione'!D8=\"\";\"\";maiusc('modulo iscrizione'!D8))",{"$f":"IF(MODULO_ISCRIZIONE!E16=\"\",\"\",MODULO_ISCRIZIONE!E16)","v":""},{"$f":"IF(MODULO_ISCRIZIONE!H16=\"\",\"\",MODULO_ISCRIZIONE!H16)","v":""},{"$f":"IF(MODULO_ISCRIZIONE!I16=\"\",\"\",MODULO_ISCRIZIONE!I16)","v":""},{"$f":"IF(MODULO_ISCRIZIONE!#REF!=\"\",\"\",MODULO_ISCRIZIONE!#REF!)","v":{"$error":"#REF!"}},{"$f":"IF(MODULO_ISCRIZIONE!#REF!=\"\",\"\",MODULO_ISCRIZIONE!#REF!)","v":{"$error":"#REF!"}}]
[{"$f":"IF(MODULO_ISCRIZIONE!#REF!=\"\",\"\",MODULO_ISCRIZIONE!#REF!)","v":{"$error":"#REF!"}},{"$f":"IF(MODULO_ISCRIZIONE!#REF!=\"\",\"\",MODULO_ISCRIZIONE!#REF!)","v":{"$error":"#REF!"}},{"$f":"IF(MODULO_ISCRIZIONE!D17=\"\",\"\",MODULO_ISCRIZIONE!D17)","v":""},"=SE('modulo iscrizione'!D8=\"\";\"\";maiusc('modulo iscrizione'!D8))",{"$f":"IF(MODULO_ISCRIZIONE!E17=\"\",\"\",MODULO_ISCRIZIONE!E17)","v":""},{"$f":"IF(MODULO_ISCRIZIONE!H17=\"\",\"\",MODULO_ISCRIZIONE!H17)","v":""},{"$f":"IF(MODULO_ISCRIZIONE!I17=\"\",\"\",MODULO_ISCRIZIONE!I17)","v":""},{"$f":"IF(MODULO_ISCRIZIONE!#REF!=\"\",\"\",MODULO_ISCRIZIONE!#REF!)","v":{"$error":"#REF!"}},{"$f":"IF(MODULO_ISCRIZIONE!#REF!=\"\",\"\",MODULO_ISCRIZIONE!#REF!)","v":{"$error":"#REF!"}}]
[{"$f":"IF(MODULO_ISCRIZIONE!#REF!=\"\",\"\",MODULO_ISCRIZIONE!#REF!)","v":{"$error":"#REF!"}},{"$f":"IF(MODULO_ISCRIZIONE!#REF!=\"\",\"\",MODULO_ISCRIZIONE!#REF!)","v":{"$error":"#REF!"}},{"$f":"IF(MODULO_ISCRIZIONE!D18=\"\",\"\",MODULO_ISCRIZIONE!D18)","v":""},"=SE('modulo iscrizione'!D8=\"\";\"\";maiusc('modulo iscrizione'!D8))",{"$f":"IF(MODULO_ISCRIZIONE!E18=\"\",\"\",MODULO_ISCRIZIONE!E18)","v":""},{"$f":"IF(MODULO_ISCRIZIONE!H18=\"\",\"\",MODULO_ISCRIZIONE!H18)","v":""},{"$f":"IF(MODULO_ISCRIZIONE!I18=\"\",\"\",MODULO_ISCRIZIONE!I18)","v":""},{"$f":"IF(MODULO_ISCRIZIONE!#REF!=\"\",\"\",MODULO_ISCRIZIONE!#REF!)","v":{"$error":"#REF!"}},{"$f":"IF(MODULO_ISCRIZIONE!#REF!=\"\",\"\",MODULO_ISCRIZIONE!#REF!)","v":{"$error":"#REF!"}}]
[{"$f":"IF(MODULO_ISCRIZIONE!#REF!=\"\",\"\",MODULO_ISCRIZIONE!#REF!)","v":{"$error":"#REF!"}},{"$f":"IF(MODULO_ISCRIZIONE!#REF!=\"\",\"\",MODULO_ISCRIZIONE!#REF!)","v":{"$error":"#REF!"}},{"$f":"IF(MODULO_ISCRIZIONE!D19=\"\",\"\",MODULO_ISCRIZIONE!D19)","v":""},"=SE('modulo iscrizione'!D8=\"\";\"\";maiusc('modulo iscrizione'!D8))",{"$f":"IF(MODULO_ISCRIZIONE!E19=\"\",\"\",MODULO_ISCRIZIONE!E19)","v":""},{"$f":"IF(MODULO_ISCRIZIONE!H19=\"\",\"\",MODULO_ISCRIZIONE!H19)","v":""},{"$f":"IF(MODULO_ISCRIZIONE!I19=\"\",\"\",MODULO_ISCRIZIONE!I19)","v":""},{"$f":"IF(MODULO_ISCRIZIONE!#REF!=\"\",\"\",MODULO_ISCRIZIONE!#REF!)","v":{"$error":"#REF!"}},{"$f":"IF(MODULO_ISCRIZIONE!#REF!=\"\",\"\",MODULO_ISCRIZIONE!#REF!)","v":{"$error":"#REF!"}}]
[{"$f":"IF(MODULO_ISCRIZIONE!#REF!=\"\",\"\",MODULO_ISCRIZIONE!#REF!)","v":{"$error":"#REF!"}},{"$f":"IF(MODULO_ISCRIZIONE!#REF!=\"\",\"\",MODULO_ISCRIZIONE!#REF!)","v":{"$error":"#REF!"}},{"$f":"IF(MODULO_ISCRIZIONE!D20=\"\",\"\",MODULO_ISCRIZIONE!D20)","v":""},"=SE('modulo iscrizione'!D8=\"\";\"\";maiusc('modulo iscrizione'!D8))",{"$f":"IF(MODULO_ISCRIZIONE!E20=\"\",\"\",MODULO_ISCRIZIONE!E20)","v":""},{"$f":"IF(MODULO_ISCRIZIONE!H20=\"\",\"\",MODULO_ISCRIZIONE!H20)","v":""},{"$f":"IF(MODULO_ISCRIZIONE!I20=\"\",\"\",MODULO_ISCRIZIONE!I20)","v":""},{"$f":"IF(MODULO_ISCRIZIONE!#REF!=\"\",\"\",MODULO_ISCRIZIONE!#REF!)","v":{"$error":"#REF!"}},{"$f":"IF(MODULO_ISCRIZIONE!#REF!=\"\",\"\",MODULO_ISCRIZIONE!#REF!)","v":{"$error":"#REF!"}}]
[{"$f":"IF(MODULO_ISCRIZIONE!#REF!=\"\",\"\",MODULO_ISCRIZIONE!#REF!)","v":{"$error":"#REF!"}},{"$f":"IF(MODULO_ISCRIZIONE!#REF!=\"\",\"\",MODULO_ISCRIZIONE!#REF!)","v":{"$error":"#REF!"}},{"$f":"IF(MODULO_ISCRIZIONE!D21=\"\",\"\",MODULO_ISCRIZIONE!D21)","v":""},"=SE('modulo iscrizione'!D8=\"\";\"\";maiusc('modulo iscrizione'!D8))",{"$f":"IF(MODULO_ISCRIZIONE!E21=\"\",\"\",MODULO_ISCRIZIONE!E21)","v":""},{"$f":"IF(MODULO_ISCRIZIONE!H21=\"\",\"\",MODULO_ISCRIZIONE!H21)","v":""},{"$f":"IF(MODULO_ISCRIZIONE!I21=\"\",\"\",MODULO_ISCRIZIONE!I21)","v":""},{"$f":"IF(MODULO_ISCRIZIONE!#REF!=\"\",\"\",MODULO_ISCRIZIONE!#REF!)","v":{"$error":"#REF!"}},{"$f":"IF(MODULO_ISCRIZIONE!#REF!=\"\",\"\",MODULO_ISCRIZIONE!#REF!)","v":{"$error":"#REF!"}}]
[{"$f":"IF(MODULO_ISCRIZIONE!#REF!=\"\",\"\",MODULO_ISCRIZIONE!#REF!)","v":{"$error":"#REF!"}},{"$f":"IF(MODULO_ISCRIZIONE!#REF!=\"\",\"\",MODULO_ISCRIZIONE!#REF!)","v":{"$error":"#REF!"}},{"$f":"IF(MODULO_ISCRIZIONE!D22=\"\",\"\",MODULO_ISCRIZIONE!D22)","v":""},"=SE('modulo iscrizione'!D8=\"\";\"\";maiusc('modulo iscrizione'!D8))",{"$f":"IF(MODULO_ISCRIZIONE!E22=\"\",\"\",MODULO_ISCRIZIONE!E22)","v":""},{"$f":"IF(MODULO_ISCRIZIONE!H22=\"\",\"\",MODULO_ISCRIZIONE!H22)","v":""},{"$f":"IF(MODULO_ISCRIZIONE!I22=\"\",\"\",MODULO_ISCRIZIONE!I22)","v":""},{"$f":"IF(MODULO_ISCRIZIONE!#REF!=\"\",\"\",MODULO_ISCRIZIONE!#REF!)","v":{"$error":"#REF!"}},{"$f":"IF(MODULO_ISCRIZIONE!#REF!=\"\",\"\",MODULO_ISCRIZIONE!#REF!)","v":{"$error":"#REF!"}}]
[{"$f":"IF(MODULO_ISCRIZIONE!#REF!=\"\",\"\",MODULO_ISCRIZIONE!#REF!)","v":{"$error":"#REF!"}},{"$f":"IF(MODULO_ISCRIZIONE!#REF!=\"\",\"\",MODULO_ISCRIZIONE!#REF!)","v":{"$error":"#REF!"}},{"$f":"IF(MODULO_ISCRIZIONE!D25=\"\",\"\",MODULO_ISCRIZIONE!D25)","v":""},"=SE('modulo iscrizione'!D8=\"\";\"\";maiusc('modulo iscrizione'!D8))",{"$f":"IF(MODULO_ISCRIZIONE!E25=\"\",\"\",MODULO_ISCRIZIONE!E25)","v":""},{"$f":"IF(MODULO_ISCRIZIONE!H25=\"\",\"\",MODULO_ISCRIZIONE!H25)","v":""},{"$f":"IF(MODULO_ISCRIZIONE!I25=\"\",\"\",MODULO_ISCRIZIONE!I25)","v":""},{"$f":"IF(MODULO_ISCRIZIONE!#REF!=\"\",\"\",MODULO_ISCRIZIONE!#REF!)","v":{"$error":"#REF!"}},{"$f":"IF(MODULO_ISCRIZIONE!#REF!=\"\",\"\",MODULO_ISCRIZIONE!#REF!)","v":{"$error":"#REF!"}}]
[{"$f":"IF(MODULO_ISCRIZIONE!#REF!=\"\",\"\",MODULO_ISCRIZIONE!#REF!)","v":{"$error":"#REF!"}},{"$f":"IF(MODULO_ISCRIZIONE!#REF!=\"\",\"\",MODULO_ISCRIZIONE!#REF!)","v":{"$error":"#REF!"}},{"$f":"IF(MODULO_ISCRIZIONE!#REF!=\"\",\"\",MODULO_ISCRIZIONE!#REF!)","v":{"$error":"#REF!"}},"=SE('modulo iscrizione'!D8=\"\";\"\";maiusc('modulo iscrizione'!D8))",{"$f":"IF(MODULO_ISCRIZIONE!D26=\"\",\"\",MODULO_ISCRIZIONE!D26)","v":""},{"$f":"IF(MODULO_ISCRIZIONE!H26=\"\",\"\",MODULO_ISCRIZIONE!H26)","v":""},{"$f":"IF(MODULO_ISCRIZIONE!I26=\"\",\"\",MODULO_ISCRIZIONE!I26)","v":""},{"$f":"IF(MODULO_ISCRIZIONE!#REF!=\"\",\"\",MODULO_ISCRIZIONE!#REF!)","v":{"$error":"#REF!"}},{"$f":"IF(MODULO_ISCRIZIONE!#REF!=\"\",\"\",MODULO_ISCRIZIONE!#REF!)","v":{"$error":"#REF!"}}]
[{"$f":"IF(MODULO_ISCRIZIONE!#REF!=\"\",\"\",MODULO_ISCRIZIONE!#REF!)","v":{"$error":"#REF!"}},{"$f":"IF(MODULO_ISCRIZIONE!#REF!=\"\",\"\",MODULO_ISCRIZIONE!#REF!)","v":{"$error":"#REF!"}},{"$f":"IF(MODULO_ISCRIZIONE!D27=\"\",\"\",MODULO_ISCRIZIONE!D27)","v":""},"=SE('modulo iscrizione'!D8=\"\";\"\";maiusc('modulo iscrizione'!D8))",{"$f":"IF(MODULO_ISCRIZIONE!E27=\"\",\"\",MODULO_ISCRIZIONE!E27)","v":""},{"$f":"IF(MODULO_ISCRIZIONE!H27=\"\",\"\",MODULO_ISCRIZIONE!H27)","v":""},{"$f":"IF(MODULO_ISCRIZIONE!I27=\"\",\"\",MODULO_ISCRIZIONE!I27)","v":""},{"$f":"IF(MODULO_ISCRIZIONE!#REF!=\"\",\"\",MODULO_ISCRIZIONE!#REF!)","v":{"$error":"#REF!"}},{"$f":"IF(MODULO_ISCRIZIONE!#REF!=\"\",\"\",MODULO_ISCRIZIONE!#REF!)","v":{"$error":"#REF!"}}]
[{"$f":"IF(MODULO_ISCRIZIONE!#REF!=\"\",\"\",MODULO_ISCRIZIONE!#REF!)","v":{"$error":"#REF!"}},{"$f":"IF(MODULO_ISCRIZIONE!#REF!=\"\",\"\",MODULO_ISCRIZIONE!#REF!)","v":{"$error":"#REF!"}},{"$f":"IF(MODULO_ISCRIZIONE!D28=\"\",\"\",MODULO_ISCRIZIONE!D28)","v":""},"=SE('modulo iscrizione'!D8=\"\";\"\";maiusc('modulo iscrizione'!D8))",{"$f":"IF(MODULO_ISCRIZIONE!E28=\"\",\"\",MODULO_ISCRIZIONE!E28)","v":""},{"$f":"IF(MODULO_ISCRIZIONE!H28=\"\",\"\",MODULO_ISCRIZIONE!H28)","v":""},{"$f":"IF(MODULO_ISCRIZIONE!I28=\"\",\"\",MODULO_ISCRIZIONE!I28)","v":""},{"$f":"IF(MODULO_ISCRIZIONE!#REF!=\"\",\"\",MODULO_ISCRIZIONE!#REF!)","v":{"$error":"#REF!"}},{"$f":"IF(MODULO_ISCRIZIONE!#REF!=\"\",\"\",MODULO_ISCRIZIONE!#REF!)","v":{"$error":"#REF!"}}]
[{"$f":"IF(MODULO_ISCRIZIONE!#REF!=\"\",\"\",MODULO_ISCRIZIONE!#REF!)","v":{"$error":"#REF!"}},{"$f":"IF(MODULO_ISCRIZIONE!#REF!=\"\",\"\",MODULO_ISCRIZIONE!#REF!)","v":{"$error":"#REF!"}},{"$f":"IF(MODULO_ISCRIZIONE!D29=\"\",\"\",MODULO_ISCRIZIONE!D29)","v":""},"=SE('modulo iscrizione'!D8=\"\";\"\";maiusc('modulo iscrizione'!D8))",{"$f":"IF(MODULO_ISCRIZIONE!E29=\"\",\"\",MODULO_ISCRIZIONE!E29)","v":""},{"$f":"IF(MODULO_ISCRIZIONE!H29=\"\",\"\",MODULO_ISCRIZIONE!H29)","v":""},{"$f":"IF(MODULO_ISCRIZIONE!I29=\"\",\"\",MODULO_ISCRIZIONE!I29)","v":""},{"$f":"IF(MODULO_ISCRIZIONE!#REF!=\"\",\"\",MODULO_ISCRIZIONE!#REF!)","v":{"$error":"#REF!"}},{"$f":"IF(MODULO_ISCRIZIONE!#REF!=\"\",\"\",MODULO_ISCRIZIONE!#REF!)","v":{"$error":"#REF!"}}]
[{"$f":"IF(MODULO_ISCRIZIONE!#REF!=\"\",\"\",MODULO_ISCRIZIONE!#REF!)","v":{"$error":"#REF!"}},{"$f":"IF(MODULO_ISCRIZIONE!#REF!=\"\",\"\",MODULO_ISCRIZIONE!#REF!)","v":{"$error":"#REF!"}},{"$f":"IF(MODULO_ISCRIZIONE!D30=\"\",\"\",MODULO_ISCRIZIONE!D30)","v":""},"=SE('modulo iscrizione'!D8=\"\";\"\";maiusc('modulo iscrizione'!D8))",{"$f":"IF(MODULO_ISCRIZIONE!E30=\"\",\"\",MODULO_ISCRIZIONE!E30)","v":""},{"$f":"IF(MODULO_ISCRIZIONE!H30=\"\",\"\",MODULO_ISCRIZIONE!H30)","v":""},{"$f":"IF(MODULO_ISCRIZIONE!I30=\"\",\"\",MODULO_ISCRIZIONE!I30)","v":""},{"$f":"IF(MODULO_ISCRIZIONE!#REF!=\"\",\"\",MODULO_ISCRIZIONE!#REF!)","v":{"$error":"#REF!"}},{"$f":"IF(MODULO_ISCRIZIONE!#REF!=\"\",\"\",MODULO_ISCRIZIONE!#REF!)","v":{"$error":"#REF!"}}]
[{"$f":"IF(MODULO_ISCRIZIONE!#REF!=\"\",\"\",MODULO_ISCRIZIONE!#REF!)","v":{"$error":"#REF!"}},{"$f":"IF(MODULO_ISCRIZIONE!#REF!=\"\",\"\",MODULO_ISCRIZIONE!#REF!)","v":{"$error":"#REF!"}},{"$f":"IF(MODULO_ISCRIZIONE!D31=\"\",\"\",MODULO_ISCRIZIONE!D31)","v":""},"=SE('modulo iscrizione'!D8=\"\";\"\";maiusc('modulo iscrizione'!D8))",{"$f":"IF(MODULO_ISCRIZIONE!E31=\"\",\"\",MODULO_ISCRIZIONE!E31)","v":""},{"$f":"IF(MODULO_ISCRIZIONE!H31=\"\",\"\",MODULO_ISCRIZIONE!H31)","v":""},{"$f":"IF(MODULO_ISCRIZIONE!I31=\"\",\"\",MODULO_ISCRIZIONE!I31)","v":""},{"$f":"IF(MODULO_ISCRIZIONE!#REF!=\"\",\"\",MODULO_ISCRIZIONE!#REF!)","v":{"$error":"#REF!"}},{"$f":"IF(MODULO_ISCRIZIONE!#REF!=\"\",\"\",MODULO_ISCRIZIONE!#REF!)","v":{"$error":"#REF!"}}]
[{"$f":"IF(MODULO_ISCRIZIONE!#REF!=\"\",\"\",MODULO_ISCRIZIONE!#REF!)","v":{"$error":"#REF!"}},{"$f":"IF(MODULO_ISCRIZIONE!#REF!=\"\",\"\",MODULO_ISCRIZIONE!#REF!)","v":{"$error":"#REF!"}},{"$f":"IF(MODULO_ISCRIZIONE!D32=\"\",\"\",MODULO_ISCRIZIONE!D32)","v":""},"=SE('modulo iscrizione'!D8=\"\";\"\";maiusc('modulo iscrizione'!D8))",{"$f":"IF(MODULO_ISCRIZIONE!E32=\"\",\"\",MODULO_ISCRIZIONE!E32)","v":""},{"$f":"IF(MODULO_ISCRIZIONE!H32=\"\",\"\",MODULO_ISCRIZIONE!H32)","v":""},{"$f":"IF(MODULO_ISCRIZIONE!I32=\"\",\"\",MODULO_ISCRIZIONE!I32)","v":""},{"$f":"IF(MODULO_ISCRIZIONE!#REF!=\"\",\"\",MODULO_ISCRIZIONE!#REF!)","v":{"$error":"#REF!"}},{"$f":"IF(MODULO_ISCRIZIONE!#REF!=\"\",\"\",MODULO_ISCRIZIONE!#REF!)","v":{"$error":"#REF!"}}]
[{"$f":"IF(MODULO_ISCRIZIONE!#REF!=\"\",\"\",MODULO_ISCRIZIONE!#REF!)","v":{"$error":"#REF!"}},{"$f":"IF(MODULO_ISCRIZIONE!#REF!=\"\",\"\",MODULO_ISCRIZIONE!#REF!)","v":{"$error":"#REF!"}},{"$f":"IF(MODULO_ISCRIZIONE!D33=\"\",\"\",MODULO_ISCRIZIONE!D33)","v":""},"=SE('modulo iscrizione'!D8=\"\";\"\";maiusc('modulo iscrizione'!D8))",{"$f":"IF(MODULO_ISCRIZIONE!E33=\"\",\"\",MODULO_ISCRIZIONE!E33)","v":""},{"$f":"IF(MODULO_ISCRIZIONE!H33=\"\",\"\",MODULO_ISCRIZIONE!H33)","v":""},{"$f":"IF(MODULO_ISCRIZIONE!I33=\"\",\"\",MODULO_ISCRIZIONE!I33)","v":""},{"$f":"IF(MODULO_ISCRIZIONE!#REF!=\"\",\"\",MODULO_ISCRIZIONE!#REF!)","v":{"$error":"#REF!"}},{"$f":"IF(MODULO_ISCRIZIONE!#REF!=\"\",\"\",MODULO_ISCRIZIONE!#REF!)","v":{"$error":"#REF!"}}]
[{"$f":"IF(MODULO_ISCRIZIONE!#REF!=\"\",\"\",MODULO_ISCRIZIONE!#REF!)","v":{"$error":"#REF!"}},{"$f":"IF(MODULO_ISCRIZIONE!#REF!=\"\",\"\",MODULO_ISCRIZIONE!#REF!)","v":{"$error":"#REF!"}},{"$f":"IF(MODULO_ISCRIZIONE!D34=\"\",\"\",MODULO_ISCRIZIONE!D34)","v":""},"=SE('modulo iscrizione'!D8=\"\";\"\";maiusc('modulo iscrizione'!D8))",{"$f":"IF(MODULO_ISCRIZIONE!E34=\"\",\"\",MODULO_ISCRIZIONE!E34)","v":""},{"$f":"IF(MODULO_ISCRIZIONE!H34=\"\",\"\",MODULO_ISCRIZIONE!H34)","v":""},{"$f":"IF(MODULO_ISCRIZIONE!I34=\"\",\"\",MODULO_ISCRIZIONE!I34)","v":""},{"$f":"IF(MODULO_ISCRIZIONE!#REF!=\"\",\"\",MODULO_ISCRIZIONE!#REF!)","v":{"$error":"#REF!"}},{"$f":"IF(MODULO_ISCRIZIONE!#REF!=\"\",\"\",MODULO_ISCRIZIONE!#REF!)","v":{"$error":"#REF!"}}]
[{"$f":"IF(MODULO_ISCRIZIONE!#REF!=\"\",\"\",MODULO_ISCRIZIONE!#REF!)","v":{"$error":"#REF!"}},{"$f":"IF(MODULO_ISCRIZIONE!#REF!=\"\",\"\",MODULO_ISCRIZIONE!#REF!)","v":{"$error":"#REF!"}},{"$f":"IF(MODULO_ISCRIZIONE!D35=\"\",\"\",MODULO_ISCRIZIONE!D35)","v":""},"=SE('modulo iscrizione'!D8=\"\";\"\";maiusc('modulo iscrizione'!D8))",{"$f":"IF(MODULO_ISCRIZIONE!E35=\"\",\"\",MODULO_ISCRIZIONE!E35)","v":""},{"$f":"IF(MODULO_ISCRIZIONE!H35=\"\",\"\",MODULO_ISCRIZIONE!H35)","v":""},{"$f":"IF(MODULO_ISCRIZIONE!I35=\"\",\"\",MODULO_ISCRIZIONE!I35)","v":""},{"$f":"IF(MODULO_ISCRIZIONE!#REF!=\"\",\"\",MODULO_ISCRIZIONE!#REF!)","v":{"$error":"#REF!"}},{"$f":"IF(MODULO_ISCRIZIONE!#REF!=\"\",\"\",MODULO_ISCRIZIONE!#REF!)","v":{"$error":"#REF!"}}]
[{"$f":"IF(MODULO_ISCRIZIONE!#REF!=\"\",\"\",MODULO_ISCRIZIONE!#REF!)","v":{"$error":"#REF!"}},{"$f":"IF(MODULO_ISCRIZIONE!#REF!=\"\",\"\",MODULO_ISCRIZIONE!#REF!)","v":{"$error":"#REF!"}},{"$f":"IF(MODULO_ISCRIZIONE!D36=\"\",\"\",MODULO_ISCRIZIONE!D36)","v":""},"=SE('modulo iscrizione'!D8=\"\";\"\";maiusc('modulo iscrizione'!D8))",{"$f":"IF(MODULO_ISCRIZIONE!E36=\"\",\"\",MODULO_ISCRIZIONE!E36)","v":""},{"$f":"IF(MODULO_ISCRIZIONE!H36=\"\",\"\",MODULO_ISCRIZIONE!H36)","v":""},{"$f":"IF(MODULO_ISCRIZIONE!I36=\"\",\"\",MODULO_ISCRIZIONE!I36)","v":""},{"$f":"IF(MODULO_ISCRIZIONE!#REF!=\"\",\"\",MODULO_ISCRIZIONE!#REF!)","v":{"$error":"#REF!"}},{"$f":"IF(MODULO_ISCRIZIONE!#REF!=\"\",\"\",MODULO_ISCRIZIONE!#REF!)","v":{"$error":"#REF!"}}]
[{"$f":"IF(MODULO_ISCRIZIONE!#REF!=\"\",\"\",MODULO_ISCRIZIONE!#REF!)","v":{"$error":"#REF!"}},{"$f":"IF(MODULO_ISCRIZIONE!#REF!=\"\",\"\",MODULO_ISCRIZIONE!#REF!)","v":{"$error":"#REF!"}},{"$f":"IF(MODULO_ISCRIZIONE!D37=\"\",\"\",MODULO_ISCRIZIONE!D37)","v":""},"=SE('modulo iscrizione'!D8=\"\";\"\";maiusc('modulo iscrizione'!D8))",{"$f":"IF(MODULO_ISCRIZIONE!E37=\"\",\"\",MODULO_ISCRIZIONE!E37)","v":""},{"$f":"IF(MODULO_ISCRIZIONE!H37=\"\",\"\",MODULO_ISCRIZIONE!H37)","v":""},{"$f":"IF(MODULO_ISCRIZIONE!I37=\"\",\"\",MODULO_ISCRIZIONE!I37)","v":""},{"$f":"IF(MODULO_ISCRIZIONE!#REF!=\"\",\"\",MODULO_ISCRIZIONE!#REF!)","v":{"$error":"#REF!"}},{"$f":"IF(MODULO_ISCRIZIONE!#REF!=\"\",\"\",MODULO_ISCRIZIONE!#REF!)","v":{"$error":"#REF!"}}]
[{"$f":"IF(MODULO_ISCRIZIONE!#REF!=\"\",\"\",MODULO_ISCRIZIONE!#REF!)","v":{"$error":"#REF!"}},{"$f":"IF(MODULO_ISCRIZIONE!#REF!=\"\",\"\",MODULO_ISCRIZIONE!#REF!)","v":{"$error":"#REF!"}},{"$f":"IF(MODULO_ISCRIZIONE!D38=\"\",\"\",MODULO_ISCRIZIONE!D38)","v":""},"=SE('modulo iscrizione'!D8=\"\";\"\";maiusc('modulo iscrizione'!D8))",{"$f":"IF(MODULO_ISCRIZIONE!E38=\"\",\"\",MODULO_ISCRIZIONE!E38)","v":""},{"$f":"IF(MODULO_ISCRIZIONE!H38=\"\",\"\",MODULO_ISCRIZIONE!H38)","v":""},{"$f":"IF(MODULO_ISCRIZIONE!I38=\"\",\"\",MODULO_ISCRIZIONE!I38)","v":""},{"$f":"IF(MODULO_ISCRIZIONE!#REF!=\"\",\"\",MODULO_ISCRIZIONE!#REF!)","v":{"$error":"#REF!"}},{"$f":"IF(MODULO_ISCRIZIONE!#REF!=\"\",\"\",MODULO_ISCRIZIONE!#REF!)","v":{"$error":"#REF!"}}]
[{"$f":"IF(MODULO_ISCRIZIONE!#REF!=\"\",\"\",MODULO_ISCRIZIONE!#REF!)","v":{"$error":"#REF!"}},{"$f":"IF(MODULO_ISCRIZIONE!#REF!=\"\",\"\",MODULO_ISCRIZIONE!#REF!)","v":{"$error":"#REF!"}},{"$f":"IF(MODULO_ISCRIZIONE!D39=\"\",\"\",MODULO_ISCRIZIONE!D39)","v":""},"=SE('modulo iscrizione'!D8=\"\";\"\";maiusc('modulo iscrizione'!D8))",{"$f":"IF(MODULO_ISCRIZIONE!E39=\"\",\"\",MODULO_ISCRIZIONE!E39)","v":""},{"$f":"IF(MODULO_ISCRIZIONE!H39=\"\",\"\",MODULO_ISCRIZIONE!H39)","v":""},{"$f":"IF(MODULO_ISCRIZIONE!I39=\"\",\"\",MODULO_ISCRIZIONE!I39)","v":""},{"$f":"IF(MODULO_ISCRIZIONE!#REF!=\"\",\"\",MODULO_ISCRIZIONE!#REF!)","v":{"$error":"#REF!"}},{"$f":"IF(MODULO_ISCRIZIONE!#REF!=\"\",\"\",MODULO_ISCRIZIONE!#REF!)","v":{"$error":"#REF!"}}]
[{"$f":"IF(MODULO_ISCRIZIONE!#REF!=\"\",\"\",MODULO_ISCRIZIONE!#REF!)","v":{"$error":"#REF!"}},{"$f":"IF(MODULO_ISCRIZIONE!#REF!=\"\",\"\",MODULO_ISCRIZIONE!#REF!)","v":{"$error":"#REF!"}},{"$f":"IF(MODULO_ISCRIZIONE!D40=\"\",\"\",MODULO_ISCRIZIONE!D40)","v":""},"=SE('modulo iscrizione'!D8=\"\";\"\";maiusc('modulo iscrizione'!D8))",{"$f":"IF(MODULO_ISCRIZIONE!E40=\"\",\"\",MODULO_ISCRIZIONE!E40)","v":""},{"$f":"IF(MODULO_ISCRIZIONE!H40=\"\",\"\",MODULO_ISCRIZIONE!H40)","v":""},{"$f":"IF(MODULO_ISCRIZIONE!I40=\"\",\"\",MODULO_ISCRIZIONE!I40)","v":""},{"$f":"IF(MODULO_ISCRIZIONE!#REF!=\"\",\"\",MODULO_ISCRIZIONE!#REF!)","v":{"$error":"#REF!"}},{"$f":"IF(MODULO_ISCRIZIONE!#REF!=\"\",\"\",MODULO_ISCRIZIONE!#REF!)","v":{"$error":"#REF!"}}]
[{"$f":"IF(MODULO_ISCRIZIONE!#REF!=\"\",\"\",MODULO_ISCRIZIONE!#REF!)","v":{"$error":"#REF!"}},{"$f":"IF(MODULO_ISCRIZIONE!#REF!=\"\",\"\",MODULO_ISCRIZIONE!#REF!)","v":{"$error":"#REF!"}},{"$f":"IF(MODULO_ISCRIZIONE!D41=\"\",\"\",MODULO_ISCRIZIONE!D41)","v":""},"=SE('modulo iscrizione'!D8=\"\";\"\";maiusc('modulo iscrizione'!D8))",{"$f":"IF(MODULO_ISCRIZIONE!E41=\"\",\"\",MODULO_ISCRIZIONE!E41)","v":""},{"$f":"IF(MODULO_ISCRIZIONE!H41=\"\",\"\",MODULO_ISCRIZIONE!H41)","v":""},{"$f":"IF(MODULO_ISCRIZIONE!I41=\"\",\"\",MODULO_ISCRIZIONE!I41)","v":""},{"$f":"IF(MODULO_ISCRIZIONE!#REF!=\"\",\"\",MODULO_ISCRIZIONE!#REF!)","v":{"$error":"#REF!"}},{"$f":"IF(MODULO_ISCRIZIONE!#REF!=\"\",\"\",MODULO_ISCRIZIONE!#REF!)","v":{"$error":"#REF!"}}]
[{"$f":"IF(MODULO_ISCRIZIONE!#REF!=\"\",\"\",MODULO_ISCRIZIONE!#REF!)","v":{"$error":"#REF!"}},{"$f":"IF(MODULO_ISCRIZIONE!#REF!=\"\",\"\",MODULO_ISCRIZIONE!#REF!)","v":{"$error":"#REF!"}},{"$f":"IF(MODULO_ISCRIZIONE!D42=\"\",\"\",MODULO_ISCRIZIONE!D42)","v":""},"=SE('modulo iscrizione'!D8=\"\";\"\";maiusc('modulo iscrizione'!D8))",{"$f":"IF(MODULO_ISCRIZIONE!E42=\"\",\"\",MODULO_ISCRIZIONE!E42)","v":""},{"$f":"IF(MODULO_ISCRIZIONE!H42=\"\",\"\",MODULO_ISCRIZIONE!H42)","v":""},{"$f":"IF(MODULO_ISCRIZIONE!I42=\"\",\"\",MODULO_ISCRIZIONE!I42)","v":""},{"$f":"IF(MODULO_ISCRIZIONE!#REF!=\"\",\"\",MODULO_ISCRIZIONE!#REF!)","v":{"$error":"#REF!"}},{"$f":"IF(MODULO_ISCRIZIONE!#REF!=\"\",\"\",MODULO_ISCRIZIONE!#REF!)","v":{"$error":"#REF!"}}]
[{"$f":"IF(MODULO_ISCRIZIONE!#REF!=\"\",\"\",MODULO_ISCRIZIONE!#REF!)","v":{"$error":"#REF!"}},{"$f":"IF(MODULO_ISCRIZIONE!#REF!=\"\",\"\",MODULO_ISCRIZIONE!#REF!)","v":{"$error":"#REF!"}},{"$f":"IF(MODULO_ISCRIZIONE!D43=\"\",\"\",MODULO_ISCRIZIONE!D43)","v":""},"=SE('modulo iscrizione'!D8=\"\";\"\";maiusc('modulo iscrizione'!D8))",{"$f":"IF(MODULO_ISCRIZIONE!E43=\"\",\"\",MODULO_ISCRIZIONE!E43)","v":""},{"$f":"IF(MODULO_ISCRIZIONE!H43=\"\",\"\",MODULO_ISCRIZIONE!H43)","v":""},{"$f":"IF(MODULO_ISCRIZIONE!I43=\"\",\"\",MODULO_ISCRIZIONE!I43)","v":""},{"$f":"IF(MODULO_ISCRIZIONE!#REF!=\"\",\"\",MODULO_ISCRIZIONE!#REF!)","v":{"$error":"#REF!"}},{"$f":"IF(MODULO_ISCRIZIONE!#REF!=\"\",\"\",MODULO_ISCRIZIONE!#REF!)","v":{"$error":"#REF!"}}]
[{"$f":"IF(MODULO_ISCRIZIONE!#REF!=\"\",\"\",MODULO_ISCRIZIONE!#REF!)","v":{"$error":"#REF!"}},{"$f":"IF(MODULO_ISCRIZIONE!#REF!=\"\",\"\",MODULO_ISCRIZIONE!#REF!)","v":{"$error":"#REF!"}},{"$f":"IF(MODULO_ISCRIZIONE!D44=\"\",\"\",MODULO_ISCRIZIONE!D44)","v":""},"=SE('modulo iscrizione'!D8=\"\";\"\";maiusc('modulo iscrizione'!D8))",{"$f":"IF(MODULO_ISCRIZIONE!E44=\"\",\"\",MODULO_ISCRIZIONE!E44)","v":""},{"$f":"IF(MODULO_ISCRIZIONE!H44=\"\",\"\",MODULO_ISCRIZIONE!H44)","v":""},{"$f":"IF(MODULO_ISCRIZIONE!I44=\"\",\"\",MODULO_ISCRIZIONE!I44)","v":""},{"$f":"IF(MODULO_ISCRIZIONE!#REF!=\"\",\"\",MODULO_ISCRIZIONE!#REF!)","v":{"$error":"#REF!"}},{"$f":"IF(MODULO_ISCRIZIONE!#REF!=\"\",\"\",MODULO_ISCRIZIONE!#REF!)","v":{"$error":"#REF!"}}]
[{"$f":"IF(MODULO_ISCRIZIONE!#REF!=\"\",\"\",MODULO_ISCRIZIONE!#REF!)","v":{"$error":"#REF!"}},{"$f":"IF(MODULO_ISCRIZIONE!#REF!=\"\",\"\",MODULO_ISCRIZIONE!#REF!)","v":{"$error":"#REF!"}},{"$f":"IF(MODULO_ISCRIZIONE!D45=\"\",\"\",MODULO_ISCRIZIONE!D45)","v":""},"=SE('modulo iscrizione'!D8=\"\";\"\";maiusc('modulo iscrizione'!D8))",{"$f":"IF(MODULO_ISCRIZIONE!E45=\"\",\"\",MODULO_ISCRIZIONE!E45)","v":""},{"$f":"IF(MODULO_ISCRIZIONE!H45=\"\",\"\",MODULO_ISCRIZIONE!H45)","v":""},{"$f":"IF(MODULO_ISCRIZIONE!I45=\"\",\"\",MODULO_ISCRIZIONE!I45)","v":""},{"$f":"IF(MODULO_ISCRIZIONE!#REF!=\"\",\"\",MODULO_ISCRIZIONE!#REF!)","v":{"$error":"#REF!"}},{"$f":"IF(MODULO_ISCRIZIONE!#REF!=\"\",\"\",MODULO_ISCRIZIONE!#REF!)","v":{"$error":"#REF!"}}]
[{"$f":"IF(MODULO_ISCRIZIONE!#REF!=\"\",\"\",MODULO_ISCRIZIONE!#REF!)","v":{"$error":"#REF!"}},{"$f":"IF(MODULO_ISCRIZIONE!#REF!=\"\",\"\",MODULO_ISCRIZIONE!#REF!)","v":{"$error":"#REF!"}},{"$f":"IF(MODULO_ISCRIZIONE!D46=\"\",\"\",MODULO_ISCRIZIONE!D46)","v":""},"=SE('modulo iscrizione'!D8=\"\";\"\";maiusc('modulo iscrizione'!D8))",{"$f":"IF(MODULO_ISCRIZIONE!E46=\"\",\"\",MODULO_ISCRIZIONE!E46)","v":""},{"$f":"IF(MODULO_ISCRIZIONE!H46=\"\",\"\",MODULO_ISCRIZIONE!H46)","v":""},{"$f":"IF(MODULO_ISCRIZIONE!I46=\"\",\"\",MODULO_ISCRIZIONE!I46)","v":""},{"$f":"IF(MODULO_ISCRIZIONE!#REF!=\"\",\"\",MODULO_ISCRIZIONE!#REF!)","v":{"$error":"#REF!"}},{"$f":"IF(MODULO_ISCRIZIONE!#REF!=\"\",\"\",MODULO_ISCRIZIONE!#REF!)","v":{"$error":"#REF!"}}]
[{"$f":"IF(MODULO_ISCRIZIONE!#REF!=\"\",\"\",MODULO_ISCRIZIONE!#REF!)","v":{"$error":"#REF!"}},{"$f":"IF(MODULO_ISCRIZIONE!#REF!=\"\",\"\",MODULO_ISCRIZIONE!#REF!)","v":{"$error":"#REF!"}},{"$f":"IF(MODULO_ISCRIZIONE!D47=\"\",\"\",MODULO_ISCRIZIONE!D47)","v":""},"=SE('modulo iscrizione'!D8=\"\";\"\";maiusc('modulo iscrizione'!D8))",{"$f":"IF(MODULO_ISCRIZIONE!E47=\"\",\"\",MODULO_ISCRIZIONE!E47)","v":""},{"$f":"IF(MODULO_ISCRIZIONE!H47=\"\",\"\",MODULO_ISCRIZIONE!H47)","v":""},{"$f":"IF(MODULO_ISCRIZIONE!I47=\"\",\"\",MODULO_ISCRIZIONE!I47)","v":""},{"$f":"IF(MODULO_ISCRIZIONE!#REF!=\"\",\"\",MODULO_ISCRIZIONE!#REF!)","v":{"$error":"#REF!"}},{"$f":"IF(MODULO_ISCRIZIONE!#REF!=\"\",\"\",MODULO_ISCRIZIONE!#REF!)","v":{"$error":"#REF!"}}]
[{"$f":"IF(MODULO_ISCRIZIONE!#REF!=\"\",\"\",MODULO_ISCRIZIONE!#REF!)","v":{"$error":"#REF!"}},{"$f":"IF(MODULO_ISCRIZIONE!#REF!=\"\",\"\",MODULO_ISCRIZIONE!#REF!)","v":{"$error":"#REF!"}},{"$f":"IF(MODULO_ISCRIZIONE!D48=\"\",\"\",MODULO_ISCRIZIONE!D48)","v":""},"=SE('modulo iscrizione'!D8=\"\";\"\";maiusc('modulo iscrizione'!D8))",{"$f":"IF(MODULO_ISCRIZIONE!E48=\"\",\"\",MODULO_ISCRIZIONE!E48)","v":""},{"$f":"IF(MODULO_ISCRIZIONE!H48=\"\",\"\",MODULO_ISCRIZIONE!H48)","v":""},{"$f":"IF(MODULO_ISCRIZIONE!I48=\"\",\"\",MODULO_ISCRIZIONE!I48)","v":""},{"$f":"IF(MODULO_ISCRIZIONE!#REF!=\"\",\"\",MODULO_ISCRIZIONE!#REF!)","v":{"$error":"#REF!"}},{"$f":"IF(MODULO_ISCRIZIONE!#REF!=\"\",\"\",MODULO_ISCRIZIONE!#REF!)","v":{"$error":"#REF!"}}]
[{"$f":"IF(MODULO_ISCRIZIONE!#REF!=\"\",\"\",MODULO_ISCRIZIONE!#REF!)","v":{"$error":"#REF!"}},{"$f":"IF(MODULO_ISCRIZIONE!#REF!=\"\",\"\",MODULO_ISCRIZIONE!#REF!)","v":{"$error":"#REF!"}},{"$f":"IF(MODULO_ISCRIZIONE!D49=\"\",\"\",MODULO_ISCRIZIONE!D49)","v":""},"=SE('modulo iscrizione'!D8=\"\";\"\";maiusc('modulo iscrizione'!D8))",{"$f":"IF(MODULO_ISCRIZIONE!E49=\"\",\"\",MODULO_ISCRIZIONE!E49)","v":""},{"$f":"IF(MODULO_ISCRIZIONE!H49=\"\",\"\",MODULO_ISCRIZIONE!H49)","v":""},{"$f":"IF(MODULO_ISCRIZIONE!I49=\"\",\"\",MODULO_ISCRIZIONE!I49)","v":""},{"$f":"IF(MODULO_ISCRIZIONE!#REF!=\"\",\"\",MODULO_ISCRIZIONE!#REF!)","v":{"$error":"#REF!"}},{"$f":"IF(MODULO_ISCRIZIONE!#REF!=\"\",\"\",MODULO_ISCRIZIONE!#REF!)","v":{"$error":"#REF!"}}]
[{"$f":"IF(MODULO_ISCRIZIONE!#REF!=\"\",\"\",MODULO_ISCRIZIONE!#REF!)","v":{"$error":"#REF!"}},{"$f":"IF(MODULO_ISCRIZIONE!#REF!=\"\",\"\",MODULO_ISCRIZIONE!#REF!)","v":{"$error":"#REF!"}},{"$f":"IF(MODULO_ISCRIZIONE!D50=\"\",\"\",MODULO_ISCRIZIONE!D50)","v":""},"=SE('modulo iscrizione'!D8=\"\";\"\";maiusc('modulo iscrizione'!D8))",{"$f":"IF(MODULO_ISCRIZIONE!E50=\"\",\"\",MODULO_ISCRIZIONE!E50)","v":""},{"$f":"IF(MODULO_ISCRIZIONE!H50=\"\",\"\",MODULO_ISCRIZIONE!H50)","v":""},{"$f":"IF(MODULO_ISCRIZIONE!I50=\"\",\"\",MODULO_ISCRIZIONE!I50)","v":""},{"$f":"IF(MODULO_ISCRIZIONE!#REF!=\"\",\"\",MODULO_ISCRIZIONE!#REF!)","v":{"$error":"#REF!"}},{"$f":"IF(MODULO_ISCRIZIONE!#REF!=\"\",\"\",MODULO_ISCRIZIONE!#REF!)","v":{"$error":"#REF!"}}]
[{"$f":"IF(MODULO_ISCRIZIONE!#REF!=\"\",\"\",MODULO_ISCRIZIONE!#REF!)","v":{"$error":"#REF!"}},{"$f":"IF(MODULO_ISCRIZIONE!#REF!=\"\",\"\",MODULO_ISCRIZIONE!#REF!)","v":{"$error":"#REF!"}},{"$f":"IF(MODULO_ISCRIZIONE!D51=\"\",\"\",MODULO_ISCRIZIONE!D51)","v":""},"=SE('modulo iscrizione'!D8=\"\";\"\";maiusc('modulo iscrizione'!D8))",{"$f":"IF(MODULO_ISCRIZIONE!E51=\"\",\"\",MODULO_ISCRIZIONE!E51)","v":""},{"$f":"IF(MODULO_ISCRIZIONE!H51=\"\",\"\",MODULO_ISCRIZIONE!H51)","v":""},{"$f":"IF(MODULO_ISCRIZIONE!I51=\"\",\"\",MODULO_ISCRIZIONE!I51)","v":""},{"$f":"IF(MODULO_ISCRIZIONE!#REF!=\"\",\"\",MODULO_ISCRIZIONE!#REF!)","v":{"$error":"#REF!"}},{"$f":"IF(MODULO_ISCRIZIONE!#REF!=\"\",\"\",MODULO_ISCRIZIONE!#REF!)","v":{"$error":"#REF!"}}]
[{"$f":"IF(MODULO_ISCRIZIONE!#REF!=\"\",\"\",MODULO_ISCRIZIONE!#REF!)","v":{"$error":"#REF!"}},{"$f":"IF(MODULO_ISCRIZIONE!#REF!=\"\",\"\",MODULO_ISCRIZIONE!#REF!)","v":{"$error":"#REF!"}},{"$f":"IF(MODULO_ISCRIZIONE!D52=\"\",\"\",MODULO_ISCRIZIONE!D52)","v":""},"=SE('modulo iscrizione'!D8=\"\";\"\";maiusc('modulo iscrizione'!D8))",{"$f":"IF(MODULO_ISCRIZIONE!E52=\"\",\"\",MODULO_ISCRIZIONE!E52)","v":""},{"$f":"IF(MODULO_ISCRIZIONE!H52=\"\",\"\",MODULO_ISCRIZIONE!H52)","v":""},{"$f":"IF(MODULO_ISCRIZIONE!I52=\"\",\"\",MODULO_ISCRIZIONE!I52)","v":""},{"$f":"IF(MODULO_ISCRIZIONE!#REF!=\"\",\"\",MODULO_ISCRIZIONE!#REF!)","v":{"$error":"#REF!"}},{"$f":"IF(MODULO_ISCRIZIONE!#REF!=\"\",\"\",MODULO_ISCRIZIONE!#REF!)","v":{"$error":"#REF!"}}]
[{"$f":"IF(MODULO_ISCRIZIONE!#REF!=\"\",\"\",MODULO_ISCRIZIONE!#REF!)","v":{"$error":"#REF!"}},{"$f":"IF(MODULO_ISCRIZIONE!#REF!=\"\",\"\",MODULO_ISCRIZIONE!#REF!)","v":{"$error":"#REF!"}},{"$f":"IF(MODULO_ISCRIZIONE!D58=\"\",\"\",MODULO_ISCRIZIONE!D58)","v":""},"=SE('modulo iscrizione'!D8=\"\";\"\";maiusc('modulo iscrizione'!D8))",{"$f":"IF(MODULO_ISCRIZIONE!E58=\"\",\"\",MODULO_ISCRIZIONE!E58)","v":""},{"$f":"IF(MODULO_ISCRIZIONE!H58=\"\",\"\",MODULO_ISCRIZIONE!H58)","v":""},{"$f":"IF(MODULO_ISCRIZIONE!I58=\"\",\"\",MODULO_ISCRIZIONE!I58)","v":""},{"$f":"IF(MODULO_ISCRIZIONE!#REF!=\"\",\"\",MODULO_ISCRIZIONE!#REF!)","v":{"$error":"#REF!"}},{"$f":"IF(MODULO_ISCRIZIONE!#REF!=\"\",\"\",MODULO_ISCRIZIONE!#REF!)","v":{"$error":"#REF!"}}]
[{"$f":"IF(MODULO_ISCRIZIONE!#REF!=\"\",\"\",MODULO_ISCRIZIONE!#REF!)","v":{"$error":"#REF!"}},{"$f":"IF(MODULO_ISCRIZIONE!#REF!=\"\",\"\",MODULO_ISCRIZIONE!#REF!)","v":{"$error":"#REF!"}},{"$f":"IF(MODULO_ISCRIZIONE!D59=\"\",\"\",MODULO_ISCRIZIONE!D59)","v":""},"=SE('modulo iscrizione'!D8=\"\";\"\";maiusc('modulo iscrizione'!D8))",{"$f":"IF(MODULO_ISCRIZIONE!E59=\"\",\"\",MODULO_ISCRIZIONE!E59)","v":""},{"$f":"IF(MODULO_ISCRIZIONE!H59=\"\",\"\",MODULO_ISCRIZIONE!H59)","v":""},{"$f":"IF(MODULO_ISCRIZIONE!I59=\"\",\"\",MODULO_ISCRIZIONE!I59)","v":""},{"$f":"IF(MODULO_ISCRIZIONE!#REF!=\"\",\"\",MODULO_ISCRIZIONE!#REF!)","v":{"$error":"#REF!"}},{"$f":"IF(MODULO_ISCRIZIONE!#REF!=\"\",\"\",MODULO_ISCRIZIONE!#REF!)","v":{"$error":"#REF!"}}]
[{"$f":"IF(MODULO_ISCRIZIONE!#REF!=\"\",\"\",MODULO_ISCRIZIONE!#REF!)","v":{"$error":"#REF!"}},{"$f":"IF(MODULO_ISCRIZIONE!#REF!=\"\",\"\",MODULO_ISCRIZIONE!#REF!)","v":{"$error":"#REF!"}},{"$f":"IF(MODULO_ISCRIZIONE!D60=\"\",\"\",MODULO_ISCRIZIONE!D60)","v":""},"=SE('modulo iscrizione'!D8=\"\";\"\";maiusc('modulo iscrizione'!D8))",{"$f":"IF(MODULO_ISCRIZIONE!E60=\"\",\"\",MODULO_ISCRIZIONE!E60)","v":""},{"$f":"IF(MODULO_ISCRIZIONE!H60=\"\",\"\",MODULO_ISCRIZIONE!H60)","v":""},{"$f":"IF(MODULO_ISCRIZIONE!I60=\"\",\"\",MODULO_ISCRIZIONE!I60)","v":""},{"$f":"IF(MODULO_ISCRIZIONE!#REF!=\"\",\"\",MODULO_ISCRIZIONE!#REF!)","v":{"$error":"#REF!"}},{"$f":"IF(MODULO_ISCRIZIONE!#REF!=\"\",\"\",MODULO_ISCRIZIONE!#REF!)","v":{"$error":"#REF!"}}]
[{"$f":"IF(MODULO_ISCRIZIONE!#REF!=\"\",\"\",MODULO_ISCRIZIONE!#REF!)","v":{"$error":"#REF!"}},{"$f":"IF(MODULO_ISCRIZIONE!#REF!=\"\",\"\",MODULO_ISCRIZIONE!#REF!)","v":{"$error":"#REF!"}},{"$f":"IF(MODULO_ISCRIZIONE!D61=\"\",\"\",MODULO_ISCRIZIONE!D61)","v":""},"=SE('modulo iscrizione'!D8=\"\";\"\";maiusc('modulo iscrizione'!D8))",{"$f":"IF(MODULO_ISCRIZIONE!E61=\"\",\"\",MODULO_ISCRIZIONE!E61)","v":""},{"$f":"IF(MODULO_ISCRIZIONE!H61=\"\",\"\",MODULO_ISCRIZIONE!H61)","v":""},{"$f":"IF(MODULO_ISCRIZIONE!I61=\"\",\"\",MODULO_ISCRIZIONE!I61)","v":""},{"$f":"IF(MODULO_ISCRIZIONE!#REF!=\"\",\"\",MODULO_ISCRIZIONE!#REF!)","v":{"$error":"#REF!"}},{"$f":"IF(MODULO_ISCRIZIONE!#REF!=\"\",\"\",MODULO_ISCRIZIONE!#REF!)","v":{"$error":"#REF!"}}]
[{"$f":"IF(MODULO_ISCRIZIONE!#REF!=\"\",\"\",MODULO_ISCRIZIONE!#REF!)","v":{"$error":"#REF!"}},{"$f":"IF(MODULO_ISCRIZIONE!#REF!=\"\",\"\",MODULO_ISCRIZIONE!#REF!)","v":{"$error":"#REF!"}},{"$f":"IF(MODULO_ISCRIZIONE!D62=\"\",\"\",MODULO_ISCRIZIONE!D62)","v":""},"=SE('modulo iscrizione'!D8=\"\";\"\";maiusc('modulo iscrizione'!D8))",{"$f":"IF(MODULO_ISCRIZIONE!E62=\"\",\"\",MODULO_ISCRIZIONE!E62)","v":""},{"$f":"IF(MODULO_ISCRIZIONE!H62=\"\",\"\",MODULO_ISCRIZIONE!H62)","v":""},{"$f":"IF(MODULO_ISCRIZIONE!I62=\"\",\"\",MODULO_ISCRIZIONE!I62)","v":""},{"$f":"IF(MODULO_ISCRIZIONE!#REF!=\"\",\"\",MODULO_ISCRIZIONE!#REF!)","v":{"$error":"#REF!"}},{"$f":"IF(MODULO_ISCRIZIONE!#REF!=\"\",\"\",MODULO_ISCRIZIONE!#REF!)","v":{"$error":"#REF!"}}]
[{"$f":"IF(MODULO_ISCRIZIONE!#REF!=\"\",\"\",MODULO_ISCRIZIONE!#REF!)","v":{"$error":"#REF!"}},{"$f":"IF(MODULO_ISCRIZIONE!#REF!=\"\",\"\",MODULO_ISCRIZIONE!#REF!)","v":{"$error":"#REF!"}},{"$f":"IF(MODULO_ISCRIZIONE!D63=\"\",\"\",MODULO_ISCRIZIONE!D63)","v":""},"=SE('modulo iscrizione'!D8=\"\";\"\";maiusc('modulo iscrizione'!D8))",{"$f":"IF(MODULO_ISCRIZIONE!E63=\"\",\"\",MODULO_ISCRIZIONE!E63)","v":""},{"$f":"IF(MODULO_ISCRIZIONE!H63=\"\",\"\",MODULO_ISCRIZIONE!H63)","v":""},{"$f":"IF(MODULO_ISCRIZIONE!I63=\"\",\"\",MODULO_ISCRIZIONE!I63)","v":""},{"$f":"IF(MODULO_ISCRIZIONE!#REF!=\"\",\"\",MODULO_ISCRIZIONE!#REF!)","v":{"$error":"#REF!"}},{"$f":"IF(MODULO_ISCRIZIONE!#REF!=\"\",\"\",MODULO_ISCRIZIONE!#REF!)","v":{"$error":"#REF!"}}]
[{"$f":"IF(MODULO_ISCRIZIONE!#REF!=\"\",\"\",MODULO_ISCRIZIONE!#REF!)","v":{"$error":"#REF!"}},{"$f":"IF(MODULO_ISCRIZIONE!#REF!=\"\",\"\",MODULO_ISCRIZIONE!#REF!)","v":{"$error":"#REF!"}},{"$f":"IF(MODULO_ISCRIZIONE!D64=\"\",\"\",MODULO_ISCRIZIONE!D64)","v":""},"=SE('modulo iscrizione'!D8=\"\";\"\";maiusc('modulo iscrizione'!D8))",{"$f":"IF(MODULO_ISCRIZIONE!E64=\"\",\"\",MODULO_ISCRIZIONE!E64)","v":""},{"$f":"IF(MODULO_ISCRIZIONE!H64=\"\",\"\",MODULO_ISCRIZIONE!H64)","v":""},{"$f":"IF(MODULO_ISCRIZIONE!I64=\"\",\"\",MODULO_ISCRIZIONE!I64)","v":""},{"$f":"IF(MODULO_ISCRIZIONE!#REF!=\"\",\"\",MODULO_ISCRIZIONE!#REF!)","v":{"$error":"#REF!"}},{"$f":"IF(MODULO_ISCRIZIONE!#REF!=\"\",\"\",MODULO_ISCRIZIONE!#REF!)","v":{"$error":"#REF!"}}]
[{"$f":"IF(MODULO_ISCRIZIONE!#REF!=\"\",\"\",MODULO_ISCRIZIONE!#REF!)","v":{"$error":"#REF!"}},{"$f":"IF(MODULO_ISCRIZIONE!#REF!=\"\",\"\",MODULO_ISCRIZIONE!#REF!)","v":{"$error":"#REF!"}},{"$f":"IF(MODULO_ISCRIZIONE!D65=\"\",\"\",MODULO_ISCRIZIONE!D65)","v":""},"=SE('modulo iscrizione'!D8=\"\";\"\";maiusc('modulo iscrizione'!D8))",{"$f":"IF(MODULO_ISCRIZIONE!E65=\"\",\"\",MODULO_ISCRIZIONE!E65)","v":""},{"$f":"IF(MODULO_ISCRIZIONE!H65=\"\",\"\",MODULO_ISCRIZIONE!H65)","v":""},{"$f":"IF(MODULO_ISCRIZIONE!I65=\"\",\"\",MODULO_ISCRIZIONE!I65)","v":""},{"$f":"IF(MODULO_ISCRIZIONE!#REF!=\"\",\"\",MODULO_ISCRIZIONE!#REF!)","v":{"$error":"#REF!"}},{"$f":"IF(MODULO_ISCRIZIONE!#REF!=\"\",\"\",MODULO_ISCRIZIONE!#REF!)","v":{"$error":"#REF!"}}]
[{"$f":"IF(MODULO_ISCRIZIONE!#REF!=\"\",\"\",MODULO_ISCRIZIONE!#REF!)","v":{"$error":"#REF!"}},{"$f":"IF(MODULO_ISCRIZIONE!#REF!=\"\",\"\",MODULO_ISCRIZIONE!#REF!)","v":{"$error":"#REF!"}},{"$f":"IF(MODULO_ISCRIZIONE!D66=\"\",\"\",MODULO_ISCRIZIONE!D66)","v":""},"=SE('modulo iscrizione'!D8=\"\";\"\";maiusc('modulo iscrizione'!D8))",{"$f":"IF(MODULO_ISCRIZIONE!E66=\"\",\"\",MODULO_ISCRIZIONE!E66)","v":""},{"$f":"IF(MODULO_ISCRIZIONE!H66=\"\",\"\",MODULO_ISCRIZIONE!H66)","v":""},{"$f":"IF(MODULO_ISCRIZIONE!I66=\"\",\"\",MODULO_ISCRIZIONE!I66)","v":""},{"$f":"IF(MODULO_ISCRIZIONE!#REF!=\"\",\"\",MODULO_ISCRIZIONE!#REF!)","v":{"$error":"#REF!"}},{"$f":"IF(MODULO_ISCRIZIONE!#REF!=\"\",\"\",MODULO_ISCRIZIONE!#REF!)","v":{"$error":"#REF!"}}]
[{"$f":"IF(MODULO_ISCRIZIONE!#REF!=\"\",\"\",MODULO_ISCRIZIONE!#REF!)","v":{"$error":"#REF!"}},{"$f":"IF(MODULO_ISCRIZIONE!#REF!=\"\",\"\",MODULO_ISCRIZIONE!#REF!)","v":{"$error":"#REF!"}},{"$f":"IF(MODULO_ISCRIZIONE!D67=\"\",\"\",MODULO_ISCRIZIONE!D67)","v":""},"=SE('modulo iscrizione'!D8=\"\";\"\";maiusc('modulo iscrizione'!D8))",{"$f":"IF(MODULO_ISCRIZIONE!E67=\"\",\"\",MODULO_ISCRIZIONE!E67)","v":""},{"$f":"IF(MODULO_ISCRIZIONE!H67=\"\",\"\",MODULO_ISCRIZIONE!H67)","v":""},{"$f":"IF(MODULO_ISCRIZIONE!I67=\"\",\"\",MODULO_ISCRIZIONE!I67)","v":""},{"$f":"IF(MODULO_ISCRIZIONE!#REF!=\"\",\"\",MODULO_ISCRIZIONE!#REF!)","v":{"$error":"#REF!"}},{"$f":"IF(MODULO_ISCRIZIONE!#REF!=\"\",\"\",MODULO_ISCRIZIONE!#REF!)","v":{"$error":"#REF!"}}]
[{"$f":"IF(MODULO_ISCRIZIONE!#REF!=\"\",\"\",MODULO_ISCRIZIONE!#REF!)","v":{"$error":"#REF!"}},{"$f":"IF(MODULO_ISCRIZIONE!#REF!=\"\",\"\",MODULO_ISCRIZIONE!#REF!)","v":{"$error":"#REF!"}},{"$f":"IF(MODULO_ISCRIZIONE!D68=\"\",\"\",MODULO_ISCRIZIONE!D68)","v":""},"=SE('modulo iscrizione'!D8=\"\";\"\";maiusc('modulo iscrizione'!D8))",{"$f":"IF(MODULO_ISCRIZIONE!E68=\"\",\"\",MODULO_ISCRIZIONE!E68)","v":""},{"$f":"IF(MODULO_ISCRIZIONE!H68=\"\",\"\",MODULO_ISCRIZIONE!H68)","v":""},{"$f":"IF(MODULO_ISCRIZIONE!I68=\"\",\"\",MODULO_ISCRIZIONE!I68)","v":""},{"$f":"IF(MODULO_ISCRIZIONE!#REF!=\"\",\"\",MODULO_ISCRIZIONE!#REF!)","v":{"$error":"#REF!"}},{"$f":"IF(MODULO_ISCRIZIONE!#REF!=\"\",\"\",MODULO_ISCRIZIONE!#REF!)","v":{"$error":"#REF!"}}]
[{"$f":"IF(MODULO_ISCRIZIONE!#REF!=\"\",\"\",MODULO_ISCRIZIONE!#REF!)","v":{"$error":"#REF!"}},{"$f":"IF(MODULO_ISCRIZIONE!#REF!=\"\",\"\",MODULO_ISCRIZIONE!#REF!)","v":{"$error":"#REF!"}},{"$f":"IF(MODULO_ISCRIZIONE!D69=\"\",\"\",MODULO_ISCRIZIONE!D69)","v":""},"=SE('modulo iscrizione'!D8=\"\";\"\";maiusc('modulo iscrizione'!D8))",{"$f":"IF(MODULO_ISCRIZIONE!E69=\"\",\"\",MODULO_ISCRIZIONE!E69)","v":""},{"$f":"IF(MODULO_ISCRIZIONE!H69=\"\",\"\",MODULO_ISCRIZIONE!H69)","v":""},{"$f":"IF(MODULO_ISCRIZIONE!I69=\"\",\"\",MODULO_ISCRIZIONE!I69)","v":""},{"$f":"IF(MODULO_ISCRIZIONE!#REF!=\"\",\"\",MODULO_ISCRIZIONE!#REF!)","v":{"$error":"#REF!"}},{"$f":"IF(MODULO_ISCRIZIONE!#REF!=\"\",\"\",MODULO_ISCRIZIONE!#REF!)","v":{"$error":"#REF!"}}]
[{"$f":"IF(MODULO_ISCRIZIONE!#REF!=\"\",\"\",MODULO_ISCRIZIONE!#REF!)","v":{"$error":"#REF!"}},{"$f":"IF(MODULO_ISCRIZIONE!#REF!=\"\",\"\",MODULO_ISCRIZIONE!#REF!)","v":{"$error":"#REF!"}},{"$f":"IF(MODULO_ISCRIZIONE!D70=\"\",\"\",MODULO_ISCRIZIONE!D70)","v":""},"=SE('modulo iscrizione'!D8=\"\";\"\";maiusc('modulo iscrizione'!D8))",{"$f":"IF(MODULO_ISCRIZIONE!E70=\"\",\"\",MODULO_ISCRIZIONE!E70)","v":""},{"$f":"IF(MODULO_ISCRIZIONE!H70=\"\",\"\",MODULO_ISCRIZIONE!H70)","v":""},{"$f":"IF(MODULO_ISCRIZIONE!I70=\"\",\"\",MODULO_ISCRIZIONE!I70)","v":""},{"$f":"IF(MODULO_ISCRIZIONE!#REF!=\"\",\"\",MODULO_ISCRIZIONE!#REF!)","v":{"$error":"#REF!"}},{"$f":"IF(MODULO_ISCRIZIONE!#REF!=\"\",\"\",MODULO_ISCRIZIONE!#REF!)","v":{"$error":"#REF!"}}]
[{"$f":"IF(MODULO_ISCRIZIONE!#REF!=\"\",\"\",MODULO_ISCRIZIONE!#REF!)","v":{"$error":"#REF!"}},{"$f":"IF(MODULO_ISCRIZIONE!#REF!=\"\",\"\",MODULO_ISCRIZIONE!#REF!)","v":{"$error":"#REF!"}},{"$f":"IF(MODULO_ISCRIZIONE!D71=\"\",\"\",MODULO_ISCRIZIONE!D71)","v":""},"=SE('modulo iscrizione'!D8=\"\";\"\";maiusc('modulo iscrizione'!D8))",{"$f":"IF(MODULO_ISCRIZIONE!E71=\"\",\"\",MODULO_ISCRIZIONE!E71)","v":""},{"$f":"IF(MODULO_ISCRIZIONE!H71=\"\",\"\",MODULO_ISCRIZIONE!H71)","v":""},{"$f":"IF(MODULO_ISCRIZIONE!I71=\"\",\"\",MODULO_ISCRIZIONE!I71)","v":""},{"$f":"IF(MODULO_ISCRIZIONE!#REF!=\"\",\"\",MODULO_ISCRIZIONE!#REF!)","v":{"$error":"#REF!"}},{"$f":"IF(MODULO_ISCRIZIONE!#REF!=\"\",\"\",MODULO_ISCRIZIONE!#REF!)","v":{"$error":"#REF!"}}]
[{"$f":"IF(MODULO_ISCRIZIONE!#REF!=\"\",\"\",MODULO_ISCRIZIONE!#REF!)","v":{"$error":"#REF!"}},{"$f":"IF(MODULO_ISCRIZIONE!#REF!=\"\",\"\",MODULO_ISCRIZIONE!#REF!)","v":{"$error":"#REF!"}},{"$f":"IF(MODULO_ISCRIZIONE!D72=\"\",\"\",MODULO_ISCRIZIONE!D72)","v":""},"=SE('modulo iscrizione'!D8=\"\";\"\";maiusc('modulo iscrizione'!D8))",{"$f":"IF(MODULO_ISCRIZIONE!E72=\"\",\"\",MODULO_ISCRIZIONE!E72)","v":""},{"$f":"IF(MODULO_ISCRIZIONE!H72=\"\",\"\",MODULO_ISCRIZIONE!H72)","v":""},{"$f":"IF(MODULO_ISCRIZIONE!I72=\"\",\"\",MODULO_ISCRIZIONE!I72)","v":""},{"$f":"IF(MODULO_ISCRIZIONE!#REF!=\"\",\"\",MODULO_ISCRIZIONE!#REF!)","v":{"$error":"#REF!"}},{"$f":"IF(MODULO_ISCRIZIONE!#REF!=\"\",\"\",MODULO_ISCRIZIONE!#REF!)","v":{"$error":"#REF!"}}]
[{"$f":"IF(MODULO_ISCRIZIONE!#REF!=\"\",\"\",MODULO_ISCRIZIONE!#REF!)","v":{"$error":"#REF!"}},{"$f":"IF(MODULO_ISCRIZIONE!#REF!=\"\",\"\",MODULO_ISCRIZIONE!#REF!)","v":{"$error":"#REF!"}},{"$f":"IF(MODULO_ISCRIZIONE!D73=\"\",\"\",MODULO_ISCRIZIONE!D73)","v":""},"=SE('modulo iscrizione'!D8=\"\";\"\";maiusc('modulo iscrizione'!D8))",{"$f":"IF(MODULO_ISCRIZIONE!E73=\"\",\"\",MODULO_ISCRIZIONE!E73)","v":""},{"$f":"IF(MODULO_ISCRIZIONE!H73=\"\",\"\",MODULO_ISCRIZIONE!H73)","v":""},{"$f":"IF(MODULO_ISCRIZIONE!I73=\"\",\"\",MODULO_ISCRIZIONE!I73)","v":""},{"$f":"IF(MODULO_ISCRIZIONE!#REF!=\"\",\"\",MODULO_ISCRIZIONE!#REF!)","v":{"$error":"#REF!"}},{"$f":"IF(MODULO_ISCRIZIONE!#REF!=\"\",\"\",MODULO_ISCRIZIONE!#REF!)","v":{"$error":"#REF!"}}]
[{"$f":"IF(MODULO_ISCRIZIONE!#REF!=\"\",\"\",MODULO_ISCRIZIONE!#REF!)","v":{"$error":"#REF!"}},{"$f":"IF(MODULO_ISCRIZIONE!#REF!=\"\",\"\",MODULO_ISCRIZIONE!#REF!)","v":{"$error":"#REF!"}},{"$f":"IF(MODULO_ISCRIZIONE!D74=\"\",\"\",MODULO_ISCRIZIONE!D74)","v":""},"=SE('modulo iscrizione'!D8=\"\";\"\";maiusc('modulo iscrizione'!D8))",{"$f":"IF(MODULO_ISCRIZIONE!E74=\"\",\"\",MODULO_ISCRIZIONE!E74)","v":""},{"$f":"IF(MODULO_ISCRIZIONE!H74=\"\",\"\",MODULO_ISCRIZIONE!H74)","v":""},{"$f":"IF(MODULO_ISCRIZIONE!I74=\"\",\"\",MODULO_ISCRIZIONE!I74)","v":""},{"$f":"IF(MODULO_ISCRIZIONE!#REF!=\"\",\"\",MODULO_ISCRIZIONE!#REF!)","v":{"$error":"#REF!"}},{"$f":"IF(MODULO_ISCRIZIONE!#REF!=\"\",\"\",MODULO_ISCRIZIONE!#REF!)","v":{"$error":"#REF!"}}]
[{"$f":"IF(MODULO_ISCRIZIONE!#REF!=\"\",\"\",MODULO_ISCRIZIONE!#REF!)","v":{"$error":"#REF!"}},{"$f":"IF(MODULO_ISCRIZIONE!#REF!=\"\",\"\",MODULO_ISCRIZIONE!#REF!)","v":{"$error":"#REF!"}},{"$f":"IF(MODULO_ISCRIZIONE!D75=\"\",\"\",MODULO_ISCRIZIONE!D75)","v":""},"=SE('modulo iscrizione'!D8=\"\";\"\";maiusc('modulo iscrizione'!D8))",{"$f":"IF(MODULO_ISCRIZIONE!E75=\"\",\"\",MODULO_ISCRIZIONE!E75)","v":""},{"$f":"IF(MODULO_ISCRIZIONE!H75=\"\",\"\",MODULO_ISCRIZIONE!H75)","v":""},{"$f":"IF(MODULO_ISCRIZIONE!I75=\"\",\"\",MODULO_ISCRIZIONE!I75)","v":""},{"$f":"IF(MODULO_ISCRIZIONE!#REF!=\"\",\"\",MODULO_ISCRIZIONE!#REF!)","v":{"$error":"#REF!"}},{"$f":"IF(MODULO_ISCRIZIONE!#REF!=\"\",\"\",MODULO_ISCRIZIONE!#REF!)","v":{"$error":"#REF!"}}]
[{"$f":"IF(MODULO_ISCRIZIONE!#REF!=\"\",\"\",MODULO_ISCRIZIONE!#REF!)","v":{"$error":"#REF!"}},{"$f":"IF(MODULO_ISCRIZIONE!#REF!=\"\",\"\",MODULO_ISCRIZIONE!#REF!)","v":{"$error":"#REF!"}},{"$f":"IF(MODULO_ISCRIZIONE!D76=\"\",\"\",MODULO_ISCRIZIONE!D76)","v":""},"=SE('modulo iscrizione'!D8=\"\";\"\";maiusc('modulo iscrizione'!D8))",{"$f":"IF(MODULO_ISCRIZIONE!E76=\"\",\"\",MODULO_ISCRIZIONE!E76)","v":""},{"$f":"IF(MODULO_ISCRIZIONE!H76=\"\",\"\",MODULO_ISCRIZIONE!H76)","v":""},{"$f":"IF(MODULO_ISCRIZIONE!I76=\"\",\"\",MODULO_ISCRIZIONE!I76)","v":""},{"$f":"IF(MODULO_ISCRIZIONE!#REF!=\"\",\"\",MODULO_ISCRIZIONE!#REF!)","v":{"$error":"#REF!"}},{"$f":"IF(MODULO_ISCRIZIONE!#REF!=\"\",\"\",MODULO_ISCRIZIONE!#REF!)","v":{"$error":"#REF!"}}]
[{"$f":"IF(MODULO_ISCRIZIONE!#REF!=\"\",\"\",MODULO_ISCRIZIONE!#REF!)","v":{"$error":"#REF!"}},{"$f":"IF(MODULO_ISCRIZIONE!#REF!=\"\",\"\",MODULO_ISCRIZIONE!#REF!)","v":{"$error":"#REF!"}},{"$f":"IF(MODULO_ISCRIZIONE!D77=\"\",\"\",MODULO_ISCRIZIONE!D77)","v":""},"=SE('modulo iscrizione'!D8=\"\";\"\";maiusc('modulo iscrizione'!D8))",{"$f":"IF(MODULO_ISCRIZIONE!E77=\"\",\"\",MODULO_ISCRIZIONE!E77)","v":""},{"$f":"IF(MODULO_ISCRIZIONE!H77=\"\",\"\",MODULO_ISCRIZIONE!H77)","v":""},{"$f":"IF(MODULO_ISCRIZIONE!I77=\"\",\"\",MODULO_ISCRIZIONE!I77)","v":""},{"$f":"IF(MODULO_ISCRIZIONE!#REF!=\"\",\"\",MODULO_ISCRIZIONE!#REF!)","v":{"$error":"#REF!"}},{"$f":"IF(MODULO_ISCRIZIONE!#REF!=\"\",\"\",MODULO_ISCRIZIONE!#REF!)","v":{"$error":"#REF!"}}]
[{"$f":"IF(MODULO_ISCRIZIONE!#REF!=\"\",\"\",MODULO_ISCRIZIONE!#REF!)","v":{"$error":"#REF!"}},{"$f":"IF(MODULO_ISCRIZIONE!#REF!=\"\",\"\",MODULO_ISCRIZIONE!#REF!)","v":{"$error":"#REF!"}},{"$f":"IF(MODULO_ISCRIZIONE!D78=\"\",\"\",MODULO_ISCRIZIONE!D78)","v":""},"=SE('modulo iscrizione'!D8=\"\";\"\";maiusc('modulo iscrizione'!D8))",{"$f":"IF(MODULO_ISCRIZIONE!E78=\"\",\"\",MODULO_ISCRIZIONE!E78)","v":""},{"$f":"IF(MODULO_ISCRIZIONE!H78=\"\",\"\",MODULO_ISCRIZIONE!H78)","v":""},{"$f":"IF(MODULO_ISCRIZIONE!I78=\"\",\"\",MODULO_ISCRIZIONE!I78)","v":""},{"$f":"IF(MODULO_ISCRIZIONE!#REF!=\"\",\"\",MODULO_ISCRIZIONE!#REF!)","v":{"$error":"#REF!"}},{"$f":"IF(MODULO_ISCRIZIONE!#REF!=\"\",\"\",MODULO_ISCRIZIONE!#REF!)","v":{"$error":"#REF!"}}]
[{"$f":"IF(MODULO_ISCRIZIONE!#REF!=\"\",\"\",MODULO_ISCRIZIONE!#REF!)","v":{"$error":"#REF!"}},{"$f":"IF(MODULO_ISCRIZIONE!#REF!=\"\",\"\",MODULO_ISCRIZIONE!#REF!)","v":{"$error":"#REF!"}},{"$f":"IF(MODULO_ISCRIZIONE!D79=\"\",\"\",MODULO_ISCRIZIONE!D79)","v":""},"=SE('modulo iscrizione'!D8=\"\";\"\";maiusc('modulo iscrizione'!D8))",{"$f":"IF(MODULO_ISCRIZIONE!E79=\"\",\"\",MODULO_ISCRIZIONE!E79)","v":""},{"$f":"IF(MODULO_ISCRIZIONE!H79=\"\",\"\",MODULO_ISCRIZIONE!H79)","v":""},{"$f":"IF(MODULO_ISCRIZIONE!I79=\"\",\"\",MODULO_ISCRIZIONE!I79)","v":""},{"$f":"IF(MODULO_ISCRIZIONE!#REF!=\"\",\"\",MODULO_ISCRIZIONE!#REF!)","v":{"$error":"#REF!"}},{"$f":"IF(MODULO_ISCRIZIONE!#REF!=\"\",\"\",MODULO_ISCRIZIONE!#REF!)","v":{"$error":"#REF!"}}]
[{"$f":"IF(MODULO_ISCRIZIONE!#REF!=\"\",\"\",MODULO_ISCRIZIONE!#REF!)","v":{"$error":"#REF!"}},{"$f":"IF(MODULO_ISCRIZIONE!#REF!=\"\",\"\",MODULO_ISCRIZIONE!#REF!)","v":{"$error":"#REF!"}},{"$f":"IF(MODULO_ISCRIZIONE!D80=\"\",\"\",MODULO_ISCRIZIONE!D80)","v":""},"=SE('modulo iscrizione'!D8=\"\";\"\";maiusc('modulo iscrizione'!D8))",{"$f":"IF(MODULO_ISCRIZIONE!E80=\"\",\"\",MODULO_ISCRIZIONE!E80)","v":""},{"$f":"IF(MODULO_ISCRIZIONE!H80=\"\",\"\",MODULO_ISCRIZIONE!H80)","v":""},{"$f":"IF(MODULO_ISCRIZIONE!I80=\"\",\"\",MODULO_ISCRIZIONE!I80)","v":""},{"$f":"IF(MODULO_ISCRIZIONE!#REF!=\"\",\"\",MODULO_ISCRIZIONE!#REF!)","v":{"$error":"#REF!"}},{"$f":"IF(MODULO_ISCRIZIONE!#REF!=\"\",\"\",MODULO_ISCRIZIONE!#REF!)","v":{"$error":"#REF!"}}]
[{"$f":"IF(MODULO_ISCRIZIONE!#REF!=\"\",\"\",MODULO_ISCRIZIONE!#REF!)","v":{"$error":"#REF!"}},{"$f":"IF(MODULO_ISCRIZIONE!#REF!=\"\",\"\",MODULO_ISCRIZIONE!#REF!)","v":{"$error":"#REF!"}},{"$f":"IF(MODULO_ISCRIZIONE!D81=\"\",\"\",MODULO_ISCRIZIONE!D81)","v":""},"=SE('modulo iscrizione'!D8=\"\";\"\";maiusc('modulo iscrizione'!D8))",{"$f":"IF(MODULO_ISCRIZIONE!E81=\"\",\"\",MODULO_ISCRIZIONE!E81)","v":""},{"$f":"IF(MODULO_ISCRIZIONE!H81=\"\",\"\",MODULO_ISCRIZIONE!H81)","v":""},{"$f":"IF(MODULO_ISCRIZIONE!I81=\"\",\"\",MODULO_ISCRIZIONE!I81)","v":""},{"$f":"IF(MODULO_ISCRIZIONE!#REF!=\"\",\"\",MODULO_ISCRIZIONE!#REF!)","v":{"$error":"#REF!"}},{"$f":"IF(MODULO_ISCRIZIONE!#REF!=\"\",\"\",MODULO_ISCRIZIONE!#REF!)","v":{"$error":"#REF!"}}]
[{"$f":"IF(MODULO_ISCRIZIONE!#REF!=\"\",\"\",MODULO_ISCRIZIONE!#REF!)","v":{"$error":"#REF!"}},{"$f":"IF(MODULO_ISCRIZIONE!#REF!=\"\",\"\",MODULO_ISCRIZIONE!#REF!)","v":{"$error":"#REF!"}},{"$f":"IF(MODULO_ISCRIZIONE!D82=\"\",\"\",MODULO_ISCRIZIONE!D82)","v":""},"=SE('modulo iscrizione'!D8=\"\";\"\";maiusc('modulo iscrizione'!D8))",{"$f":"IF(MODULO_ISCRIZIONE!E82=\"\",\"\",MODULO_ISCRIZIONE!E82)","v":""},{"$f":"IF(MODULO_ISCRIZIONE!H82=\"\",\"\",MODULO_ISCRIZIONE!H82)","v":""},{"$f":"IF(MODULO_ISCRIZIONE!I82=\"\",\"\",MODULO_ISCRIZIONE!I82)","v":""},{"$f":"IF(MODULO_ISCRIZIONE!#REF!=\"\",\"\",MODULO_ISCRIZIONE!#REF!)","v":{"$error":"#REF!"}},{"$f":"IF(MODULO_ISCRIZIONE!#REF!=\"\",\"\",MODULO_ISCRIZIONE!#REF!)","v":{"$error":"#REF!"}}]
[{"$f":"IF(MODULO_ISCRIZIONE!#REF!=\"\",\"\",MODULO_ISCRIZIONE!#REF!)","v":{"$error":"#REF!"}},{"$f":"IF(MODULO_ISCRIZIONE!#REF!=\"\",\"\",MODULO_ISCRIZIONE!#REF!)","v":{"$error":"#REF!"}},{"$f":"IF(MODULO_ISCRIZIONE!D83=\"\",\"\",MODULO_ISCRIZIONE!D83)","v":""},"=SE('modulo iscrizione'!D8=\"\";\"\";maiusc('modulo iscrizione'!D8))",{"$f":"IF(MODULO_ISCRIZIONE!E83=\"\",\"\",MODULO_ISCRIZIONE!E83)","v":""},{"$f":"IF(MODULO_ISCRIZIONE!H83=\"\",\"\",MODULO_ISCRIZIONE!H83)","v":""},{"$f":"IF(MODULO_ISCRIZIONE!I83=\"\",\"\",MODULO_ISCRIZIONE!I83)","v":""},{"$f":"IF(MODULO_ISCRIZIONE!#REF!=\"\",\"\",MODULO_ISCRIZIONE!#REF!)","v":{"$error":"#REF!"}},{"$f":"IF(MODULO_ISCRIZIONE!#REF!=\"\",\"\",MODULO_ISCRIZIONE!#REF!)","v":{"$error":"#REF!"}}]
[{"$f":"IF(MODULO_ISCRIZIONE!#REF!=\"\",\"\",MODULO_ISCRIZIONE!#REF!)","v":{"$error":"#REF!"}},{"$f":"IF(MODULO_ISCRIZIONE!#REF!=\"\",\"\",MODULO_ISCRIZIONE!#REF!)","v":{"$error":"#REF!"}},{"$f":"IF(MODULO_ISCRIZIONE!D84=\"\",\"\",MODULO_ISCRIZIONE!D84)","v":""},"=SE('modulo iscrizione'!D8=\"\";\"\";maiusc('modulo iscrizione'!D8))",{"$f":"IF(MODULO_ISCRIZIONE!E84=\"\",\"\",MODULO_ISCRIZIONE!E84)","v":""},{"$f":"IF(MODULO_ISCRIZIONE!H84=\"\",\"\",MODULO_ISCRIZIONE!H84)","v":""},{"$f":"IF(MODULO_ISCRIZIONE!I84=\"\",\"\",MODULO_ISCRIZIONE!I84)","v":""},{"$f":"IF(MODULO_ISCRIZIONE!#REF!=\"\",\"\",MODULO_ISCRIZIONE!#REF!)","v":{"$error":"#REF!"}},{"$f":"IF(MODULO_ISCRIZIONE!#REF!=\"\",\"\",MODULO_ISCRIZIONE!#REF!)","v":{"$error":"#REF!"}}]
[{"$f":"IF(MODULO_ISCRIZIONE!#REF!=\"\",\"\",MODULO_ISCRIZIONE!#REF!)","v":{"$error":"#REF!"}},{"$f":"IF(MODULO_ISCRIZIONE!#REF!=\"\",\"\",MODULO_ISCRIZIONE!#REF!)","v":{"$error":"#REF!"}},{"$f":"IF(MODULO_ISCRIZIONE!D85=\"\",\"\",MODULO_ISCRIZIONE!D85)","v":""},"=SE('modulo iscrizione'!D8=\"\";\"\";maiusc('modulo iscrizione'!D8))",{"$f":"IF(MODULO_ISCRIZIONE!E85=\"\",\"\",MODULO_ISCRIZIONE!E85)","v":""},{"$f":"IF(MODULO_ISCRIZIONE!H85=\"\",\"\",MODULO_ISCRIZIONE!H85)","v":""},{"$f":"IF(MODULO_ISCRIZIONE!I85=\"\",\"\",MODULO_ISCRIZIONE!I85)","v":""},{"$f":"IF(MODULO_ISCRIZIONE!#REF!=\"\",\"\",MODULO_ISCRIZIONE!#REF!)","v":{"$error":"#REF!"}},{"$f":"IF(MODULO_ISCRIZIONE!#REF!=\"\",\"\",MODULO_ISCRIZIONE!#REF!)","v":{"$error":"#REF!"}}]
[{"$f":"IF(MODULO_ISCRIZIONE!#REF!=\"\",\"\",MODULO_ISCRIZIONE!#REF!)","v":{"$error":"#REF!"}},{"$f":"IF(MODULO_ISCRIZIONE!#REF!=\"\",\"\",MODULO_ISCRIZIONE!#REF!)","v":{"$error":"#REF!"}},{"$f":"IF(MODULO_ISCRIZIONE!D86=\"\",\"\",MODULO_ISCRIZIONE!D86)","v":""},"=SE('modulo iscrizione'!D8=\"\";\"\";maiusc('modulo iscrizione'!D8))",{"$f":"IF(MODULO_ISCRIZIONE!E86=\"\",\"\",MODULO_ISCRIZIONE!E86)","v":""},{"$f":"IF(MODULO_ISCRIZIONE!H86=\"\",\"\",MODULO_ISCRIZIONE!H86)","v":""},{"$f":"IF(MODULO_ISCRIZIONE!I86=\"\",\"\",MODULO_ISCRIZIONE!I86)","v":""},{"$f":"IF(MODULO_ISCRIZIONE!#REF!=\"\",\"\",MODULO_ISCRIZIONE!#REF!)","v":{"$error":"#REF!"}},{"$f":"IF(MODULO_ISCRIZIONE!#REF!=\"\",\"\",MODULO_ISCRIZIONE!#REF!)","v":{"$error":"#REF!"}}]
[{"$f":"IF(MODULO_ISCRIZIONE!#REF!=\"\",\"\",MODULO_ISCRIZIONE!#REF!)","v":{"$error":"#REF!"}},{"$f":"IF(MODULO_ISCRIZIONE!#REF!=\"\",\"\",MODULO_ISCRIZIONE!#REF!)","v":{"$error":"#REF!"}},{"$f":"IF(MODULO_ISCRIZIONE!D87=\"\",\"\",MODULO_ISCRIZIONE!D87)","v":""},"=SE('modulo iscrizione'!D8=\"\";\"\";maiusc('modulo iscrizione'!D8))",{"$f":"IF(MODULO_ISCRIZIONE!E87=\"\",\"\",MODULO_ISCRIZIONE!E87)","v":""},{"$f":"IF(MODULO_ISCRIZIONE!H87=\"\",\"\",MODULO_ISCRIZIONE!H87)","v":""},{"$f":"IF(MODULO_ISCRIZIONE!I87=\"\",\"\",MODULO_ISCRIZIONE!I87)","v":""},{"$f":"IF(MODULO_ISCRIZIONE!#REF!=\"\",\"\",MODULO_ISCRIZIONE!#REF!)","v":{"$error":"#REF!"}},{"$f":"IF(MODULO_ISCRIZIONE!#REF!=\"\",\"\",MODULO_ISCRIZIONE!#REF!)","v":{"$error":"#REF!"}}]
[{"$f":"IF(MODULO_ISCRIZIONE!#REF!=\"\",\"\",MODULO_ISCRIZIONE!#REF!)","v":{"$error":"#REF!"}},{"$f":"IF(MODULO_ISCRIZIONE!#REF!=\"\",\"\",MODULO_ISCRIZIONE!#REF!)","v":{"$error":"#REF!"}},{"$f":"IF(MODULO_ISCRIZIONE!D88=\"\",\"\",MODULO_ISCRIZIONE!D88)","v":""},"=SE('modulo iscrizione'!D8=\"\";\"\";maiusc('modulo iscrizione'!D8))",{"$f":"IF(MODULO_ISCRIZIONE!E88=\"\",\"\",MODULO_ISCRIZIONE!E88)","v":""},{"$f":"IF(MODULO_ISCRIZIONE!H88=\"\",\"\",MODULO_ISCRIZIONE!H88)","v":""},{"$f":"IF(MODULO_ISCRIZIONE!I88=\"\",\"\",MODULO_ISCRIZIONE!I88)","v":""},{"$f":"IF(MODULO_ISCRIZIONE!#REF!=\"\",\"\",MODULO_ISCRIZIONE!#REF!)","v":{"$error":"#REF!"}},{"$f":"IF(MODULO_ISCRIZIONE!#REF!=\"\",\"\",MODULO_ISCRIZIONE!#REF!)","v":{"$error":"#REF!"}}]
[{"$f":"IF(MODULO_ISCRIZIONE!#REF!=\"\",\"\",MODULO_ISCRIZIONE!#REF!)","v":{"$error":"#REF!"}},{"$f":"IF(MODULO_ISCRIZIONE!#REF!=\"\",\"\",MODULO_ISCRIZIONE!#REF!)","v":{"$error":"#REF!"}},{"$f":"IF(MODULO_ISCRIZIONE!D89=\"\",\"\",MODULO_ISCRIZIONE!D89)","v":""},"=SE('modulo iscrizione'!D8=\"\";\"\";maiusc('modulo iscrizione'!D8))",{"$f":"IF(MODULO_ISCRIZIONE!E89=\"\",\"\",MODULO_ISCRIZIONE!E89)","v":""},{"$f":"IF(MODULO_ISCRIZIONE!H89=\"\",\"\",MODULO_ISCRIZIONE!H89)","v":""},{"$f":"IF(MODULO_ISCRIZIONE!I89=\"\",\"\",MODULO_ISCRIZIONE!I89)","v":""},{"$f":"IF(MODULO_ISCRIZIONE!#REF!=\"\",\"\",MODULO_ISCRIZIONE!#REF!)","v":{"$error":"#REF!"}},{"$f":"IF(MODULO_ISCRIZIONE!#REF!=\"\",\"\",MODULO_ISCRIZIONE!#REF!)","v":{"$error":"#REF!"}}]
[{"$f":"IF(MODULO_ISCRIZIONE!#REF!=\"\",\"\",MODULO_ISCRIZIONE!#REF!)","v":{"$error":"#REF!"}},{"$f":"IF(MODULO_ISCRIZIONE!#REF!=\"\",\"\",MODULO_ISCRIZIONE!#REF!)","v":{"$error":"#REF!"}},{"$f":"IF(MODULO_ISCRIZIONE!D90=\"\",\"\",MODULO_ISCRIZIONE!D90)","v":""},"=SE('modulo iscrizione'!D8=\"\";\"\";maiusc('modulo iscrizione'!D8))",{"$f":"IF(MODULO_ISCRIZIONE!E90=\"\",\"\",MODULO_ISCRIZIONE!E90)","v":""},{"$f":"IF(MODULO_ISCRIZIONE!H90=\"\",\"\",MODULO_ISCRIZIONE!H90)","v":""},{"$f":"IF(MODULO_ISCRIZIONE!I90=\"\",\"\",MODULO_ISCRIZIONE!I90)","v":""},{"$f":"IF(MODULO_ISCRIZIONE!#REF!=\"\",\"\",MODULO_ISCRIZIONE!#REF!)","v":{"$error":"#REF!"}},{"$f":"IF(MODULO_ISCRIZIONE!#REF!=\"\",\"\",MODULO_ISCRIZIONE!#REF!)","v":{"$error":"#REF!"}}]
[{"$f":"IF(MODULO_ISCRIZIONE!#REF!=\"\",\"\",MODULO_ISCRIZIONE!#REF!)","v":{"$error":"#REF!"}},{"$f":"IF(MODULO_ISCRIZIONE!#REF!=\"\",\"\",MODULO_ISCRIZIONE!#REF!)","v":{"$error":"#REF!"}},{"$f":"IF(MODULO_ISCRIZIONE!D91=\"\",\"\",MODULO_ISCRIZIONE!D91)","v":""},"=SE('modulo iscrizione'!D8=\"\";\"\";maiusc('modulo iscrizione'!D8))",{"$f":"IF(MODULO_ISCRIZIONE!E91=\"\",\"\",MODULO_ISCRIZIONE!E91)","v":""},{"$f":"IF(MODULO_ISCRIZIONE!H91=\"\",\"\",MODULO_ISCRIZIONE!H91)","v":""},{"$f":"IF(MODULO_ISCRIZIONE!I91=\"\",\"\",MODULO_ISCRIZIONE!I91)","v":""},{"$f":"IF(MODULO_ISCRIZIONE!#REF!=\"\",\"\",MODULO_ISCRIZIONE!#REF!)","v":{"$error":"#REF!"}},{"$f":"IF(MODULO_ISCRIZIONE!#REF!=\"\",\"\",MODULO_ISCRIZIONE!#REF!)","v":{"$error":"#REF!"}}]
[{"$f":"IF(MODULO_ISCRIZIONE!#REF!=\"\",\"\",MODULO_ISCRIZIONE!#REF!)","v":{"$error":"#REF!"}},{"$f":"IF(MODULO_ISCRIZIONE!#REF!=\"\",\"\",MODULO_ISCRIZIONE!#REF!)","v":{"$error":"#REF!"}},{"$f":"IF(MODULO_ISCRIZIONE!D92=\"\",\"\",MODULO_ISCRIZIONE!D92)","v":""},"=SE('modulo iscrizione'!D8=\"\";\"\";maiusc('modulo iscrizione'!D8))",{"$f":"IF(MODULO_ISCRIZIONE!E92=\"\",\"\",MODULO_ISCRIZIONE!E92)","v":""},{"$f":"IF(MODULO_ISCRIZIONE!H92=\"\",\"\",MODULO_ISCRIZIONE!H92)","v":""},{"$f":"IF(MODULO_ISCRIZIONE!I92=\"\",\"\",MODULO_ISCRIZIONE!I92)","v":""},{"$f":"IF(MODULO_ISCRIZIONE!#REF!=\"\",\"\",MODULO_ISCRIZIONE!#REF!)","v":{"$error":"#REF!"}},{"$f":"IF(MODULO_ISCRIZIONE!#REF!=\"\",\"\",MODULO_ISCRIZIONE!#REF!)","v":{"$error":"#REF!"}}]
[{"$f":"IF(MODULO_ISCRIZIONE!#REF!=\"\",\"\",MODULO_ISCRIZIONE!#REF!)","v":{"$error":"#REF!"}},{"$f":"IF(MODULO_ISCRIZIONE!#REF!=\"\",\"\",MODULO_ISCRIZIONE!#REF!)","v":{"$error":"#REF!"}},{"$f":"IF(MODULO_ISCRIZIONE!D93=\"\",\"\",MODULO_ISCRIZIONE!D93)","v":""},"=SE('modulo iscrizione'!D8=\"\";\"\";maiusc('modulo iscrizione'!D8))",{"$f":"IF(MODULO_ISCRIZIONE!E93=\"\",\"\",MODULO_ISCRIZIONE!E93)","v":""},{"$f":"IF(MODULO_ISCRIZIONE!H93=\"\",\"\",MODULO_ISCRIZIONE!H93)","v":""},{"$f":"IF(MODULO_ISCRIZIONE!I93=\"\",\"\",MODULO_ISCRIZIONE!I93)","v":""},{"$f":"IF(MODULO_ISCRIZIONE!#REF!=\"\",\"\",MODULO_ISCRIZIONE!#REF!)","v":{"$error":"#REF!"}},{"$f":"IF(MODULO_ISCRIZIONE!#REF!=\"\",\"\",MODULO_ISCRIZIONE!#REF!)","v":{"$error":"#REF!"}}]
[{"$f":"IF(MODULO_ISCRIZIONE!#REF!=\"\",\"\",MODULO_ISCRIZIONE!#REF!)","v":{"$error":"#REF!"}},{"$f":"IF(MODULO_ISCRIZIONE!#REF!=\"\",\"\",MODULO_ISCRIZIONE!#REF!)","v":{"$error":"#REF!"}},{"$f":"IF(MODULO_ISCRIZIONE!D94=\"\",\"\",MODULO_ISCRIZIONE!D94)","v":""},"=SE('modulo iscrizione'!D8=\"\";\"\";maiusc('modulo iscrizione'!D8))",{"$f":"IF(MODULO_ISCRIZIONE!E94=\"\",\"\",MODULO_ISCRIZIONE!E94)","v":""},{"$f":"IF(MODULO_ISCRIZIONE!H94=\"\",\"\",MODULO_ISCRIZIONE!H94)","v":""},{"$f":"IF(MODULO_ISCRIZIONE!I94=\"\",\"\",MODULO_ISCRIZIONE!I94)","v":""},{"$f":"IF(MODULO_ISCRIZIONE!#REF!=\"\",\"\",MODULO_ISCRIZIONE!#REF!)","v":{"$error":"#REF!"}},{"$f":"IF(MODULO_ISCRIZIONE!#REF!=\"\",\"\",MODULO_ISCRIZIONE!#REF!)","v":{"$error":"#REF!"}}]
[{"$f":"IF(MODULO_ISCRIZIONE!#REF!=\"\",\"\",MODULO_ISCRIZIONE!#REF!)","v":{"$error":"#REF!"}},{"$f":"IF(MODULO_ISCRIZIONE!#REF!=\"\",\"\",MODULO_ISCRIZIONE!#REF!)","v":{"$error":"#REF!"}},{"$f":"IF(MODULO_ISCRIZIONE!D95=\"\",\"\",MODULO_ISCRIZIONE!D95)","v":""},"=SE('modulo iscrizione'!D8=\"\";\"\";maiusc('modulo iscrizione'!D8))",{"$f":"IF(MODULO_ISCRIZIONE!E95=\"\",\"\",MODULO_ISCRIZIONE!E95)","v":""},{"$f":"IF(MODULO_ISCRIZIONE!H95=\"\",\"\",MODULO_ISCRIZIONE!H95)","v":""},{"$f":"IF(MODULO_ISCRIZIONE!I95=\"\",\"\",MODULO_ISCRIZIONE!I95)","v":""},{"$f":"IF(MODULO_ISCRIZIONE!#REF!=\"\",\"\",MODULO_ISCRIZIONE!#REF!)","v":{"$error":"#REF!"}},{"$f":"IF(MODULO_ISCRIZIONE!#REF!=\"\",\"\",MODULO_ISCRIZIONE!#REF!)","v":{"$error":"#REF!"}}]
[{"$f":"IF(MODULO_ISCRIZIONE!#REF!=\"\",\"\",MODULO_ISCRIZIONE!#REF!)","v":{"$error":"#REF!"}},{"$f":"IF(MODULO_ISCRIZIONE!#REF!=\"\",\"\",MODULO_ISCRIZIONE!#REF!)","v":{"$error":"#REF!"}},{"$f":"IF(MODULO_ISCRIZIONE!D96=\"\",\"\",MODULO_ISCRIZIONE!D96)","v":""},"=SE('modulo iscrizione'!D8=\"\";\"\";maiusc('modulo iscrizione'!D8))",{"$f":"IF(MODULO_ISCRIZIONE!E96=\"\",\"\",MODULO_ISCRIZIONE!E96)","v":""},{"$f":"IF(MODULO_ISCRIZIONE!H96=\"\",\"\",MODULO_ISCRIZIONE!H96)","v":""},{"$f":"IF(MODULO_ISCRIZIONE!I96=\"\",\"\",MODULO_ISCRIZIONE!I96)","v":""},{"$f":"IF(MODULO_ISCRIZIONE!#REF!=\"\",\"\",MODULO_ISCRIZIONE!#REF!)","v":{"$error":"#REF!"}},{"$f":"IF(MODULO_ISCRIZIONE!#REF!=\"\",\"\",MODULO_ISCRIZIONE!#REF!)","v":{"$error":"#REF!"}}]
[{"$f":"IF(MODULO_ISCRIZIONE!#REF!=\"\",\"\",MODULO_ISCRIZIONE!#REF!)","v":{"$error":"#REF!"}},{"$f":"IF(MODULO_ISCRIZIONE!#REF!=\"\",\"\",MODULO_ISCRIZIONE!#REF!)","v":{"$error":"#REF!"}},{"$f":"IF(MODULO_ISCRIZIONE!D97=\"\",\"\",MODULO_ISCRIZIONE!D97)","v":""},"=SE('modulo iscrizione'!D8=\"\";\"\";maiusc('modulo iscrizione'!D8))",{"$f":"IF(MODULO_ISCRIZIONE!E97=\"\",\"\",MODULO_ISCRIZIONE!E97)","v":""},{"$f":"IF(MODULO_ISCRIZIONE!H97=\"\",\"\",MODULO_ISCRIZIONE!H97)","v":""},{"$f":"IF(MODULO_ISCRIZIONE!I97=\"\",\"\",MODULO_ISCRIZIONE!I97)","v":""},{"$f":"IF(MODULO_ISCRIZIONE!#REF!=\"\",\"\",MODULO_ISCRIZIONE!#REF!)","v":{"$error":"#REF!"}},{"$f":"IF(MODULO_ISCRIZIONE!#REF!=\"\",\"\",MODULO_ISCRIZIONE!#REF!)","v":{"$error":"#REF!"}}]
[{"$f":"IF(MODULO_ISCRIZIONE!#REF!=\"\",\"\",MODULO_ISCRIZIONE!#REF!)","v":{"$error":"#REF!"}},{"$f":"IF(MODULO_ISCRIZIONE!#REF!=\"\",\"\",MODULO_ISCRIZIONE!#REF!)","v":{"$error":"#REF!"}},{"$f":"IF(MODULO_ISCRIZIONE!D98=\"\",\"\",MODULO_ISCRIZIONE!D98)","v":""},"=SE('modulo iscrizione'!D8=\"\";\"\";maiusc('modulo iscrizione'!D8))",{"$f":"IF(MODULO_ISCRIZIONE!E98=\"\",\"\",MODULO_ISCRIZIONE!E98)","v":""},{"$f":"IF(MODULO_ISCRIZIONE!H98=\"\",\"\",MODULO_ISCRIZIONE!H98)","v":""},{"$f":"IF(MODULO_ISCRIZIONE!I98=\"\",\"\",MODULO_ISCRIZIONE!I98)","v":""},{"$f":"IF(MODULO_ISCRIZIONE!#REF!=\"\",\"\",MODULO_ISCRIZIONE!#REF!)","v":{"$error":"#REF!"}},{"$f":"IF(MODULO_ISCRIZIONE!#REF!=\"\",\"\",MODULO_ISCRIZIONE!#REF!)","v":{"$error":"#REF!"}}]
[{"$f":"IF(MODULO_ISCRIZIONE!#REF!=\"\",\"\",MODULO_ISCRIZIONE!#REF!)","v":{"$error":"#REF!"}},{"$f":"IF(MODULO_ISCRIZIONE!#REF!=\"\",\"\",MODULO_ISCRIZIONE!#REF!)","v":{"$error":"#REF!"}},{"$f":"IF(MODULO_ISCRIZIONE!D99=\"\",\"\",MODULO_ISCRIZIONE!D99)","v":""},"=SE('modulo iscrizione'!D8=\"\";\"\";maiusc('modulo iscrizione'!D8))",{"$f":"IF(MODULO_ISCRIZIONE!E99=\"\",\"\",MODULO_ISCRIZIONE!E99)","v":""},{"$f":"IF(MODULO_ISCRIZIONE!H99=\"\",\"\",MODULO_ISCRIZIONE!H99)","v":""},{"$f":"IF(MODULO_ISCRIZIONE!I99=\"\",\"\",MODULO_ISCRIZIONE!I99)","v":""},{"$f":"IF(MODULO_ISCRIZIONE!#REF!=\"\",\"\",MODULO_ISCRIZIONE!#REF!)","v":{"$error":"#REF!"}},{"$f":"IF(MODULO_ISCRIZIONE!#REF!=\"\",\"\",MODULO_ISCRIZIONE!#REF!)","v":{"$error":"#REF!"}}]
[{"$f":"IF(MODULO_ISCRIZIONE!#REF!=\"\",\"\",MODULO_ISCRIZIONE!#REF!)","v":{"$error":"#REF!"}},{"$f":"IF(MODULO_ISCRIZIONE!#REF!=\"\",\"\",MODULO_ISCRIZIONE!#REF!)","v":{"$error":"#REF!"}},{"$f":"IF(MODULO_ISCRIZIONE!D100=\"\",\"\",MODULO_ISCRIZIONE!D100)","v":""},"=SE('modulo iscrizione'!D8=\"\";\"\";maiusc('modulo iscrizione'!D8))",{"$f":"IF(MODULO_ISCRIZIONE!E100=\"\",\"\",MODULO_ISCRIZIONE!E100)","v":""},{"$f":"IF(MODULO_ISCRIZIONE!H100=\"\",\"\",MODULO_ISCRIZIONE!H100)","v":""},{"$f":"IF(MODULO_ISCRIZIONE!I100=\"\",\"\",MODULO_ISCRIZIONE!I100)","v":""},{"$f":"IF(MODULO_ISCRIZIONE!#REF!=\"\",\"\",MODULO_ISCRIZIONE!#REF!)","v":{"$error":"#REF!"}},{"$f":"IF(MODULO_ISCRIZIONE!#REF!=\"\",\"\",MODULO_ISCRIZIONE!#REF!)","v":{"$error":"#REF!"}}]
[{"$f":"IF(MODULO_ISCRIZIONE!#REF!=\"\",\"\",MODULO_ISCRIZIONE!#REF!)","v":{"$error":"#REF!"}},{"$f":"IF(MODULO_ISCRIZIONE!#REF!=\"\",\"\",MODULO_ISCRIZIONE!#REF!)","v":{"$error":"#REF!"}},{"$f":"IF(MODULO_ISCRIZIONE!D101=\"\",\"\",MODULO_ISCRIZIONE!D101)","v":""},"=SE('modulo iscrizione'!D8=\"\";\"\";maiusc('modulo iscrizione'!D8))",{"$f":"IF(MODULO_ISCRIZIONE!E101=\"\",\"\",MODULO_ISCRIZIONE!E101)","v":""},{"$f":"IF(MODULO_ISCRIZIONE!H101=\"\",\"\",MODULO_ISCRIZIONE!H101)","v":""},{"$f":"IF(MODULO_ISCRIZIONE!I101=\"\",\"\",MODULO_ISCRIZIONE!I101)","v":""},{"$f":"IF(MODULO_ISCRIZIONE!#REF!=\"\",\"\",MODULO_ISCRIZIONE!#REF!)","v":{"$error":"#REF!"}},{"$f":"IF(MODULO_ISCRIZIONE!#REF!=\"\",\"\",MODULO_ISCRIZIONE!#REF!)","v":{"$error":"#REF!"}}]
[{"$f":"IF(MODULO_ISCRIZIONE!#REF!=\"\",\"\",MODULO_ISCRIZIONE!#REF!)","v":{"$error":"#REF!"}},{"$f":"IF(MODULO_ISCRIZIONE!#REF!=\"\",\"\",MODULO_ISCRIZIONE!#REF!)","v":{"$error":"#REF!"}},{"$f":"IF(MODULO_ISCRIZIONE!D102=\"\",\"\",MODULO_ISCRIZIONE!D102)","v":""},"=SE('modulo iscrizione'!D8=\"\";\"\";maiusc('modulo iscrizione'!D8))",{"$f":"IF(MODULO_ISCRIZIONE!E102=\"\",\"\",MODULO_ISCRIZIONE!E102)","v":""},{"$f":"IF(MODULO_ISCRIZIONE!H102=\"\",\"\",MODULO_ISCRIZIONE!H102)","v":""},{"$f":"IF(MODULO_ISCRIZIONE!I102=\"\",\"\",MODULO_ISCRIZIONE!I102)","v":""},{"$f":"IF(MODULO_ISCRIZIONE!#REF!=\"\",\"\",MODULO_ISCRIZIONE!#REF!)","v":{"$error":"#REF!"}},{"$f":"IF(MODULO_ISCRIZIONE!#REF!=\"\",\"\",MODULO_ISCRIZIONE!#REF!)","v":{"$error":"#REF!"}}]
[{"$f":"IF(MODULO_ISCRIZIONE!#REF!=\"\",\"\",MODULO_ISCRIZIONE!#REF!)","v":{"$error":"#REF!"}},{"$f":"IF(MODULO_ISCRIZIONE!#REF!=\"\",\"\",MODULO_ISCRIZIONE!#REF!)","v":{"$error":"#REF!"}},{"$f":"IF(MODULO_ISCRIZIONE!D103=\"\",\"\",MODULO_ISCRIZIONE!D103)","v":""},"=SE('modulo iscrizione'!D8=\"\";\"\";maiusc('modulo iscrizione'!D8))",{"$f":"IF(MODULO_ISCRIZIONE!E103=\"\",\"\",MODULO_ISCRIZIONE!E103)","v":""},{"$f":"IF(MODULO_ISCRIZIONE!H103=\"\",\"\",MODULO_ISCRIZIONE!H103)","v":""},{"$f":"IF(MODULO_ISCRIZIONE!I103=\"\",\"\",MODULO_ISCRIZIONE!I103)","v":""},{"$f":"IF(MODULO_ISCRIZIONE!#REF!=\"\",\"\",MODULO_ISCRIZIONE!#REF!)","v":{"$error":"#REF!"}},{"$f":"IF(MODULO_ISCRIZIONE!#REF!=\"\",\"\",MODULO_ISCRIZIONE!#REF!)","v":{"$error":"#REF!"}}]
[{"$f":"IF(MODULO_ISCRIZIONE!#REF!=\"\",\"\",MODULO_ISCRIZIONE!#REF!)","v":{"$error":"#REF!"}},{"$f":"IF(MODULO_ISCRIZIONE!#REF!=\"\",\"\",MODULO_ISCRIZIONE!#REF!)","v":{"$error":"#REF!"}},{"$f":"IF(MODULO_ISCRIZIONE!D104=\"\",\"\",MODULO_ISCRIZIONE!D104)","v":""},"=SE('modulo iscrizione'!D8=\"\";\"\";maiusc('modulo iscrizione'!D8))",{"$f":"IF(MODULO_ISCRIZIONE!E104=\"\",\"\",MODULO_ISCRIZIONE!E104)","v":""},{"$f":"IF(MODULO_ISCRIZIONE!H104=\"\",\"\",MODULO_ISCRIZIONE!H104)","v":""},{"$f":"IF(MODULO_ISCRIZIONE!I104=\"\",\"\",MODULO_ISCRIZIONE!I104)","v":""},{"$f":"IF(MODULO_ISCRIZIONE!#REF!=\"\",\"\",MODULO_ISCRIZIONE!#REF!)","v":{"$error":"#REF!"}},{"$f":"IF(MODULO_ISCRIZIONE!#REF!=\"\",\"\",MODULO_ISCRIZIONE!#REF!)","v":{"$error":"#REF!"}}]
[{"$f":"IF(MODULO_ISCRIZIONE!#REF!=\"\",\"\",MODULO_ISCRIZIONE!#REF!)","v":{"$error":"#REF!"}},{"$f":"IF(MODULO_ISCRIZIONE!#REF!=\"\",\"\",MODULO_ISCRIZIONE!#REF!)","v":{"$error":"#REF!"}},{"$f":"IF(MODULO_ISCRIZIONE!D105=\"\",\"\",MODULO_ISCRIZIONE!D105)","v":""},"=SE('modulo iscrizione'!D8=\"\";\"\";maiusc('modulo iscrizione'!D8))",{"$f":"IF(MODULO_ISCRIZIONE!E105=\"\",\"\",MODULO_ISCRIZIONE!E105)","v":""},{"$f":"IF(MODULO_ISCRIZIONE!H105=\"\",\"\",MODULO_ISCRIZIONE!H105)","v":""},{"$f":"IF(MODULO_ISCRIZIONE!I105=\"\",\"\",MODULO_ISCRIZIONE!I105)","v":""},{"$f":"IF(MODULO_ISCRIZIONE!#REF!=\"\",\"\",MODULO_ISCRIZIONE!#REF!)","v":{"$error":"#REF!"}},{"$f":"IF(MODULO_ISCRIZIONE!#REF!=\"\",\"\",MODULO_ISCRIZIONE!#REF!)","v":{"$error":"#REF!"}}]
[{"$f":"IF(MODULO_ISCRIZIONE!#REF!=\"\",\"\",MODULO_ISCRIZIONE!#REF!)","v":{"$error":"#REF!"}},{"$f":"IF(MODULO_ISCRIZIONE!#REF!=\"\",\"\",MODULO_ISCRIZIONE!#REF!)","v":{"$error":"#REF!"}},{"$f":"IF(MODULO_ISCRIZIONE!D106=\"\",\"\",MODULO_ISCRIZIONE!D106)","v":""},"=SE('modulo iscrizione'!D8=\"\";\"\";maiusc('modulo iscrizione'!D8))",{"$f":"IF(MODULO_ISCRIZIONE!E106=\"\",\"\",MODULO_ISCRIZIONE!E106)","v":""},{"$f":"IF(MODULO_ISCRIZIONE!H106=\"\",\"\",MODULO_ISCRIZIONE!H106)","v":""},{"$f":"IF(MODULO_ISCRIZIONE!I106=\"\",\"\",MODULO_ISCRIZIONE!I106)","v":""},{"$f":"IF(MODULO_ISCRIZIONE!#REF!=\"\",\"\",MODULO_ISCRIZIONE!#REF!)","v":{"$error":"#REF!"}},{"$f":"IF(MODULO_ISCRIZIONE!#REF!=\"\",\"\",MODULO_ISCRIZIONE!#REF!)","v":{"$error":"#REF!"}}]
[{"$f":"IF(MODULO_ISCRIZIONE!#REF!=\"\",\"\",MODULO_ISCRIZIONE!#REF!)","v":{"$error":"#REF!"}},{"$f":"IF(MODULO_ISCRIZIONE!#REF!=\"\",\"\",MODULO_ISCRIZIONE!#REF!)","v":{"$error":"#REF!"}},{"$f":"IF(MODULO_ISCRIZIONE!D107=\"\",\"\",MODULO_ISCRIZIONE!D107)","v":""},"=SE('modulo iscrizione'!D8=\"\";\"\";maiusc('modulo iscrizione'!D8))",{"$f":"IF(MODULO_ISCRIZIONE!E107=\"\",\"\",MODULO_ISCRIZIONE!E107)","v":""},{"$f":"IF(MODULO_ISCRIZIONE!H107=\"\",\"\",MODULO_ISCRIZIONE!H107)","v":""},{"$f":"IF(MODULO_ISCRIZIONE!I107=\"\",\"\",MODULO_ISCRIZIONE!I107)","v":""},{"$f":"IF(MODULO_ISCRIZIONE!#REF!=\"\",\"\",MODULO_ISCRIZIONE!#REF!)","v":{"$error":"#REF!"}},{"$f":"IF(MODULO_ISCRIZIONE!#REF!=\"\",\"\",MODULO_ISCRIZIONE!#REF!)","v":{"$error":"#REF!"}}]
[{"$f":"IF(MODULO_ISCRIZIONE!#REF!=\"\",\"\",MODULO_ISCRIZIONE!#REF!)","v":{"$error":"#REF!"}},{"$f":"IF(MODULO_ISCRIZIONE!#REF!=\"\",\"\",MODULO_ISCRIZIONE!#REF!)","v":{"$error":"#REF!"}},{"$f":"IF(MODULO_ISCRIZIONE!D108=\"\",\"\",MODULO_ISCRIZIONE!D108)","v":""},"=SE('modulo iscrizione'!D8=\"\";\"\";maiusc('modulo iscrizione'!D8))",{"$f":"IF(MODULO_ISCRIZIONE!E108=\"\",\"\",MODULO_ISCRIZIONE!E108)","v":""},{"$f":"IF(MODULO_ISCRIZIONE!H108=\"\",\"\",MODULO_ISCRIZIONE!H108)","v":""},{"$f":"IF(MODULO_ISCRIZIONE!I108=\"\",\"\",MODULO_ISCRIZIONE!I108)","v":""},{"$f":"IF(MODULO_ISCRIZIONE!#REF!=\"\",\"\",MODULO_ISCRIZIONE!#REF!)","v":{"$error":"#REF!"}},{"$f":"IF(MODULO_ISCRIZIONE!#REF!=\"\",\"\",MODULO_ISCRIZIONE!#REF!)","v":{"$error":"#REF!"}}]
[{"$f":"IF(MODULO_ISCRIZIONE!#REF!=\"\",\"\",MODULO_ISCRIZIONE!#REF!)","v":{"$error":"#REF!"}},{"$f":"IF(MODULO_ISCRIZIONE!#REF!=\"\",\"\",MODULO_ISCRIZIONE!#REF!)","v":{"$error":"#REF!"}},{"$f":"IF(MODULO_ISCRIZIONE!D109=\"\",\"\",MODULO_ISCRIZIONE!D109)","v":""},"=SE('modulo iscrizione'!D8=\"\";\"\";maiusc('modulo iscrizione'!D8))",{"$f":"IF(MODULO_ISCRIZIONE!E109=\"\",\"\",MODULO_ISCRIZIONE!E109)","v":""},{"$f":"IF(MODULO_ISCRIZIONE!H109=\"\",\"\",MODULO_ISCRIZIONE!H109)","v":""},{"$f":"IF(MODULO_ISCRIZIONE!I109=\"\",\"\",MODULO_ISCRIZIONE!I109)","v":""},{"$f":"IF(MODULO_ISCRIZIONE!#REF!=\"\",\"\",MODULO_ISCRIZIONE!#REF!)","v":{"$error":"#REF!"}},{"$f":"IF(MODULO_ISCRIZIONE!#REF!=\"\",\"\",MODULO_ISCRIZIONE!#REF!)","v":{"$error":"#REF!"}}]
[{"$f":"IF(MODULO_ISCRIZIONE!#REF!=\"\",\"\",MODULO_ISCRIZIONE!#REF!)","v":{"$error":"#REF!"}},{"$f":"IF(MODULO_ISCRIZIONE!#REF!=\"\",\"\",MODULO_ISCRIZIONE!#REF!)","v":{"$error":"#REF!"}},{"$f":"IF(MODULO_ISCRIZIONE!D110=\"\",\"\",MODULO_ISCRIZIONE!D110)","v":""},"=SE('modulo iscrizione'!D8=\"\";\"\";maiusc('modulo iscrizione'!D8))",{"$f":"IF(MODULO_ISCRIZIONE!E110=\"\",\"\",MODULO_ISCRIZIONE!E110)","v":""},{"$f":"IF(MODULO_ISCRIZIONE!H110=\"\",\"\",MODULO_ISCRIZIONE!H110)","v":""},{"$f":"IF(MODULO_ISCRIZIONE!I110=\"\",\"\",MODULO_ISCRIZIONE!I110)","v":""},{"$f":"IF(MODULO_ISCRIZIONE!#REF!=\"\",\"\",MODULO_ISCRIZIONE!#REF!)","v":{"$error":"#REF!"}},{"$f":"IF(MODULO_ISCRIZIONE!#REF!=\"\",\"\",MODULO_ISCRIZIONE!#REF!)","v":{"$error":"#REF!"}}]
[{"$f":"IF(MODULO_ISCRIZIONE!#REF!=\"\",\"\",MODULO_ISCRIZIONE!#REF!)","v":{"$error":"#REF!"}},{"$f":"IF(MODULO_ISCRIZIONE!#REF!=\"\",\"\",MODULO_ISCRIZIONE!#REF!)","v":{"$error":"#REF!"}},{"$f":"IF(MODULO_ISCRIZIONE!D111=\"\",\"\",MODULO_ISCRIZIONE!D111)","v":""},"=SE('modulo iscrizione'!D8=\"\";\"\";maiusc('modulo iscrizione'!D8))",{"$f":"IF(MODULO_ISCRIZIONE!E111=\"\",\"\",MODULO_ISCRIZIONE!E111)","v":""},{"$f":"IF(MODULO_ISCRIZIONE!H111=\"\",\"\",MODULO_ISCRIZIONE!H111)","v":""},{"$f":"IF(MODULO_ISCRIZIONE!I111=\"\",\"\",MODULO_ISCRIZIONE!I111)","v":""},{"$f":"IF(MODULO_ISCRIZIONE!#REF!=\"\",\"\",MODULO_ISCRIZIONE!#REF!)","v":{"$error":"#REF!"}},{"$f":"IF(MODULO_ISCRIZIONE!#REF!=\"\",\"\",MODULO_ISCRIZIONE!#REF!)","v":{"$error":"#REF!"}}]
[{"$f":"IF(MODULO_ISCRIZIONE!#REF!=\"\",\"\",MODULO_ISCRIZIONE!#REF!)","v":{"$error":"#REF!"}},{"$f":"IF(MODULO_ISCRIZIONE!#REF!=\"\",\"\",MODULO_ISCRIZIONE!#REF!)","v":{"$error":"#REF!"}},{"$f":"IF(MODULO_ISCRIZIONE!D112=\"\",\"\",MODULO_ISCRIZIONE!D112)","v":""},"=SE('modulo iscrizione'!D8=\"\";\"\";maiusc('modulo iscrizione'!D8))",{"$f":"IF(MODULO_ISCRIZIONE!E112=\"\",\"\",MODULO_ISCRIZIONE!E112)","v":""},{"$f":"IF(MODULO_ISCRIZIONE!H112=\"\",\"\",MODULO_ISCRIZIONE!H112)","v":""},{"$f":"IF(MODULO_ISCRIZIONE!I112=\"\",\"\",MODULO_ISCRIZIONE!I112)","v":""},{"$f":"IF(MODULO_ISCRIZIONE!#REF!=\"\",\"\",MODULO_ISCRIZIONE!#REF!)","v":{"$error":"#REF!"}},{"$f":"IF(MODULO_ISCRIZIONE!#REF!=\"\",\"\",MODULO_ISCRIZIONE!#REF!)","v":{"$error":"#REF!"}}]
[{"$f":"IF(MODULO_ISCRIZIONE!#REF!=\"\",\"\",MODULO_ISCRIZIONE!#REF!)","v":{"$error":"#REF!"}},{"$f":"IF(MODULO_ISCRIZIONE!#REF!=\"\",\"\",MODULO_ISCRIZIONE!#REF!)","v":{"$error":"#REF!"}},{"$f":"IF(MODULO_ISCRIZIONE!D113=\"\",\"\",MODULO_ISCRIZIONE!D113)","v":""},"=SE('modulo iscrizione'!D8=\"\";\"\";maiusc('modulo iscrizione'!D8))",{"$f":"IF(MODULO_ISCRIZIONE!E113=\"\",\"\",MODULO_ISCRIZIONE!E113)","v":""},{"$f":"IF(MODULO_ISCRIZIONE!H113=\"\",\"\",MODULO_ISCRIZIONE!H113)","v":""},{"$f":"IF(MODULO_ISCRIZIONE!I113=\"\",\"\",MODULO_ISCRIZIONE!I113)","v":""},{"$f":"IF(MODULO_ISCRIZIONE!#REF!=\"\",\"\",MODULO_ISCRIZIONE!#REF!)","v":{"$error":"#REF!"}},{"$f":"IF(MODULO_ISCRIZIONE!#REF!=\"\",\"\",MODULO_ISCRIZIONE!#REF!)","v":{"$error":"#REF!"}}]
[{"$f":"IF(MODULO_ISCRIZIONE!#REF!=\"\",\"\",MODULO_ISCRIZIONE!#REF!)","v":{"$error":"#REF!"}},{"$f":"IF(MODULO_ISCRIZIONE!#REF!=\"\",\"\",MODULO_ISCRIZIONE!#REF!)","v":{"$error":"#REF!"}},{"$f":"IF(MODULO_ISCRIZIONE!D114=\"\",\"\",MODULO_ISCRIZIONE!D114)","v":""},"=SE('modulo iscrizione'!D8=\"\";\"\";maiusc('modulo iscrizione'!D8))",{"$f":"IF(MODULO_ISCRIZIONE!E114=\"\",\"\",MODULO_ISCRIZIONE!E114)","v":""},{"$f":"IF(MODULO_ISCRIZIONE!H114=\"\",\"\",MODULO_ISCRIZIONE!H114)","v":""},{"$f":"IF(MODULO_ISCRIZIONE!I114=\"\",\"\",MODULO_ISCRIZIONE!I114)","v":""},{"$f":"IF(MODULO_ISCRIZIONE!#REF!=\"\",\"\",MODULO_ISCRIZIONE!#REF!)","v":{"$error":"#REF!"}},{"$f":"IF(MODULO_ISCRIZIONE!#REF!=\"\",\"\",MODULO_ISCRIZIONE!#REF!)","v":{"$error":"#REF!"}}]
[{"$f":"IF(MODULO_ISCRIZIONE!#REF!=\"\",\"\",MODULO_ISCRIZIONE!#REF!)","v":{"$error":"#REF!"}},{"$f":"IF(MODULO_ISCRIZIONE!#REF!=\"\",\"\",MODULO_ISCRIZIONE!#REF!)","v":{"$error":"#REF!"}},{"$f":"IF(MODULO_ISCRIZIONE!D115=\"\",\"\",MODULO_ISCRIZIONE!D115)","v":""},"=SE('modulo iscrizione'!D8=\"\";\"\";maiusc('modulo iscrizione'!D8))",{"$f":"IF(MODULO_ISCRIZIONE!E115=\"\",\"\",MODULO_ISCRIZIONE!E115)","v":""},{"$f":"IF(MODULO_ISCRIZIONE!H115=\"\",\"\",MODULO_ISCRIZIONE!H115)","v":""},{"$f":"IF(MODULO_ISCRIZIONE!I115=\"\",\"\",MODULO_ISCRIZIONE!I115)","v":""},{"$f":"IF(MODULO_ISCRIZIONE!#REF!=\"\",\"\",MODULO_ISCRIZIONE!#REF!)","v":{"$error":"#REF!"}},{"$f":"IF(MODULO_ISCRIZIONE!#REF!=\"\",\"\",MODULO_ISCRIZIONE!#REF!)","v":{"$error":"#REF!"}}]
[{"$f":"IF(MODULO_ISCRIZIONE!#REF!=\"\",\"\",MODULO_ISCRIZIONE!#REF!)","v":{"$error":"#REF!"}},{"$f":"IF(MODULO_ISCRIZIONE!#REF!=\"\",\"\",MODULO_ISCRIZIONE!#REF!)","v":{"$error":"#REF!"}},{"$f":"IF(MODULO_ISCRIZIONE!D116=\"\",\"\",MODULO_ISCRIZIONE!D116)","v":""},"=SE('modulo iscrizione'!D8=\"\";\"\";maiusc('modulo iscrizione'!D8))",{"$f":"IF(MODULO_ISCRIZIONE!E116=\"\",\"\",MODULO_ISCRIZIONE!E116)","v":""},{"$f":"IF(MODULO_ISCRIZIONE!H116=\"\",\"\",MODULO_ISCRIZIONE!H116)","v":""},{"$f":"IF(MODULO_ISCRIZIONE!I116=\"\",\"\",MODULO_ISCRIZIONE!I116)","v":""},{"$f":"IF(MODULO_ISCRIZIONE!#REF!=\"\",\"\",MODULO_ISCRIZIONE!#REF!)","v":{"$error":"#REF!"}},{"$f":"IF(MODULO_ISCRIZIONE!#REF!=\"\",\"\",MODULO_ISCRIZIONE!#REF!)","v":{"$error":"#REF!"}}]
[{"$f":"IF(MODULO_ISCRIZIONE!#REF!=\"\",\"\",MODULO_ISCRIZIONE!#REF!)","v":{"$error":"#REF!"}},{"$f":"IF(MODULO_ISCRIZIONE!#REF!=\"\",\"\",MODULO_ISCRIZIONE!#REF!)","v":{"$error":"#REF!"}},{"$f":"IF(MODULO_ISCRIZIONE!D117=\"\",\"\",MODULO_ISCRIZIONE!D117)","v":""},"=SE('modulo iscrizione'!D8=\"\";\"\";maiusc('modulo iscrizione'!D8))",{"$f":"IF(MODULO_ISCRIZIONE!E117=\"\",\"\",MODULO_ISCRIZIONE!E117)","v":""},{"$f":"IF(MODULO_ISCRIZIONE!H117=\"\",\"\",MODULO_ISCRIZIONE!H117)","v":""},{"$f":"IF(MODULO_ISCRIZIONE!I117=\"\",\"\",MODULO_ISCRIZIONE!I117)","v":""},{"$f":"IF(MODULO_ISCRIZIONE!#REF!=\"\",\"\",MODULO_ISCRIZIONE!#REF!)","v":{"$error":"#REF!"}},{"$f":"IF(MODULO_ISCRIZIONE!#REF!=\"\",\"\",MODULO_ISCRIZIONE!#REF!)","v":{"$error":"#REF!"}}]
[{"$f":"IF(MODULO_ISCRIZIONE!#REF!=\"\",\"\",MODULO_ISCRIZIONE!#REF!)","v":{"$error":"#REF!"}},{"$f":"IF(MODULO_ISCRIZIONE!#REF!=\"\",\"\",MODULO_ISCRIZIONE!#REF!)","v":{"$error":"#REF!"}},{"$f":"IF(MODULO_ISCRIZIONE!D118=\"\",\"\",MODULO_ISCRIZIONE!D118)","v":""},"=SE('modulo iscrizione'!D8=\"\";\"\";maiusc('modulo iscrizione'!D8))",{"$f":"IF(MODULO_ISCRIZIONE!E118=\"\",\"\",MODULO_ISCRIZIONE!E118)","v":""},{"$f":"IF(MODULO_ISCRIZIONE!H118=\"\",\"\",MODULO_ISCRIZIONE!H118)","v":""},{"$f":"IF(MODULO_ISCRIZIONE!I118=\"\",\"\",MODULO_ISCRIZIONE!I118)","v":""},{"$f":"IF(MODULO_ISCRIZIONE!#REF!=\"\",\"\",MODULO_ISCRIZIONE!#REF!)","v":{"$error":"#REF!"}},{"$f":"IF(MODULO_ISCRIZIONE!#REF!=\"\",\"\",MODULO_ISCRIZIONE!#REF!)","v":{"$error":"#REF!"}}]
[{"$f":"IF(MODULO_ISCRIZIONE!#REF!=\"\",\"\",MODULO_ISCRIZIONE!#REF!)","v":{"$error":"#REF!"}},{"$f":"IF(MODULO_ISCRIZIONE!#REF!=\"\",\"\",MODULO_ISCRIZIONE!#REF!)","v":{"$error":"#REF!"}},{"$f":"IF(MODULO_ISCRIZIONE!D119=\"\",\"\",MODULO_ISCRIZIONE!D119)","v":""},"=SE('modulo iscrizione'!D8=\"\";\"\";maiusc('modulo iscrizione'!D8))",{"$f":"IF(MODULO_ISCRIZIONE!E119=\"\",\"\",MODULO_ISCRIZIONE!E119)","v":""},{"$f":"IF(MODULO_ISCRIZIONE!H119=\"\",\"\",MODULO_ISCRIZIONE!H119)","v":""},{"$f":"IF(MODULO_ISCRIZIONE!I119=\"\",\"\",MODULO_ISCRIZIONE!I119)","v":""},{"$f":"IF(MODULO_ISCRIZIONE!#REF!=\"\",\"\",MODULO_ISCRIZIONE!#REF!)","v":{"$error":"#REF!"}},{"$f":"IF(MODULO_ISCRIZIONE!#REF!=\"\",\"\",MODULO_ISCRIZIONE!#REF!)","v":{"$error":"#REF!"}}]
[{"$f":"IF(MODULO_ISCRIZIONE!#REF!=\"\",\"\",MODULO_ISCRIZIONE!#REF!)","v":{"$error":"#REF!"}},{"$f":"IF(MODULO_ISCRIZIONE!#REF!=\"\",\"\",MODULO_ISCRIZIONE!#REF!)","v":{"$error":"#REF!"}},{"$f":"IF(MODULO_ISCRIZIONE!D120=\"\",\"\",MODULO_ISCRIZIONE!D120)","v":""},"=SE('modulo iscrizione'!D8=\"\";\"\";maiusc('modulo iscrizione'!D8))",{"$f":"IF(MODULO_ISCRIZIONE!E120=\"\",\"\",MODULO_ISCRIZIONE!E120)","v":""},{"$f":"IF(MODULO_ISCRIZIONE!H120=\"\",\"\",MODULO_ISCRIZIONE!H120)","v":""},{"$f":"IF(MODULO_ISCRIZIONE!I120=\"\",\"\",MODULO_ISCRIZIONE!I120)","v":""},{"$f":"IF(MODULO_ISCRIZIONE!#REF!=\"\",\"\",MODULO_ISCRIZIONE!#REF!)","v":{"$error":"#REF!"}},{"$f":"IF(MODULO_ISCRIZIONE!#REF!=\"\",\"\",MODULO_ISCRIZIONE!#REF!)","v":{"$error":"#REF!"}}]
[{"$f":"IF(MODULO_ISCRIZIONE!#REF!=\"\",\"\",MODULO_ISCRIZIONE!#REF!)","v":{"$error":"#REF!"}},{"$f":"IF(MODULO_ISCRIZIONE!#REF!=\"\",\"\",MODULO_ISCRIZIONE!#REF!)","v":{"$error":"#REF!"}},{"$f":"IF(MODULO_ISCRIZIONE!D121=\"\",\"\",MODULO_ISCRIZIONE!D121)","v":""},"=SE('modulo iscrizione'!D8=\"\";\"\";maiusc('modulo iscrizione'!D8))",{"$f":"IF(MODULO_ISCRIZIONE!E121=\"\",\"\",MODULO_ISCRIZIONE!E121)","v":""},{"$f":"IF(MODULO_ISCRIZIONE!H121=\"\",\"\",MODULO_ISCRIZIONE!H121)","v":""},{"$f":"IF(MODULO_ISCRIZIONE!I121=\"\",\"\",MODULO_ISCRIZIONE!I121)","v":""},{"$f":"IF(MODULO_ISCRIZIONE!#REF!=\"\",\"\",MODULO_ISCRIZIONE!#REF!)","v":{"$error":"#REF!"}},{"$f":"IF(MODULO_ISCRIZIONE!#REF!=\"\",\"\",MODULO_ISCRIZIONE!#REF!)","v":{"$error":"#REF!"}}]
[{"$f":"IF(MODULO_ISCRIZIONE!#REF!=\"\",\"\",MODULO_ISCRIZIONE!#REF!)","v":{"$error":"#REF!"}},{"$f":"IF(MODULO_ISCRIZIONE!#REF!=\"\",\"\",MODULO_ISCRIZIONE!#REF!)","v":{"$error":"#REF!"}},{"$f":"IF(MODULO_ISCRIZIONE!D122=\"\",\"\",MODULO_ISCRIZIONE!D122)","v":""},"=SE('modulo iscrizione'!D8=\"\";\"\";maiusc('modulo iscrizione'!D8))",{"$f":"IF(MODULO_ISCRIZIONE!E122=\"\",\"\",MODULO_ISCRIZIONE!E122)","v":""},{"$f":"IF(MODULO_ISCRIZIONE!H122=\"\",\"\",MODULO_ISCRIZIONE!H122)","v":""},{"$f":"IF(MODULO_ISCRIZIONE!I122=\"\",\"\",MODULO_ISCRIZIONE!I122)","v":""},{"$f":"IF(MODULO_ISCRIZIONE!#REF!=\"\",\"\",MODULO_ISCRIZIONE!#REF!)","v":{"$error":"#REF!"}},{"$f":"IF(MODULO_ISCRIZIONE!#REF!=\"\",\"\",MODULO_ISCRIZIONE!#REF!)","v":{"$error":"#REF!"}}]
[{"$f":"IF(MODULO_ISCRIZIONE!#REF!=\"\",\"\",MODULO_ISCRIZIONE!#REF!)","v":{"$error":"#REF!"}},{"$f":"IF(MODULO_ISCRIZIONE!#REF!=\"\",\"\",MODULO_ISCRIZIONE!#REF!)","v":{"$error":"#REF!"}},{"$f":"IF(MODULO_ISCRIZIONE!D123=\"\",\"\",MODULO_ISCRIZIONE!D123)","v":""},"=SE('modulo iscrizione'!D8=\"\";\"\";maiusc('modulo iscrizione'!D8))",{"$f":"IF(MODULO_ISCRIZIONE!E123=\"\",\"\",MODULO_ISCRIZIONE!E123)","v":""},{"$f":"IF(MODULO_ISCRIZIONE!H123=\"\",\"\",MODULO_ISCRIZIONE!H123)","v":""},{"$f":"IF(MODULO_ISCRIZIONE!I123=\"\",\"\",MODULO_ISCRIZIONE!I123)","v":""},{"$f":"IF(MODULO_ISCRIZIONE!#REF!=\"\",\"\",MODULO_ISCRIZIONE!#REF!)","v":{"$error":"#REF!"}},{"$f":"IF(MODULO_ISCRIZIONE!#REF!=\"\",\"\",MODULO_ISCRIZIONE!#REF!)","v":{"$error":"#REF!"}}]
[{"$f":"IF(MODULO_ISCRIZIONE!#REF!=\"\",\"\",MODULO_ISCRIZIONE!#REF!)","v":{"$error":"#REF!"}},{"$f":"IF(MODULO_ISCRIZIONE!#REF!=\"\",\"\",MODULO_ISCRIZIONE!#REF!)","v":{"$error":"#REF!"}},{"$f":"IF(MODULO_ISCRIZIONE!D124=\"\",\"\",MODULO_ISCRIZIONE!D124)","v":""},"=SE('modulo iscrizione'!D8=\"\";\"\";maiusc('modulo iscrizione'!D8))",{"$f":"IF(MODULO_ISCRIZIONE!E124=\"\",\"\",MODULO_ISCRIZIONE!E124)","v":""},{"$f":"IF(MODULO_ISCRIZIONE!H124=\"\",\"\",MODULO_ISCRIZIONE!H124)","v":""},{"$f":"IF(MODULO_ISCRIZIONE!I124=\"\",\"\",MODULO_ISCRIZIONE!I124)","v":""},{"$f":"IF(MODULO_ISCRIZIONE!#REF!=\"\",\"\",MODULO_ISCRIZIONE!#REF!)","v":{"$error":"#REF!"}},{"$f":"IF(MODULO_ISCRIZIONE!#REF!=\"\",\"\",MODULO_ISCRIZIONE!#REF!)","v":{"$error":"#REF!"}}]
[{"$f":"IF(MODULO_ISCRIZIONE!#REF!=\"\",\"\",MODULO_ISCRIZIONE!#REF!)","v":{"$error":"#REF!"}},{"$f":"IF(MODULO_ISCRIZIONE!#REF!=\"\",\"\",MODULO_ISCRIZIONE!#REF!)","v":{"$error":"#REF!"}},{"$f":"IF(MODULO_ISCRIZIONE!D125=\"\",\"\",MODULO_ISCRIZIONE!D125)","v":""},"=SE('modulo iscrizione'!D8=\"\";\"\";maiusc('modulo iscrizione'!D8))",{"$f":"IF(MODULO_ISCRIZIONE!E125=\"\",\"\",MODULO_ISCRIZIONE!E125)","v":""},{"$f":"IF(MODULO_ISCRIZIONE!H125=\"\",\"\",MODULO_ISCRIZIONE!H125)","v":""},{"$f":"IF(MODULO_ISCRIZIONE!I125=\"\",\"\",MODULO_ISCRIZIONE!I125)","v":""},{"$f":"IF(MODULO_ISCRIZIONE!#REF!=\"\",\"\",MODULO_ISCRIZIONE!#REF!)","v":{"$error":"#REF!"}},{"$f":"IF(MODULO_ISCRIZIONE!#REF!=\"\",\"\",MODULO_ISCRIZIONE!#REF!)","v":{"$error":"#REF!"}}]
[{"$f":"IF(MODULO_ISCRIZIONE!#REF!=\"\",\"\",MODULO_ISCRIZIONE!#REF!)","v":{"$error":"#REF!"}},{"$f":"IF(MODULO_ISCRIZIONE!#REF!=\"\",\"\",MODULO_ISCRIZIONE!#REF!)","v":{"$error":"#REF!"}},{"$f":"IF(MODULO_ISCRIZIONE!D126=\"\",\"\",MODULO_ISCRIZIONE!D126)","v":""},"=SE('modulo iscrizione'!D8=\"\";\"\";maiusc('modulo iscrizione'!D8))",{"$f":"IF(MODULO_ISCRIZIONE!E126=\"\",\"\",MODULO_ISCRIZIONE!E126)","v":""},{"$f":"IF(MODULO_ISCRIZIONE!H126=\"\",\"\",MODULO_ISCRIZIONE!H126)","v":""},{"$f":"IF(MODULO_ISCRIZIONE!I126=\"\",\"\",MODULO_ISCRIZIONE!I126)","v":""},{"$f":"IF(MODULO_ISCRIZIONE!#REF!=\"\",\"\",MODULO_ISCRIZIONE!#REF!)","v":{"$error":"#REF!"}},{"$f":"IF(MODULO_ISCRIZIONE!#REF!=\"\",\"\",MODULO_ISCRIZIONE!#REF!)","v":{"$error":"#REF!"}}]
[{"$f":"IF(MODULO_ISCRIZIONE!#REF!=\"\",\"\",MODULO_ISCRIZIONE!#REF!)","v":{"$error":"#REF!"}},{"$f":"IF(MODULO_ISCRIZIONE!#REF!=\"\",\"\",MODULO_ISCRIZIONE!#REF!)","v":{"$error":"#REF!"}},{"$f":"IF(MODULO_ISCRIZIONE!D127=\"\",\"\",MODULO_ISCRIZIONE!D127)","v":""},"=SE('modulo iscrizione'!D8=\"\";\"\";maiusc('modulo iscrizione'!D8))",{"$f":"IF(MODULO_ISCRIZIONE!E127=\"\",\"\",MODULO_ISCRIZIONE!E127)","v":""},{"$f":"IF(MODULO_ISCRIZIONE!H127=\"\",\"\",MODULO_ISCRIZIONE!H127)","v":""},{"$f":"IF(MODULO_ISCRIZIONE!I127=\"\",\"\",MODULO_ISCRIZIONE!I127)","v":""},{"$f":"IF(MODULO_ISCRIZIONE!#REF!=\"\",\"\",MODULO_ISCRIZIONE!#REF!)","v":{"$error":"#REF!"}},{"$f":"IF(MODULO_ISCRIZIONE!#REF!=\"\",\"\",MODULO_ISCRIZIONE!#REF!)","v":{"$error":"#REF!"}}]
[{"$f":"IF(MODULO_ISCRIZIONE!#REF!=\"\",\"\",MODULO_ISCRIZIONE!#REF!)","v":{"$error":"#REF!"}},{"$f":"IF(MODULO_ISCRIZIONE!#REF!=\"\",\"\",MODULO_ISCRIZIONE!#REF!)","v":{"$error":"#REF!"}},{"$f":"IF(MODULO_ISCRIZIONE!D128=\"\",\"\",MODULO_ISCRIZIONE!D128)","v":""},"=SE('modulo iscrizione'!D8=\"\";\"\";maiusc('modulo iscrizione'!D8))",{"$f":"IF(MODULO_ISCRIZIONE!E128=\"\",\"\",MODULO_ISCRIZIONE!E128)","v":""},{"$f":"IF(MODULO_ISCRIZIONE!H128=\"\",\"\",MODULO_ISCRIZIONE!H128)","v":""},{"$f":"IF(MODULO_ISCRIZIONE!I128=\"\",\"\",MODULO_ISCRIZIONE!I128)","v":""},{"$f":"IF(MODULO_ISCRIZIONE!#REF!=\"\",\"\",MODULO_ISCRIZIONE!#REF!)","v":{"$error":"#REF!"}},{"$f":"IF(MODULO_ISCRIZIONE!#REF!=\"\",\"\",MODULO_ISCRIZIONE!#REF!)","v":{"$error":"#REF!"}}]
[{"$f":"IF(MODULO_ISCRIZIONE!#REF!=\"\",\"\",MODULO_ISCRIZIONE!#REF!)","v":{"$error":"#REF!"}},{"$f":"IF(MODULO_ISCRIZIONE!#REF!=\"\",\"\",MODULO_ISCRIZIONE!#REF!)","v":{"$error":"#REF!"}},{"$f":"IF(MODULO_ISCRIZIONE!D129=\"\",\"\",MODULO_ISCRIZIONE!D129)","v":""},"=SE('modulo iscrizione'!D8=\"\";\"\";maiusc('modulo iscrizione'!D8))",{"$f":"IF(MODULO_ISCRIZIONE!E129=\"\",\"\",MODULO_ISCRIZIONE!E129)","v":""},{"$f":"IF(MODULO_ISCRIZIONE!H129=\"\",\"\",MODULO_ISCRIZIONE!H129)","v":""},{"$f":"IF(MODULO_ISCRIZIONE!I129=\"\",\"\",MODULO_ISCRIZIONE!I129)","v":""},{"$f":"IF(MODULO_ISCRIZIONE!#REF!=\"\",\"\",MODULO_ISCRIZIONE!#REF!)","v":{"$error":"#REF!"}},{"$f":"IF(MODULO_ISCRIZIONE!#REF!=\"\",\"\",MODULO_ISCRIZIONE!#REF!)","v":{"$error":"#REF!"}}]
[{"$f":"IF(MODULO_ISCRIZIONE!#REF!=\"\",\"\",MODULO_ISCRIZIONE!#REF!)","v":{"$error":"#REF!"}},{"$f":"IF(MODULO_ISCRIZIONE!#REF!=\"\",\"\",MODULO_ISCRIZIONE!#REF!)","v":{"$error":"#REF!"}},{"$f":"IF(MODULO_ISCRIZIONE!D130=\"\",\"\",MODULO_ISCRIZIONE!D130)","v":""},"=SE('modulo iscrizione'!D8=\"\";\"\";maiusc('modulo iscrizione'!D8))",{"$f":"IF(MODULO_ISCRIZIONE!E130=\"\",\"\",MODULO_ISCRIZIONE!E130)","v":""},{"$f":"IF(MODULO_ISCRIZIONE!H130=\"\",\"\",MODULO_ISCRIZIONE!H130)","v":""},{"$f":"IF(MODULO_ISCRIZIONE!I130=\"\",\"\",MODULO_ISCRIZIONE!I130)","v":""},{"$f":"IF(MODULO_ISCRIZIONE!#REF!=\"\",\"\",MODULO_ISCRIZIONE!#REF!)","v":{"$error":"#REF!"}},{"$f":"IF(MODULO_ISCRIZIONE!#REF!=\"\",\"\",MODULO_ISCRIZIONE!#REF!)","v":{"$error":"#REF!"}}]
[{"$f":"IF(MODULO_ISCRIZIONE!#REF!=\"\",\"\",MODULO_ISCRIZIONE!#REF!)","v":{"$error":"#REF!"}},{"$f":"IF(MODULO_ISCRIZIONE!#REF!=\"\",\"\",MODULO_ISCRIZIONE!#REF!)","v":{"$error":"#REF!"}},{"$f":"IF(MODULO_ISCRIZIONE!D131=\"\",\"\",MODULO_ISCRIZIONE!D131)","v":""},"=SE('modulo iscrizione'!D8=\"\";\"\";maiusc('modulo iscrizione'!D8))",{"$f":"IF(MODULO_ISCRIZIONE!E131=\"\",\"\",MODULO_ISCRIZIONE!E131)","v":""},{"$f":"IF(MODULO_ISCRIZIONE!H131=\"\",\"\",MODULO_ISCRIZIONE!H131)","v":""},{"$f":"IF(MODULO_ISCRIZIONE!I131=\"\",\"\",MODULO_ISCRIZIONE!I131)","v":""},{"$f":"IF(MODULO_ISCRIZIONE!#REF!=\"\",\"\",MODULO_ISCRIZIONE!#REF!)","v":{"$error":"#REF!"}},{"$f":"IF(MODULO_ISCRIZIONE!#REF!=\"\",\"\",MODULO_ISCRIZIONE!#REF!)","v":{"$error":"#REF!"}}]
[{"$f":"IF(MODULO_ISCRIZIONE!#REF!=\"\",\"\",MODULO_ISCRIZIONE!#REF!)","v":{"$error":"#REF!"}},{"$f":"IF(MODULO_ISCRIZIONE!#REF!=\"\",\"\",MODULO_ISCRIZIONE!#REF!)","v":{"$error":"#REF!"}},{"$f":"IF(MODULO_ISCRIZIONE!D132=\"\",\"\",MODULO_ISCRIZIONE!D132)","v":""},"=SE('modulo iscrizione'!D8=\"\";\"\";maiusc('modulo iscrizione'!D8))",{"$f":"IF(MODULO_ISCRIZIONE!E132=\"\",\"\",MODULO_ISCRIZIONE!E132)","v":""},{"$f":"IF(MODULO_ISCRIZIONE!H132=\"\",\"\",MODULO_ISCRIZIONE!H132)","v":""},{"$f":"IF(MODULO_ISCRIZIONE!I132=\"\",\"\",MODULO_ISCRIZIONE!I132)","v":""},{"$f":"IF(MODULO_ISCRIZIONE!#REF!=\"\",\"\",MODULO_ISCRIZIONE!#REF!)","v":{"$error":"#REF!"}},{"$f":"IF(MODULO_ISCRIZIONE!#REF!=\"\",\"\",MODULO_ISCRIZIONE!#REF!)","v":{"$error":"#REF!"}}]
[{"$f":"IF(MODULO_ISCRIZIONE!#REF!=\"\",\"\",MODULO_ISCRIZIONE!#REF!)","v":{"$error":"#REF!"}},{"$f":"IF(MODULO_ISCRIZIONE!#REF!=\"\",\"\",MODULO_ISCRIZIONE!#REF!)","v":{"$error":"#REF!"}},{"$f":"IF(MODULO_ISCRIZIONE!D133=\"\",\"\",MODULO_ISCRIZIONE!D133)","v":""},"=SE('modulo iscrizione'!D8=\"\";\"\";maiusc('modulo iscrizione'!D8))",{"$f":"IF(MODULO_ISCRIZIONE!E133=\"\",\"\",MODULO_ISCRIZIONE!E133)","v":""},{"$f":"IF(MODULO_ISCRIZIONE!H133=\"\",\"\",MODULO_ISCRIZIONE!H133)","v":""},{"$f":"IF(MODULO_ISCRIZIONE!I133=\"\",\"\",MODULO_ISCRIZIONE!I133)","v":""},{"$f":"IF(MODULO_ISCRIZIONE!#REF!=\"\",\"\",MODULO_ISCRIZIONE!#REF!)","v":{"$error":"#REF!"}},{"$f":"IF(MODULO_ISCRIZIONE!#REF!=\"\",\"\",MODULO_ISCRIZIONE!#REF!)","v":{"$error":"#REF!"}}]
[{"$f":"IF(MODULO_ISCRIZIONE!#REF!=\"\",\"\",MODULO_ISCRIZIONE!#REF!)","v":{"$error":"#REF!"}},{"$f":"IF(MODULO_ISCRIZIONE!#REF!=\"\",\"\",MODULO_ISCRIZIONE!#REF!)","v":{"$error":"#REF!"}},{"$f":"IF(MODULO_ISCRIZIONE!D134=\"\",\"\",MODULO_ISCRIZIONE!D134)","v":""},"=SE('modulo iscrizione'!D8=\"\";\"\";maiusc('modulo iscrizione'!D8))",{"$f":"IF(MODULO_ISCRIZIONE!E134=\"\",\"\",MODULO_ISCRIZIONE!E134)","v":""},{"$f":"IF(MODULO_ISCRIZIONE!H134=\"\",\"\",MODULO_ISCRIZIONE!H134)","v":""},{"$f":"IF(MODULO_ISCRIZIONE!I134=\"\",\"\",MODULO_ISCRIZIONE!I134)","v":""},{"$f":"IF(MODULO_ISCRIZIONE!#REF!=\"\",\"\",MODULO_ISCRIZIONE!#REF!)","v":{"$error":"#REF!"}},{"$f":"IF(MODULO_ISCRIZIONE!#REF!=\"\",\"\",MODULO_ISCRIZIONE!#REF!)","v":{"$error":"#REF!"}}]
[{"$f":"IF(MODULO_ISCRIZIONE!#REF!=\"\",\"\",MODULO_ISCRIZIONE!#REF!)","v":{"$error":"#REF!"}},{"$f":"IF(MODULO_ISCRIZIONE!#REF!=\"\",\"\",MODULO_ISCRIZIONE!#REF!)","v":{"$error":"#REF!"}},{"$f":"IF(MODULO_ISCRIZIONE!D135=\"\",\"\",MODULO_ISCRIZIONE!D135)","v":""},"=SE('modulo iscrizione'!D8=\"\";\"\";maiusc('modulo iscrizione'!D8))",{"$f":"IF(MODULO_ISCRIZIONE!E135=\"\",\"\",MODULO_ISCRIZIONE!E135)","v":""},{"$f":"IF(MODULO_ISCRIZIONE!H135=\"\",\"\",MODULO_ISCRIZIONE!H135)","v":""},{"$f":"IF(MODULO_ISCRIZIONE!I135=\"\",\"\",MODULO_ISCRIZIONE!I135)","v":""},{"$f":"IF(MODULO_ISCRIZIONE!#REF!=\"\",\"\",MODULO_ISCRIZIONE!#REF!)","v":{"$error":"#REF!"}},{"$f":"IF(MODULO_ISCRIZIONE!#REF!=\"\",\"\",MODULO_ISCRIZIONE!#REF!)","v":{"$error":"#REF!"}}]
[{"$f":"IF(MODULO_ISCRIZIONE!#REF!=\"\",\"\",MODULO_ISCRIZIONE!#REF!)","v":{"$error":"#REF!"}},{"$f":"IF(MODULO_ISCRIZIONE!#REF!=\"\",\"\",MODULO_ISCRIZIONE!#REF!)","v":{"$error":"#REF!"}},{"$f":"IF(MODULO_ISCRIZIONE!D136=\"\",\"\",MODULO_ISCRIZIONE!D136)","v":""},"=SE('modulo iscrizione'!D8=\"\";\"\";maiusc('modulo iscrizione'!D8))",{"$f":"IF(MODULO_ISCRIZIONE!E136=\"\",\"\",MODULO_ISCRIZIONE!E136)","v":""},{"$f":"IF(MODULO_ISCRIZIONE!H136=\"\",\"\",MODULO_ISCRIZIONE!H136)","v":""},{"$f":"IF(MODULO_ISCRIZIONE!I136=\"\",\"\",MODULO_ISCRIZIONE!I136)","v":""},{"$f":"IF(MODULO_ISCRIZIONE!#REF!=\"\",\"\",MODULO_ISCRIZIONE!#REF!)","v":{"$error":"#REF!"}},{"$f":"IF(MODULO_ISCRIZIONE!#REF!=\"\",\"\",MODULO_ISCRIZIONE!#REF!)","v":{"$error":"#REF!"}}]
[{"$f":"IF(MODULO_ISCRIZIONE!#REF!=\"\",\"\",MODULO_ISCRIZIONE!#REF!)","v":{"$error":"#REF!"}},{"$f":"IF(MODULO_ISCRIZIONE!#REF!=\"\",\"\",MODULO_ISCRIZIONE!#REF!)","v":{"$error":"#REF!"}},{"$f":"IF(MODULO_ISCRIZIONE!D137=\"\",\"\",MODULO_ISCRIZIONE!D137)","v":""},"=SE('modulo iscrizione'!D8=\"\";\"\";maiusc('modulo iscrizione'!D8))",{"$f":"IF(MODULO_ISCRIZIONE!E137=\"\",\"\",MODULO_ISCRIZIONE!E137)","v":""},{"$f":"IF(MODULO_ISCRIZIONE!H137=\"\",\"\",MODULO_ISCRIZIONE!H137)","v":""},{"$f":"IF(MODULO_ISCRIZIONE!I137=\"\",\"\",MODULO_ISCRIZIONE!I137)","v":""},{"$f":"IF(MODULO_ISCRIZIONE!#REF!=\"\",\"\",MODULO_ISCRIZIONE!#REF!)","v":{"$error":"#REF!"}},{"$f":"IF(MODULO_ISCRIZIONE!#REF!=\"\",\"\",MODULO_ISCRIZIONE!#REF!)","v":{"$error":"#REF!"}}]
[{"$f":"IF(MODULO_ISCRIZIONE!#REF!=\"\",\"\",MODULO_ISCRIZIONE!#REF!)","v":{"$error":"#REF!"}},{"$f":"IF(MODULO_ISCRIZIONE!#REF!=\"\",\"\",MODULO_ISCRIZIONE!#REF!)","v":{"$error":"#REF!"}},{"$f":"IF(MODULO_ISCRIZIONE!D138=\"\",\"\",MODULO_ISCRIZIONE!D138)","v":""},"=SE('modulo iscrizione'!D8=\"\";\"\";maiusc('modulo iscrizione'!D8))",{"$f":"IF(MODULO_ISCRIZIONE!E138=\"\",\"\",MODULO_ISCRIZIONE!E138)","v":""},{"$f":"IF(MODULO_ISCRIZIONE!H138=\"\",\"\",MODULO_ISCRIZIONE!H138)","v":""},{"$f":"IF(MODULO_ISCRIZIONE!I138=\"\",\"\",MODULO_ISCRIZIONE!I138)","v":""},{"$f":"IF(MODULO_ISCRIZIONE!#REF!=\"\",\"\",MODULO_ISCRIZIONE!#REF!)","v":{"$error":"#REF!"}},{"$f":"IF(MODULO_ISCRIZIONE!#REF!=\"\",\"\",MODULO_ISCRIZIONE!#REF!)","v":{"$error":"#REF!"}}]
[{"$f":"IF(MODULO_ISCRIZIONE!#REF!=\"\",\"\",MODULO_ISCRIZIONE!#REF!)","v":{"$error":"#REF!"}},{"$f":"IF(MODULO_ISCRIZIONE!#REF!=\"\",\"\",MODULO_ISCRIZIONE!#REF!)","v":{"$error":"#REF!"}},{"$f":"IF(MODULO_ISCRIZIONE!D139=\"\",\"\",MODULO_ISCRIZIONE!D139)","v":""},"=SE('modulo iscrizione'!D8=\"\";\"\";maiusc('modulo iscrizione'!D8))",{"$f":"IF(MODULO_ISCRIZIONE!E139=\"\",\"\",MODULO_ISCRIZIONE!E139)","v":""},{"$f":"IF(MODULO_ISCRIZIONE!H139=\"\",\"\",MODULO_ISCRIZIONE!H139)","v":""},{"$f":"IF(MODULO_ISCRIZIONE!I139=\"\",\"\",MODULO_ISCRIZIONE!I139)","v":""},{"$f":"IF(MODULO_ISCRIZIONE!#REF!=\"\",\"\",MODULO_ISCRIZIONE!#REF!)","v":{"$error":"#REF!"}},{"$f":"IF(MODULO_ISCRIZIONE!#REF!=\"\",\"\",MODULO_ISCRIZIONE!#REF!)","v":{"$error":"#REF!"}}]
[{"$f":"IF(MODULO_ISCRIZIONE!#REF!=\"\",\"\",MODULO_ISCRIZIONE!#REF!)","v":{"$error":"#REF!"}},{"$f":"IF(MODULO_ISCRIZIONE!#REF!=\"\",\"\",MODULO_ISCRIZIONE!#REF!)","v":{"$error":"#REF!"}},{"$f":"IF(MODULO_ISCRIZIONE!D140=\"\",\"\",MODULO_ISCRIZIONE!D140)","v":""},"=SE('modulo iscrizione'!D8=\"\";\"\";maiusc('modulo iscrizione'!D8))",{"$f":"IF(MODULO_ISCRIZIONE!E140=\"\",\"\",MODULO_ISCRIZIONE!E140)","v":""},{"$f":"IF(MODULO_ISCRIZIONE!H140=\"\",\"\",MODULO_ISCRIZIONE!H140)","v":""},{"$f":"IF(MODULO_ISCRIZIONE!I140=\"\",\"\",MODULO_ISCRIZIONE!I140)","v":""},{"$f":"IF(MODULO_ISCRIZIONE!#REF!=\"\",\"\",MODULO_ISCRIZIONE!#REF!)","v":{"$error":"#REF!"}},{"$f":"IF(MODULO_ISCRIZIONE!#REF!=\"\",\"\",MODULO_ISCRIZIONE!#REF!)","v":{"$error":"#REF!"}}]
[{"$f":"IF(MODULO_ISCRIZIONE!#REF!=\"\",\"\",MODULO_ISCRIZIONE!#REF!)","v":{"$error":"#REF!"}},{"$f":"IF(MODULO_ISCRIZIONE!#REF!=\"\",\"\",MODULO_ISCRIZIONE!#REF!)","v":{"$error":"#REF!"}},{"$f":"IF(MODULO_ISCRIZIONE!D141=\"\",\"\",MODULO_ISCRIZIONE!D141)","v":""},"=SE('modulo iscrizione'!D8=\"\";\"\";maiusc('modulo iscrizione'!D8))",{"$f":"IF(MODULO_ISCRIZIONE!E141=\"\",\"\",MODULO_ISCRIZIONE!E141)","v":""},{"$f":"IF(MODULO_ISCRIZIONE!H141=\"\",\"\",MODULO_ISCRIZIONE!H141)","v":""},{"$f":"IF(MODULO_ISCRIZIONE!I141=\"\",\"\",MODULO_ISCRIZIONE!I141)","v":""},{"$f":"IF(MODULO_ISCRIZIONE!#REF!=\"\",\"\",MODULO_ISCRIZIONE!#REF!)","v":{"$error":"#REF!"}},{"$f":"IF(MODULO_ISCRIZIONE!#REF!=\"\",\"\",MODULO_ISCRIZIONE!#REF!)","v":{"$error":"#REF!"}}]
[{"$f":"IF(MODULO_ISCRIZIONE!#REF!=\"\",\"\",MODULO_ISCRIZIONE!#REF!)","v":{"$error":"#REF!"}},{"$f":"IF(MODULO_ISCRIZIONE!#REF!=\"\",\"\",MODULO_ISCRIZIONE!#REF!)","v":{"$error":"#REF!"}},{"$f":"IF(MODULO_ISCRIZIONE!D142=\"\",\"\",MODULO_ISCRIZIONE!D142)","v":""},"=SE('modulo iscrizione'!D8=\"\";\"\";maiusc('modulo iscrizione'!D8))",{"$f":"IF(MODULO_ISCRIZIONE!E142=\"\",\"\",MODULO_ISCRIZIONE!E142)","v":""},{"$f":"IF(MODULO_ISCRIZIONE!H142=\"\",\"\",MODULO_ISCRIZIONE!H142)","v":""},{"$f":"IF(MODULO_ISCRIZIONE!I142=\"\",\"\",MODULO_ISCRIZIONE!I142)","v":""},{"$f":"IF(MODULO_ISCRIZIONE!#REF!=\"\",\"\",MODULO_ISCRIZIONE!#REF!)","v":{"$error":"#REF!"}},{"$f":"IF(MODULO_ISCRIZIONE!#REF!=\"\",\"\",MODULO_ISCRIZIONE!#REF!)","v":{"$error":"#REF!"}}]
[{"$f":"IF(MODULO_ISCRIZIONE!#REF!=\"\",\"\",MODULO_ISCRIZIONE!#REF!)","v":{"$error":"#REF!"}},{"$f":"IF(MODULO_ISCRIZIONE!#REF!=\"\",\"\",MODULO_ISCRIZIONE!#REF!)","v":{"$error":"#REF!"}},{"$f":"IF(MODULO_ISCRIZIONE!D143=\"\",\"\",MODULO_ISCRIZIONE!D143)","v":""},"=SE('modulo iscrizione'!D8=\"\";\"\";maiusc('modulo iscrizione'!D8))",{"$f":"IF(MODULO_ISCRIZIONE!E143=\"\",\"\",MODULO_ISCRIZIONE!E143)","v":""},{"$f":"IF(MODULO_ISCRIZIONE!H143=\"\",\"\",MODULO_ISCRIZIONE!H143)","v":""},{"$f":"IF(MODULO_ISCRIZIONE!I143=\"\",\"\",MODULO_ISCRIZIONE!I143)","v":""},{"$f":"IF(MODULO_ISCRIZIONE!#REF!=\"\",\"\",MODULO_ISCRIZIONE!#REF!)","v":{"$error":"#REF!"}},{"$f":"IF(MODULO_ISCRIZIONE!#REF!=\"\",\"\",MODULO_ISCRIZIONE!#REF!)","v":{"$error":"#REF!"}}]
[{"$f":"IF(MODULO_ISCRIZIONE!#REF!=\"\",\"\",MODULO_ISCRIZIONE!#REF!)","v":{"$error":"#REF!"}},{"$f":"IF(MODULO_ISCRIZIONE!#REF!=\"\",\"\",MODULO_ISCRIZIONE!#REF!)","v":{"$error":"#REF!"}},{"$f":"IF(MODULO_ISCRIZIONE!D144=\"\",\"\",MODULO_ISCRIZIONE!D144)","v":""},"=SE('modulo iscrizione'!D8=\"\";\"\";maiusc('modulo iscrizione'!D8))",{"$f":"IF(MODULO_ISCRIZIONE!E144=\"\",\"\",MODULO_ISCRIZIONE!E144)","v":""},{"$f":"IF(MODULO_ISCRIZIONE!H144=\"\",\"\",MODULO_ISCRIZIONE!H144)","v":""},{"$f":"IF(MODULO_ISCRIZIONE!I144=\"\",\"\",MODULO_ISCRIZIONE!I144)","v":""},{"$f":"IF(MODULO_ISCRIZIONE!#REF!=\"\",\"\",MODULO_ISCRIZIONE!#REF!)","v":{"$error":"#REF!"}},{"$f":"IF(MODULO_ISCRIZIONE!#REF!=\"\",\"\",MODULO_ISCRIZIONE!#REF!)","v":{"$error":"#REF!"}}]
[{"$f":"IF(MODULO_ISCRIZIONE!#REF!=\"\",\"\",MODULO_ISCRIZIONE!#REF!)","v":{"$error":"#REF!"}},{"$f":"IF(MODULO_ISCRIZIONE!#REF!=\"\",\"\",MODULO_ISCRIZIONE!#REF!)","v":{"$error":"#REF!"}},{"$f":"IF(MODULO_ISCRIZIONE!D145=\"\",\"\",MODULO_ISCRIZIONE!D145)","v":""},"=SE('modulo iscrizione'!D8=\"\";\"\";maiusc('modulo iscrizione'!D8))",{"$f":"IF(MODULO_ISCRIZIONE!E145=\"\",\"\",MODULO_ISCRIZIONE!E145)","v":""},{"$f":"IF(MODULO_ISCRIZIONE!H145=\"\",\"\",MODULO_ISCRIZIONE!H145)","v":""},{"$f":"IF(MODULO_ISCRIZIONE!I145=\"\",\"\",MODULO_ISCRIZIONE!I145)","v":""},{"$f":"IF(MODULO_ISCRIZIONE!#REF!=\"\",\"\",MODULO_ISCRIZIONE!#REF!)","v":{"$error":"#REF!"}},{"$f":"IF(MODULO_ISCRIZIONE!#REF!=\"\",\"\",MODULO_ISCRIZIONE!#REF!)","v":{"$error":"#REF!"}}]
[{"$f":"IF(MODULO_ISCRIZIONE!#REF!=\"\",\"\",MODULO_ISCRIZIONE!#REF!)","v":{"$error":"#REF!"}},{"$f":"IF(MODULO_ISCRIZIONE!#REF!=\"\",\"\",MODULO_ISCRIZIONE!#REF!)","v":{"$error":"#REF!"}},{"$f":"IF(MODULO_ISCRIZIONE!D146=\"\",\"\",MODULO_ISCRIZIONE!D146)","v":""},"=SE('modulo iscrizione'!D8=\"\";\"\";maiusc('modulo iscrizione'!D8))",{"$f":"IF(MODULO_ISCRIZIONE!E146=\"\",\"\",MODULO_ISCRIZIONE!E146)","v":""},{"$f":"IF(MODULO_ISCRIZIONE!H146=\"\",\"\",MODULO_ISCRIZIONE!H146)","v":""},{"$f":"IF(MODULO_ISCRIZIONE!I146=\"\",\"\",MODULO_ISCRIZIONE!I146)","v":""},{"$f":"IF(MODULO_ISCRIZIONE!#REF!=\"\",\"\",MODULO_ISCRIZIONE!#REF!)","v":{"$error":"#REF!"}},{"$f":"IF(MODULO_ISCRIZIONE!#REF!=\"\",\"\",MODULO_ISCRIZIONE!#REF!)","v":{"$error":"#REF!"}}]
[{"$f":"IF(MODULO_ISCRIZIONE!#REF!=\"\",\"\",MODULO_ISCRIZIONE!#REF!)","v":{"$error":"#REF!"}},{"$f":"IF(MODULO_ISCRIZIONE!#REF!=\"\",\"\",MODULO_ISCRIZIONE!#REF!)","v":{"$error":"#REF!"}},{"$f":"IF(MODULO_ISCRIZIONE!D147=\"\",\"\",MODULO_ISCRIZIONE!D147)","v":""},"=SE('modulo iscrizione'!D8=\"\";\"\";maiusc('modulo iscrizione'!D8))",{"$f":"IF(MODULO_ISCRIZIONE!E147=\"\",\"\",MODULO_ISCRIZIONE!E147)","v":""},{"$f":"IF(MODULO_ISCRIZIONE!H147=\"\",\"\",MODULO_ISCRIZIONE!H147)","v":""},{"$f":"IF(MODULO_ISCRIZIONE!I147=\"\",\"\",MODULO_ISCRIZIONE!I147)","v":""},{"$f":"IF(MODULO_ISCRIZIONE!#REF!=\"\",\"\",MODULO_ISCRIZIONE!#REF!)","v":{"$error":"#REF!"}},{"$f":"IF(MODULO_ISCRIZIONE!#REF!=\"\",\"\",MODULO_ISCRIZIONE!#REF!)","v":{"$error":"#REF!"}}]
[{"$f":"IF(MODULO_ISCRIZIONE!#REF!=\"\",\"\",MODULO_ISCRIZIONE!#REF!)","v":{"$error":"#REF!"}},{"$f":"IF(MODULO_ISCRIZIONE!#REF!=\"\",\"\",MODULO_ISCRIZIONE!#REF!)","v":{"$error":"#REF!"}},{"$f":"IF(MODULO_ISCRIZIONE!D148=\"\",\"\",MODULO_ISCRIZIONE!D148)","v":""},"=SE('modulo iscrizione'!D8=\"\";\"\";maiusc('modulo iscrizione'!D8))",{"$f":"IF(MODULO_ISCRIZIONE!E148=\"\",\"\",MODULO_ISCRIZIONE!E148)","v":""},{"$f":"IF(MODULO_ISCRIZIONE!H148=\"\",\"\",MODULO_ISCRIZIONE!H148)","v":""},{"$f":"IF(MODULO_ISCRIZIONE!I148=\"\",\"\",MODULO_ISCRIZIONE!I148)","v":""},{"$f":"IF(MODULO_ISCRIZIONE!#REF!=\"\",\"\",MODULO_ISCRIZIONE!#REF!)","v":{"$error":"#REF!"}},{"$f":"IF(MODULO_ISCRIZIONE!#REF!=\"\",\"\",MODULO_ISCRIZIONE!#REF!)","v":{"$error":"#REF!"}}]
[{"$f":"IF(MODULO_ISCRIZIONE!#REF!=\"\",\"\",MODULO_ISCRIZIONE!#REF!)","v":{"$error":"#REF!"}},{"$f":"IF(MODULO_ISCRIZIONE!#REF!=\"\",\"\",MODULO_ISCRIZIONE!#REF!)","v":{"$error":"#REF!"}},{"$f":"IF(MODULO_ISCRIZIONE!D149=\"\",\"\",MODULO_ISCRIZIONE!D149)","v":""},"=SE('modulo iscrizione'!D8=\"\";\"\";maiusc('modulo iscrizione'!D8))",{"$f":"IF(MODULO_ISCRIZIONE!E149=\"\",\"\",MODULO_ISCRIZIONE!E149)","v":""},{"$f":"IF(MODULO_ISCRIZIONE!H149=\"\",\"\",MODULO_ISCRIZIONE!H149)","v":""},{"$f":"IF(MODULO_ISCRIZIONE!I149=\"\",\"\",MODULO_ISCRIZIONE!I149)","v":""},{"$f":"IF(MODULO_ISCRIZIONE!#REF!=\"\",\"\",MODULO_ISCRIZIONE!#REF!)","v":{"$error":"#REF!"}},{"$f":"IF(MODULO_ISCRIZIONE!#REF!=\"\",\"\",MODULO_ISCRIZIONE!#REF!)","v":{"$error":"#REF!"}}]
[{"$f":"IF(MODULO_ISCRIZIONE!#REF!=\"\",\"\",MODULO_ISCRIZIONE!#REF!)","v":{"$error":"#REF!"}},{"$f":"IF(MODULO_ISCRIZIONE!#REF!=\"\",\"\",MODULO_ISCRIZIONE!#REF!)","v":{"$error":"#REF!"}},{"$f":"IF(MODULO_ISCRIZIONE!D150=\"\",\"\",MODULO_ISCRIZIONE!D150)","v":""},"=SE('modulo iscrizione'!D8=\"\";\"\";maiusc('modulo iscrizione'!D8))",{"$f":"IF(MODULO_ISCRIZIONE!E150=\"\",\"\",MODULO_ISCRIZIONE!E150)","v":""},{"$f":"IF(MODULO_ISCRIZIONE!H150=\"\",\"\",MODULO_ISCRIZIONE!H150)","v":""},{"$f":"IF(MODULO_ISCRIZIONE!I150=\"\",\"\",MODULO_ISCRIZIONE!I150)","v":""},{"$f":"IF(MODULO_ISCRIZIONE!#REF!=\"\",\"\",MODULO_ISCRIZIONE!#REF!)","v":{"$error":"#REF!"}},{"$f":"IF(MODULO_ISCRIZIONE!#REF!=\"\",\"\",MODULO_ISCRIZIONE!#REF!)","v":{"$error":"#REF!"}}]
[{"$f":"IF(MODULO_ISCRIZIONE!#REF!=\"\",\"\",MODULO_ISCRIZIONE!#REF!)","v":{"$error":"#REF!"}},{"$f":"IF(MODULO_ISCRIZIONE!#REF!=\"\",\"\",MODULO_ISCRIZIONE!#REF!)","v":{"$error":"#REF!"}},{"$f":"IF(MODULO_ISCRIZIONE!D151=\"\",\"\",MODULO_ISCRIZIONE!D151)","v":""},"=SE('modulo iscrizione'!D8=\"\";\"\";maiusc('modulo iscrizione'!D8))",{"$f":"IF(MODULO_ISCRIZIONE!E151=\"\",\"\",MODULO_ISCRIZIONE!E151)","v":""},{"$f":"IF(MODULO_ISCRIZIONE!H151=\"\",\"\",MODULO_ISCRIZIONE!H151)","v":""},{"$f":"IF(MODULO_ISCRIZIONE!I151=\"\",\"\",MODULO_ISCRIZIONE!I151)","v":""},{"$f":"IF(MODULO_ISCRIZIONE!#REF!=\"\",\"\",MODULO_ISCRIZIONE!#REF!)","v":{"$error":"#REF!"}},{"$f":"IF(MODULO_ISCRIZIONE!#REF!=\"\",\"\",MODULO_ISCRIZIONE!#REF!)","v":{"$error":"#REF!"}}]
[{"$f":"IF(MODULO_ISCRIZIONE!#REF!=\"\",\"\",MODULO_ISCRIZIONE!#REF!)","v":{"$error":"#REF!"}},{"$f":"IF(MODULO_ISCRIZIONE!#REF!=\"\",\"\",MODULO_ISCRIZIONE!#REF!)","v":{"$error":"#REF!"}},{"$f":"IF(MODULO_ISCRIZIONE!D152=\"\",\"\",MODULO_ISCRIZIONE!D152)","v":""},"=SE('modulo iscrizione'!D8=\"\";\"\";maiusc('modulo iscrizione'!D8))",{"$f":"IF(MODULO_ISCRIZIONE!E152=\"\",\"\",MODULO_ISCRIZIONE!E152)","v":""},{"$f":"IF(MODULO_ISCRIZIONE!H152=\"\",\"\",MODULO_ISCRIZIONE!H152)","v":""},{"$f":"IF(MODULO_ISCRIZIONE!I152=\"\",\"\",MODULO_ISCRIZIONE!I152)","v":""},{"$f":"IF(MODULO_ISCRIZIONE!#REF!=\"\",\"\",MODULO_ISCRIZIONE!#REF!)","v":{"$error":"#REF!"}},{"$f":"IF(MODULO_ISCRIZIONE!#REF!=\"\",\"\",MODULO_ISCRIZIONE!#REF!)","v":{"$error":"#REF!"}}]
[{"$f":"IF(MODULO_ISCRIZIONE!#REF!=\"\",\"\",MODULO_ISCRIZIONE!#REF!)","v":{"$error":"#REF!"}},{"$f":"IF(MODULO_ISCRIZIONE!#REF!=\"\",\"\",MODULO_ISCRIZIONE!#REF!)","v":{"$error":"#REF!"}},{"$f":"IF(MODULO_ISCRIZIONE!D153=\"\",\"\",MODULO_ISCRIZIONE!D153)","v":""},"=SE('modulo iscrizione'!D8=\"\";\"\";maiusc('modulo iscrizione'!D8))",{"$f":"IF(MODULO_ISCRIZIONE!E153=\"\",\"\",MODULO_ISCRIZIONE!E153)","v":""},{"$f":"IF(MODULO_ISCRIZIONE!H153=\"\",\"\",MODULO_ISCRIZIONE!H153)","v":""},{"$f":"IF(MODULO_ISCRIZIONE!I153=\"\",\"\",MODULO_ISCRIZIONE!I153)","v":""},{"$f":"IF(MODULO_ISCRIZIONE!#REF!=\"\",\"\",MODULO_ISCRIZIONE!#REF!)","v":{"$error":"#REF!"}},{"$f":"IF(MODULO_ISCRIZIONE!#REF!=\"\",\"\",MODULO_ISCRIZIONE!#REF!)","v":{"$error":"#REF!"}}]
[{"$f":"IF(MODULO_ISCRIZIONE!#REF!=\"\",\"\",MODULO_ISCRIZIONE!#REF!)","v":{"$error":"#REF!"}},{"$f":"IF(MODULO_ISCRIZIONE!#REF!=\"\",\"\",MODULO_ISCRIZIONE!#REF!)","v":{"$error":"#REF!"}},{"$f":"IF(MODULO_ISCRIZIONE!D154=\"\",\"\",MODULO_ISCRIZIONE!D154)","v":""},"=SE('modulo iscrizione'!D8=\"\";\"\";maiusc('modulo iscrizione'!D8))",{"$f":"IF(MODULO_ISCRIZIONE!E154=\"\",\"\",MODULO_ISCRIZIONE!E154)","v":""},{"$f":"IF(MODULO_ISCRIZIONE!H154=\"\",\"\",MODULO_ISCRIZIONE!H154)","v":""},{"$f":"IF(MODULO_ISCRIZIONE!I154=\"\",\"\",MODULO_ISCRIZIONE!I154)","v":""},{"$f":"IF(MODULO_ISCRIZIONE!#REF!=\"\",\"\",MODULO_ISCRIZIONE!#REF!)","v":{"$error":"#REF!"}},{"$f":"IF(MODULO_ISCRIZIONE!#REF!=\"\",\"\",MODULO_ISCRIZIONE!#REF!)","v":{"$error":"#REF!"}}]
[{"$f":"IF(MODULO_ISCRIZIONE!#REF!=\"\",\"\",MODULO_ISCRIZIONE!#REF!)","v":{"$error":"#REF!"}},{"$f":"IF(MODULO_ISCRIZIONE!#REF!=\"\",\"\",MODULO_ISCRIZIONE!#REF!)","v":{"$error":"#REF!"}},{"$f":"IF(MODULO_ISCRIZIONE!D155=\"\",\"\",MODULO_ISCRIZIONE!D155)","v":""},"=SE('modulo iscrizione'!D8=\"\";\"\";maiusc('modulo iscrizione'!D8))",{"$f":"IF(MODULO_ISCRIZIONE!E155=\"\",\"\",MODULO_ISCRIZIONE!E155)","v":""},{"$f":"IF(MODULO_ISCRIZIONE!H155=\"\",\"\",MODULO_ISCRIZIONE!H155)","v":""},{"$f":"IF(MODULO_ISCRIZIONE!I155=\"\",\"\",MODULO_ISCRIZIONE!I155)","v":""},{"$f":"IF(MODULO_ISCRIZIONE!#REF!=\"\",\"\",MODULO_ISCRIZIONE!#REF!)","v":{"$error":"#REF!"}},{"$f":"IF(MODULO_ISCRIZIONE!#REF!=\"\",\"\",MODULO_ISCRIZIONE!#REF!)","v":{"$error":"#REF!"}}]
[{"$f":"IF(MODULO_ISCRIZIONE!#REF!=\"\",\"\",MODULO_ISCRIZIONE!#REF!)","v":{"$error":"#REF!"}},{"$f":"IF(MODULO_ISCRIZIONE!#REF!=\"\",\"\",MODULO_ISCRIZIONE!#REF!)","v":{"$error":"#REF!"}},{"$f":"IF(MODULO_ISCRIZIONE!D156=\"\",\"\",MODULO_ISCRIZIONE!D156)","v":""},"=SE('modulo iscrizione'!D8=\"\";\"\";maiusc('modulo iscrizione'!D8))",{"$f":"IF(MODULO_ISCRIZIONE!E156=\"\",\"\",MODULO_ISCRIZIONE!E156)","v":""},{"$f":"IF(MODULO_ISCRIZIONE!H156=\"\",\"\",MODULO_ISCRIZIONE!H156)","v":""},{"$f":"IF(MODULO_ISCRIZIONE!I156=\"\",\"\",MODULO_ISCRIZIONE!I156)","v":""},{"$f":"IF(MODULO_ISCRIZIONE!#REF!=\"\",\"\",MODULO_ISCRIZIONE!#REF!)","v":{"$error":"#REF!"}},{"$f":"IF(MODULO_ISCRIZIONE!#REF!=\"\",\"\",MODULO_ISCRIZIONE!#REF!)","v":{"$error":"#REF!"}}]
[{"$f":"IF(MODULO_ISCRIZIONE!#REF!=\"\",\"\",MODULO_ISCRIZIONE!#REF!)","v":{"$error":"#REF!"}},{"$f":"IF(MODULO_ISCRIZIONE!#REF!=\"\",\"\",MODULO_ISCRIZIONE!#REF!)","v":{"$error":"#REF!"}},{"$f":"IF(MODULO_ISCRIZIONE!D157=\"\",\"\",MODULO_ISCRIZIONE!D157)","v":""},"=SE('modulo iscrizione'!D8=\"\";\"\";maiusc('modulo iscrizione'!D8))",{"$f":"IF(MODULO_ISCRIZIONE!E157=\"\",\"\",MODULO_ISCRIZIONE!E157)","v":""},{"$f":"IF(MODULO_ISCRIZIONE!H157=\"\",\"\",MODULO_ISCRIZIONE!H157)","v":""},{"$f":"IF(MODULO_ISCRIZIONE!I157=\"\",\"\",MODULO_ISCRIZIONE!I157)","v":""},{"$f":"IF(MODULO_ISCRIZIONE!#REF!=\"\",\"\",MODULO_ISCRIZIONE!#REF!)","v":{"$error":"#REF!"}},{"$f":"IF(MODULO_ISCRIZIONE!#REF!=\"\",\"\",MODULO_ISCRIZIONE!#REF!)","v":{"$error":"#REF!"}}]
[{"$f":"IF(MODULO_ISCRIZIONE!#REF!=\"\",\"\",MODULO_ISCRIZIONE!#REF!)","v":{"$error":"#REF!"}},{"$f":"IF(MODULO_ISCRIZIONE!#REF!=\"\",\"\",MODULO_ISCRIZIONE!#REF!)","v":{"$error":"#REF!"}},{"$f":"IF(MODULO_ISCRIZIONE!D158=\"\",\"\",MODULO_ISCRIZIONE!D158)","v":""},"=SE('modulo iscrizione'!D8=\"\";\"\";maiusc('modulo iscrizione'!D8))",{"$f":"IF(MODULO_ISCRIZIONE!E158=\"\",\"\",MODULO_ISCRIZIONE!E158)","v":""},{"$f":"IF(MODULO_ISCRIZIONE!H158=\"\",\"\",MODULO_ISCRIZIONE!H158)","v":""},{"$f":"IF(MODULO_ISCRIZIONE!I158=\"\",\"\",MODULO_ISCRIZIONE!I158)","v":""},{"$f":"IF(MODULO_ISCRIZIONE!#REF!=\"\",\"\",MODULO_ISCRIZIONE!#REF!)","v":{"$error":"#REF!"}},{"$f":"IF(MODULO_ISCRIZIONE!#REF!=\"\",\"\",MODULO_ISCRIZIONE!#REF!)","v":{"$error":"#REF!"}}]
[{"$f":"IF(MODULO_ISCRIZIONE!#REF!=\"\",\"\",MODULO_ISCRIZIONE!#REF!)","v":{"$error":"#REF!"}},{"$f":"IF(MODULO_ISCRIZIONE!#REF!=\"\",\"\",MODULO_ISCRIZIONE!#REF!)","v":{"$error":"#REF!"}},{"$f":"IF(MODULO_ISCRIZIONE!D159=\"\",\"\",MODULO_ISCRIZIONE!D159)","v":""},"=SE('modulo iscrizione'!D8=\"\";\"\";maiusc('modulo iscrizione'!D8))",{"$f":"IF(MODULO_ISCRIZIONE!E159=\"\",\"\",MODULO_ISCRIZIONE!E159)","v":""},{"$f":"IF(MODULO_ISCRIZIONE!H159=\"\",\"\",MODULO_ISCRIZIONE!H159)","v":""},{"$f":"IF(MODULO_ISCRIZIONE!I159=\"\",\"\",MODULO_ISCRIZIONE!I159)","v":""},{"$f":"IF(MODULO_ISCRIZIONE!#REF!=\"\",\"\",MODULO_ISCRIZIONE!#REF!)","v":{"$error":"#REF!"}},{"$f":"IF(MODULO_ISCRIZIONE!#REF!=\"\",\"\",MODULO_ISCRIZIONE!#REF!)","v":{"$error":"#REF!"}}]
[{"$f":"IF(MODULO_ISCRIZIONE!#REF!=\"\",\"\",MODULO_ISCRIZIONE!#REF!)","v":{"$error":"#REF!"}},{"$f":"IF(MODULO_ISCRIZIONE!#REF!=\"\",\"\",MODULO_ISCRIZIONE!#REF!)","v":{"$error":"#REF!"}},{"$f":"IF(MODULO_ISCRIZIONE!D160=\"\",\"\",MODULO_ISCRIZIONE!D160)","v":""},"=SE('modulo iscrizione'!D8=\"\";\"\";maiusc('modulo iscrizione'!D8))",{"$f":"IF(MODULO_ISCRIZIONE!E160=\"\",\"\",MODULO_ISCRIZIONE!E160)","v":""},{"$f":"IF(MODULO_ISCRIZIONE!H160=\"\",\"\",MODULO_ISCRIZIONE!H160)","v":""},{"$f":"IF(MODULO_ISCRIZIONE!I160=\"\",\"\",MODULO_ISCRIZIONE!I160)","v":""},{"$f":"IF(MODULO_ISCRIZIONE!#REF!=\"\",\"\",MODULO_ISCRIZIONE!#REF!)","v":{"$error":"#REF!"}},{"$f":"IF(MODULO_ISCRIZIONE!#REF!=\"\",\"\",MODULO_ISCRIZIONE!#REF!)","v":{"$error":"#REF!"}}]
[{"$f":"IF(MODULO_ISCRIZIONE!#REF!=\"\",\"\",MODULO_ISCRIZIONE!#REF!)","v":{"$error":"#REF!"}},{"$f":"IF(MODULO_ISCRIZIONE!#REF!=\"\",\"\",MODULO_ISCRIZIONE!#REF!)","v":{"$error":"#REF!"}},{"$f":"IF(MODULO_ISCRIZIONE!D161=\"\",\"\",MODULO_ISCRIZIONE!D161)","v":""},"=SE('modulo iscrizione'!D8=\"\";\"\";maiusc('modulo iscrizione'!D8))",{"$f":"IF(MODULO_ISCRIZIONE!E161=\"\",\"\",MODULO_ISCRIZIONE!E161)","v":""},{"$f":"IF(MODULO_ISCRIZIONE!H161=\"\",\"\",MODULO_ISCRIZIONE!H161)","v":""},{"$f":"IF(MODULO_ISCRIZIONE!I161=\"\",\"\",MODULO_ISCRIZIONE!I161)","v":""},{"$f":"IF(MODULO_ISCRIZIONE!#REF!=\"\",\"\",MODULO_ISCRIZIONE!#REF!)","v":{"$error":"#REF!"}},{"$f":"IF(MODULO_ISCRIZIONE!#REF!=\"\",\"\",MODULO_ISCRIZIONE!#REF!)","v":{"$error":"#REF!"}}]
[{"$f":"IF(MODULO_ISCRIZIONE!#REF!=\"\",\"\",MODULO_ISCRIZIONE!#REF!)","v":{"$error":"#REF!"}},{"$f":"IF(MODULO_ISCRIZIONE!#REF!=\"\",\"\",MODULO_ISCRIZIONE!#REF!)","v":{"$error":"#REF!"}},{"$f":"IF(MODULO_ISCRIZIONE!D162=\"\",\"\",MODULO_ISCRIZIONE!D162)","v":""},"=SE('modulo iscrizione'!D8=\"\";\"\";maiusc('modulo iscrizione'!D8))",{"$f":"IF(MODULO_ISCRIZIONE!E162=\"\",\"\",MODULO_ISCRIZIONE!E162)","v":""},{"$f":"IF(MODULO_ISCRIZIONE!H162=\"\",\"\",MODULO_ISCRIZIONE!H162)","v":""},{"$f":"IF(MODULO_ISCRIZIONE!I162=\"\",\"\",MODULO_ISCRIZIONE!I162)","v":""},{"$f":"IF(MODULO_ISCRIZIONE!#REF!=\"\",\"\",MODULO_ISCRIZIONE!#REF!)","v":{"$error":"#REF!"}},{"$f":"IF(MODULO_ISCRIZIONE!#REF!=\"\",\"\",MODULO_ISCRIZIONE!#REF!)","v":{"$error":"#REF!"}}]
[{"$f":"IF(MODULO_ISCRIZIONE!#REF!=\"\",\"\",MODULO_ISCRIZIONE!#REF!)","v":{"$error":"#REF!"}},{"$f":"IF(MODULO_ISCRIZIONE!#REF!=\"\",\"\",MODULO_ISCRIZIONE!#REF!)","v":{"$error":"#REF!"}},{"$f":"IF(MODULO_ISCRIZIONE!D163=\"\",\"\",MODULO_ISCRIZIONE!D163)","v":""},"=SE('modulo iscrizione'!D8=\"\";\"\";maiusc('modulo iscrizione'!D8))",{"$f":"IF(MODULO_ISCRIZIONE!E163=\"\",\"\",MODULO_ISCRIZIONE!E163)","v":""},{"$f":"IF(MODULO_ISCRIZIONE!H163=\"\",\"\",MODULO_ISCRIZIONE!H163)","v":""},{"$f":"IF(MODULO_ISCRIZIONE!I163=\"\",\"\",MODULO_ISCRIZIONE!I163)","v":""},{"$f":"IF(MODULO_ISCRIZIONE!#REF!=\"\",\"\",MODULO_ISCRIZIONE!#REF!)","v":{"$error":"#REF!"}},{"$f":"IF(MODULO_ISCRIZIONE!#REF!=\"\",\"\",MODULO_ISCRIZIONE!#REF!)","v":{"$error":"#REF!"}}]
[{"$f":"IF(MODULO_ISCRIZIONE!#REF!=\"\",\"\",MODULO_ISCRIZIONE!#REF!)","v":{"$error":"#REF!"}},{"$f":"IF(MODULO_ISCRIZIONE!#REF!=\"\",\"\",MODULO_ISCRIZIONE!#REF!)","v":{"$error":"#REF!"}},{"$f":"IF(MODULO_ISCRIZIONE!D164=\"\",\"\",MODULO_ISCRIZIONE!D164)","v":""},"=SE('modulo iscrizione'!D8=\"\";\"\";maiusc('modulo iscrizione'!D8))",{"$f":"IF(MODULO_ISCRIZIONE!E164=\"\",\"\",MODULO_ISCRIZIONE!E164)","v":""},{"$f":"IF(MODULO_ISCRIZIONE!H164=\"\",\"\",MODULO_ISCRIZIONE!H164)","v":""},{"$f":"IF(MODULO_ISCRIZIONE!I164=\"\",\"\",MODULO_ISCRIZIONE!I164)","v":""},{"$f":"IF(MODULO_ISCRIZIONE!#REF!=\"\",\"\",MODULO_ISCRIZIONE!#REF!)","v":{"$error":"#REF!"}},{"$f":"IF(MODULO_ISCRIZIONE!#REF!=\"\",\"\",MODULO_ISCRIZIONE!#REF!)","v":{"$error":"#REF!"}}]
[{"$f":"IF(MODULO_ISCRIZIONE!#REF!=\"\",\"\",MODULO_ISCRIZIONE!#REF!)","v":{"$error":"#REF!"}},{"$f":"IF(MODULO_ISCRIZIONE!#REF!=\"\",\"\",MODULO_ISCRIZIONE!#REF!)","v":{"$error":"#REF!"}},{"$f":"IF(MODULO_ISCRIZIONE!D165=\"\",\"\",MODULO_ISCRIZIONE!D165)","v":""},"=SE('modulo iscrizione'!D8=\"\";\"\";maiusc('modulo iscrizione'!D8))",{"$f":"IF(MODULO_ISCRIZIONE!E165=\"\",\"\",MODULO_ISCRIZIONE!E165)","v":""},{"$f":"IF(MODULO_ISCRIZIONE!H165=\"\",\"\",MODULO_ISCRIZIONE!H165)","v":""},{"$f":"IF(MODULO_ISCRIZIONE!I165=\"\",\"\",MODULO_ISCRIZIONE!I165)","v":""},{"$f":"IF(MODULO_ISCRIZIONE!#REF!=\"\",\"\",MODULO_ISCRIZIONE!#REF!)","v":{"$error":"#REF!"}},{"$f":"IF(MODULO_ISCRIZIONE!#REF!=\"\",\"\",MODULO_ISCRIZIONE!#REF!)","v":{"$error":"#REF!"}}]
[{"$f":"IF(MODULO_ISCRIZIONE!#REF!=\"\",\"\",MODULO_ISCRIZIONE!#REF!)","v":{"$error":"#REF!"}},{"$f":"IF(MODULO_ISCRIZIONE!#REF!=\"\",\"\",MODULO_ISCRIZIONE!#REF!)","v":{"$error":"#REF!"}},{"$f":"IF(MODULO_ISCRIZIONE!D166=\"\",\"\",MODULO_ISCRIZIONE!D166)","v":""},"=SE('modulo iscrizione'!D8=\"\";\"\";maiusc('modulo iscrizione'!D8))",{"$f":"IF(MODULO_ISCRIZIONE!E166=\"\",\"\",MODULO_ISCRIZIONE!E166)","v":""},{"$f":"IF(MODULO_ISCRIZIONE!H166=\"\",\"\",MODULO_ISCRIZIONE!H166)","v":""},{"$f":"IF(MODULO_ISCRIZIONE!I166=\"\",\"\",MODULO_ISCRIZIONE!I166)","v":""},{"$f":"IF(MODULO_ISCRIZIONE!#REF!=\"\",\"\",MODULO_ISCRIZIONE!#REF!)","v":{"$error":"#REF!"}},{"$f":"IF(MODULO_ISCRIZIONE!#REF!=\"\",\"\",MODULO_ISCRIZIONE!#REF!)","v":{"$error":"#REF!"}}]
[{"$f":"IF(MODULO_ISCRIZIONE!#REF!=\"\",\"\",MODULO_ISCRIZIONE!#REF!)","v":{"$error":"#REF!"}},{"$f":"IF(MODULO_ISCRIZIONE!#REF!=\"\",\"\",MODULO_ISCRIZIONE!#REF!)","v":{"$error":"#REF!"}},{"$f":"IF(MODULO_ISCRIZIONE!D167=\"\",\"\",MODULO_ISCRIZIONE!D167)","v":""},"=SE('modulo iscrizione'!D8=\"\";\"\";maiusc('modulo iscrizione'!D8))",{"$f":"IF(MODULO_ISCRIZIONE!E167=\"\",\"\",MODULO_ISCRIZIONE!E167)","v":""},{"$f":"IF(MODULO_ISCRIZIONE!H167=\"\",\"\",MODULO_ISCRIZIONE!H167)","v":""},{"$f":"IF(MODULO_ISCRIZIONE!I167=\"\",\"\",MODULO_ISCRIZIONE!I167)","v":""},{"$f":"IF(MODULO_ISCRIZIONE!#REF!=\"\",\"\",MODULO_ISCRIZIONE!#REF!)","v":{"$error":"#REF!"}},{"$f":"IF(MODULO_ISCRIZIONE!#REF!=\"\",\"\",MODULO_ISCRIZIONE!#REF!)","v":{"$error":"#REF!"}}]
[{"$f":"IF(MODULO_ISCRIZIONE!#REF!=\"\",\"\",MODULO_ISCRIZIONE!#REF!)","v":{"$error":"#REF!"}},{"$f":"IF(MODULO_ISCRIZIONE!#REF!=\"\",\"\",MODULO_ISCRIZIONE!#REF!)","v":{"$error":"#REF!"}},{"$f":"IF(MODULO_ISCRIZIONE!D168=\"\",\"\",MODULO_ISCRIZIONE!D168)","v":""},"=SE('modulo iscrizione'!D8=\"\";\"\";maiusc('modulo iscrizione'!D8))",{"$f":"IF(MODULO_ISCRIZIONE!E168=\"\",\"\",MODULO_ISCRIZIONE!E168)","v":""},{"$f":"IF(MODULO_ISCRIZIONE!H168=\"\",\"\",MODULO_ISCRIZIONE!H168)","v":""},{"$f":"IF(MODULO_ISCRIZIONE!I168=\"\",\"\",MODULO_ISCRIZIONE!I168)","v":""},{"$f":"IF(MODULO_ISCRIZIONE!#REF!=\"\",\"\",MODULO_ISCRIZIONE!#REF!)","v":{"$error":"#REF!"}},{"$f":"IF(MODULO_ISCRIZIONE!#REF!=\"\",\"\",MODULO_ISCRIZIONE!#REF!)","v":{"$error":"#REF!"}}]
[{"$f":"IF(MODULO_ISCRIZIONE!#REF!=\"\",\"\",MODULO_ISCRIZIONE!#REF!)","v":{"$error":"#REF!"}},{"$f":"IF(MODULO_ISCRIZIONE!#REF!=\"\",\"\",MODULO_ISCRIZIONE!#REF!)","v":{"$error":"#REF!"}},{"$f":"IF(MODULO_ISCRIZIONE!D169=\"\",\"\",MODULO_ISCRIZIONE!D169)","v":""},"=SE('modulo iscrizione'!D8=\"\";\"\";maiusc('modulo iscrizione'!D8))",{"$f":"IF(MODULO_ISCRIZIONE!E169=\"\",\"\",MODULO_ISCRIZIONE!E169)","v":""},{"$f":"IF(MODULO_ISCRIZIONE!H169=\"\",\"\",MODULO_ISCRIZIONE!H169)","v":""},{"$f":"IF(MODULO_ISCRIZIONE!I169=\"\",\"\",MODULO_ISCRIZIONE!I169)","v":""},{"$f":"IF(MODULO_ISCRIZIONE!#REF!=\"\",\"\",MODULO_ISCRIZIONE!#REF!)","v":{"$error":"#REF!"}},{"$f":"IF(MODULO_ISCRIZIONE!#REF!=\"\",\"\",MODULO_ISCRIZIONE!#REF!)","v":{"$error":"#REF!"}}]
[{"$f":"IF(MODULO_ISCRIZIONE!#REF!=\"\",\"\",MODULO_ISCRIZIONE!#REF!)","v":{"$error":"#REF!"}},{"$f":"IF(MODULO_ISCRIZIONE!#REF!=\"\",\"\",MODULO_ISCRIZIONE!#REF!)","v":{"$error":"#REF!"}},{"$f":"IF(MODULO_ISCRIZIONE!D170=\"\",\"\",MODULO_ISCRIZIONE!D170)","v":""},"=SE('modulo iscrizione'!D8=\"\";\"\";maiusc('modulo iscrizione'!D8))",{"$f":"IF(MODULO_ISCRIZIONE!E170=\"\",\"\",MODULO_ISCRIZIONE!E170)","v":""},{"$f":"IF(MODULO_ISCRIZIONE!H170=\"\",\"\",MODULO_ISCRIZIONE!H170)","v":""},{"$f":"IF(MODULO_ISCRIZIONE!I170=\"\",\"\",MODULO_ISCRIZIONE!I170)","v":""},{"$f":"IF(MODULO_ISCRIZIONE!#REF!=\"\",\"\",MODULO_ISCRIZIONE!#REF!)","v":{"$error":"#REF!"}},{"$f":"IF(MODULO_ISCRIZIONE!#REF!=\"\",\"\",MODULO_ISCRIZIONE!#REF!)","v":{"$error":"#REF!"}}]
[{"$f":"IF(MODULO_ISCRIZIONE!#REF!=\"\",\"\",MODULO_ISCRIZIONE!#REF!)","v":{"$error":"#REF!"}},{"$f":"IF(MODULO_ISCRIZIONE!#REF!=\"\",\"\",MODULO_ISCRIZIONE!#REF!)","v":{"$error":"#REF!"}},{"$f":"IF(MODULO_ISCRIZIONE!D171=\"\",\"\",MODULO_ISCRIZIONE!D171)","v":""},"=SE('modulo iscrizione'!D8=\"\";\"\";maiusc('modulo iscrizione'!D8))",{"$f":"IF(MODULO_ISCRIZIONE!E171=\"\",\"\",MODULO_ISCRIZIONE!E171)","v":""},{"$f":"IF(MODULO_ISCRIZIONE!H171=\"\",\"\",MODULO_ISCRIZIONE!H171)","v":""},{"$f":"IF(MODULO_ISCRIZIONE!I171=\"\",\"\",MODULO_ISCRIZIONE!I171)","v":""},{"$f":"IF(MODULO_ISCRIZIONE!#REF!=\"\",\"\",MODULO_ISCRIZIONE!#REF!)","v":{"$error":"#REF!"}},{"$f":"IF(MODULO_ISCRIZIONE!#REF!=\"\",\"\",MODULO_ISCRIZIONE!#REF!)","v":{"$error":"#REF!"}}]
[{"$f":"IF(MODULO_ISCRIZIONE!#REF!=\"\",\"\",MODULO_ISCRIZIONE!#REF!)","v":{"$error":"#REF!"}},{"$f":"IF(MODULO_ISCRIZIONE!#REF!=\"\",\"\",MODULO_ISCRIZIONE!#REF!)","v":{"$error":"#REF!"}},{"$f":"IF(MODULO_ISCRIZIONE!D172=\"\",\"\",MODULO_ISCRIZIONE!D172)","v":""},"=SE('modulo iscrizione'!D8=\"\";\"\";maiusc('modulo iscrizione'!D8))",{"$f":"IF(MODULO_ISCRIZIONE!E172=\"\",\"\",MODULO_ISCRIZIONE!E172)","v":""},{"$f":"IF(MODULO_ISCRIZIONE!H172=\"\",\"\",MODULO_ISCRIZIONE!H172)","v":""},{"$f":"IF(MODULO_ISCRIZIONE!I172=\"\",\"\",MODULO_ISCRIZIONE!I172)","v":""},{"$f":"IF(MODULO_ISCRIZIONE!#REF!=\"\",\"\",MODULO_ISCRIZIONE!#REF!)","v":{"$error":"#REF!"}},{"$f":"IF(MODULO_ISCRIZIONE!#REF!=\"\",\"\",MODULO_ISCRIZIONE!#REF!)","v":{"$error":"#REF!"}}]